Organisation Name,Organisation Code,Unique Ref No,Effective Date,Directorate  where expenditure incurred,Directorate  where expenditure incurred,Supplier name ,Payment Date,Net Amount,Procurement Classification (Higher Level),Purpose of Spend,Procurement Classification (Lower Level),Capital/Revenue
Walsall Council,http://opendatacommunities.org/id/metropolitan-district-council/walsall,WC73-1,31/10/2016,,Childrens,247 CARS (WILLENHALL) LIMITED,12/10/2016,"4,162.20",52000-WITH DRIVER-HIRE OF VEHICLES,SCHOOL TRANSPORT,Transport,Revenue
Walsall Council,http://opendatacommunities.org/id/metropolitan-district-council/walsall,WC73-2,31/10/2016,,Economy & Environment,3GS (UK) LIMITED,18/10/2016,"3,438.00",73025-PROFESSIONAL SERVICES-PRIV CONTRACTOR & OTHER AGENCIES,ENVIRONMENT ENFORCEMENT,Third Party Payments,Revenue
Walsall Council,http://opendatacommunities.org/id/metropolitan-district-council/walsall,WC73-3,31/10/2016,,Childrens,5 CARE SERVICES LTD,05/10/2016,"1,079.00",63000-PROFESSIONAL FEES AND SERVICES,DIRECTLY COMMISSIONED NURSING SERVICES,Supplies & Services,Revenue
Walsall Council,http://opendatacommunities.org/id/metropolitan-district-council/walsall,WC73-4,31/10/2016,,Childrens,5 CARE SERVICES LTD,05/10/2016,"1,254.50",63000-PROFESSIONAL FEES AND SERVICES,DIRECTLY COMMISSIONED NURSING SERVICES,Supplies & Services,Revenue
Walsall Council,http://opendatacommunities.org/id/metropolitan-district-council/walsall,WC73-5,31/10/2016,,Childrens,5 CARE SERVICES LTD,05/10/2016,"1,800.50",63000-PROFESSIONAL FEES AND SERVICES,DIRECTLY COMMISSIONED NURSING SERVICES,Supplies & Services,Revenue
Walsall Council,http://opendatacommunities.org/id/metropolitan-district-council/walsall,WC73-6,31/10/2016,,Social Care & Inclusion,5 CARE SERVICES LTD,12/10/2016,"41,986.75",73372-DOMICILIARY CARE,OP COMMISSIONING,Third Party Payments,Revenue
Walsall Council,http://opendatacommunities.org/id/metropolitan-district-council/walsall,WC73-7,31/10/2016,,Change and Governance,A & M ELLIS,20/10/2016,561,62008-OUTWORK-PRINT ROOM,PRINTING SERVICES,Supplies & Services,Revenue
Walsall Council,http://opendatacommunities.org/id/metropolitan-district-council/walsall,WC73-8,31/10/2016,,Economy & Environment,A D T FIRE AND SECURITY PLC,10/10/2016,596.01,60008-MAINTENANCE-FURNITURE & EQUIPMENT,ARBORETUM,Supplies & Services,Revenue
Walsall Council,http://opendatacommunities.org/id/metropolitan-district-council/walsall,WC73-9,31/10/2016,,Economy & Environment,A F BLAKEMORE & SON LTD,12/10/2016,219.14,61016-FOOD AND BEVERAGES-PROVISIONS,BLOXWICH LEISURE CENTRE,Supplies & Services,Revenue
Walsall Council,http://opendatacommunities.org/id/metropolitan-district-council/walsall,WC73-10,31/10/2016,,Economy & Environment,A F BLAKEMORE & SON LTD,12/10/2016,270.13,61016-FOOD AND BEVERAGES-PROVISIONS,BLOXWICH LEISURE CENTRE,Supplies & Services,Revenue
Walsall Council,http://opendatacommunities.org/id/metropolitan-district-council/walsall,WC73-11,31/10/2016,,Economy & Environment,A F BLAKEMORE & SON LTD,07/10/2016,350.27,61016-FOOD AND BEVERAGES-PROVISIONS,OAK PARK,Supplies & Services,Revenue
Walsall Council,http://opendatacommunities.org/id/metropolitan-district-council/walsall,WC73-12,31/10/2016,,Economy & Environment,A F BLAKEMORE & SON LTD,04/10/2016,355.35,61009-BEVERAGES-PROVISIONS,DARLASTON LEISURE CENTRE,Supplies & Services,Revenue
Walsall Council,http://opendatacommunities.org/id/metropolitan-district-council/walsall,WC73-13,31/10/2016,,Economy & Environment,A F BLAKEMORE & SON LTD,12/10/2016,361.65,61016-FOOD AND BEVERAGES-PROVISIONS,BLOXWICH LEISURE CENTRE,Supplies & Services,Revenue
Walsall Council,http://opendatacommunities.org/id/metropolitan-district-council/walsall,WC73-14,31/10/2016,,Economy & Environment,A F BLAKEMORE & SON LTD,05/10/2016,387.39,61002-DRY FOODS-PROVISIONS,BLOXWICH LEISURE CENTRE,Supplies & Services,Revenue
Walsall Council,http://opendatacommunities.org/id/metropolitan-district-council/walsall,WC73-15,31/10/2016,,Economy & Environment,A F BLAKEMORE & SON LTD,10/10/2016,434.82,61002-DRY FOODS-PROVISIONS,BLOXWICH LEISURE CENTRE,Supplies & Services,Revenue
Walsall Council,http://opendatacommunities.org/id/metropolitan-district-council/walsall,WC73-16,31/10/2016,,Economy & Environment,A F BLAKEMORE & SON LTD,04/10/2016,473.39,61002-DRY FOODS-PROVISIONS,DARLASTON LEISURE CENTRE,Supplies & Services,Revenue
Walsall Council,http://opendatacommunities.org/id/metropolitan-district-council/walsall,WC73-17,31/10/2016,,Economy & Environment,A F BLAKEMORE & SON LTD,12/10/2016,480.24,61016-FOOD AND BEVERAGES-PROVISIONS,BLOXWICH LEISURE CENTRE,Supplies & Services,Revenue
Walsall Council,http://opendatacommunities.org/id/metropolitan-district-council/walsall,WC73-18,31/10/2016,,Economy & Environment,A F BLAKEMORE & SON LTD,24/10/2016,517.92,61016-FOOD AND BEVERAGES-PROVISIONS,BLOXWICH LEISURE CENTRE,Supplies & Services,Revenue
Walsall Council,http://opendatacommunities.org/id/metropolitan-district-council/walsall,WC73-19,31/10/2016,,Economy & Environment,A F BLAKEMORE & SON LTD,07/10/2016,597.27,61016-FOOD AND BEVERAGES-PROVISIONS,OAK PARK,Supplies & Services,Revenue
Walsall Council,http://opendatacommunities.org/id/metropolitan-district-council/walsall,WC73-20,31/10/2016,,Social Care & Inclusion,A F BLAKEMORE & SON LTD,20/10/2016,603.09,61016-FOOD AND BEVERAGES-PROVISIONS,GOSCOTE,Supplies & Services,Revenue
Walsall Council,http://opendatacommunities.org/id/metropolitan-district-council/walsall,WC73-21,31/10/2016,,Economy & Environment,A F BLAKEMORE & SON LTD,10/10/2016,616.16,61002-DRY FOODS-PROVISIONS,BLOXWICH LEISURE CENTRE,Supplies & Services,Revenue
Walsall Council,http://opendatacommunities.org/id/metropolitan-district-council/walsall,WC73-22,31/10/2016,,Social Care & Inclusion,A F BLAKEMORE & SON LTD,04/10/2016,663.3,61016-FOOD AND BEVERAGES-PROVISIONS,GOSCOTE,Supplies & Services,Revenue
Walsall Council,http://opendatacommunities.org/id/metropolitan-district-council/walsall,WC73-23,31/10/2016,,Economy & Environment,A F BLAKEMORE & SON LTD,10/10/2016,912.84,61002-DRY FOODS-PROVISIONS,BLOXWICH LEISURE CENTRE,Supplies & Services,Revenue
Walsall Council,http://opendatacommunities.org/id/metropolitan-district-council/walsall,WC73-24,31/10/2016,,Economy & Environment,A F BLAKEMORE & SON LTD,19/10/2016,"1,499.08",61016-FOOD AND BEVERAGES-PROVISIONS,OAK PARK,Supplies & Services,Revenue
Walsall Council,http://opendatacommunities.org/id/metropolitan-district-council/walsall,WC73-25,31/10/2016,,Childrens,REDACTED,24/10/2016,340.16,74006-HOLIDAY/CHRISTMAS ALLOWANCE-FOSTER CARERS-OTH AGENCY PROVISION,INTERNAL FOSTER CARE PROVISION,Third Party Payments,Revenue
Walsall Council,http://opendatacommunities.org/id/metropolitan-district-council/walsall,WC73-26,31/10/2016,,Economy & Environment,A KARIMS CHUCKERY PHARMACY,19/10/2016,26.55,63000-PROFESSIONAL FEES AND SERVICES,SEXUAL HEALTH,Supplies & Services,Revenue
Walsall Council,http://opendatacommunities.org/id/metropolitan-district-council/walsall,WC73-27,31/10/2016,,Economy & Environment,A KARIMS CHUCKERY PHARMACY,19/10/2016,"1,264.13",71007-CONTRIBUTION TO PCT,PUBLIC HEALTH BUSINESS SUPPORT,Third Party Payments,Revenue
Walsall Council,http://opendatacommunities.org/id/metropolitan-district-council/walsall,WC73-28,31/10/2016,,Childrens,REDACTED,10/10/2016,378,76422-DIRECT PAYMENTS TO SOCIAL SERVICES CLIENTS,FAMILY SUPPORT - DIRECT PAYMENTS,Transfer Payments,Revenue
Walsall Council,http://opendatacommunities.org/id/metropolitan-district-council/walsall,WC73-29,31/10/2016,,Childrens,ABACUS FOSTERING LTD,17/10/2016,"4,207.14",74037-INDEPENDENT FOSTER CARE-OTH AGENCY PROVISION,EXTERNAL FOSTER CARE PROVISION,Third Party Payments,Revenue
Walsall Council,http://opendatacommunities.org/id/metropolitan-district-council/walsall,WC73-30,31/10/2016,,Childrens,REDACTED,24/10/2016,650.92,74006-HOLIDAY/CHRISTMAS ALLOWANCE-FOSTER CARERS-OTH AGENCY PROVISION,INTERNAL FOSTER CARE PROVISION,Third Party Payments,Revenue
Walsall Council,http://opendatacommunities.org/id/metropolitan-district-council/walsall,WC73-31,31/10/2016,,Social Care & Inclusion,ABBEY COURT NURSING & RESIDEN,25/10/2016,"1,547.35",73373-RESIDENTIAL & NURSING CARE PLACEMENTS,OP COMMISSIONING,Third Party Payments,Revenue
Walsall Council,http://opendatacommunities.org/id/metropolitan-district-council/walsall,WC73-32,31/10/2016,,Social Care & Inclusion,ABBEY COURT NURSING & RESIDEN,25/10/2016,"1,547.36",73373-RESIDENTIAL & NURSING CARE PLACEMENTS,OP COMMISSIONING,Third Party Payments,Revenue
Walsall Council,http://opendatacommunities.org/id/metropolitan-district-council/walsall,WC73-33,31/10/2016,,Social Care & Inclusion,ABBEY COURT NURSING & RESIDEN,25/10/2016,"1,600.72",73373-RESIDENTIAL & NURSING CARE PLACEMENTS,OP COMMISSIONING,Third Party Payments,Revenue
Walsall Council,http://opendatacommunities.org/id/metropolitan-district-council/walsall,WC73-34,31/10/2016,,Social Care & Inclusion,ABBEY COURT NURSING & RESIDEN,25/10/2016,"1,654.07",73373-RESIDENTIAL & NURSING CARE PLACEMENTS,OP COMMISSIONING,Third Party Payments,Revenue
Walsall Council,http://opendatacommunities.org/id/metropolitan-district-council/walsall,WC73-35,31/10/2016,,Social Care & Inclusion,ABBEY COURT NURSING & RESIDEN,25/10/2016,"1,654.07",73373-RESIDENTIAL & NURSING CARE PLACEMENTS,OP COMMISSIONING,Third Party Payments,Revenue
Walsall Council,http://opendatacommunities.org/id/metropolitan-district-council/walsall,WC73-36,31/10/2016,,Social Care & Inclusion,ABBEY COURT NURSING & RESIDEN,25/10/2016,"1,654.07",73373-RESIDENTIAL & NURSING CARE PLACEMENTS,OP COMMISSIONING,Third Party Payments,Revenue
Walsall Council,http://opendatacommunities.org/id/metropolitan-district-council/walsall,WC73-37,31/10/2016,,Social Care & Inclusion,ABBEY COURT NURSING & RESIDEN,25/10/2016,"1,654.07",73373-RESIDENTIAL & NURSING CARE PLACEMENTS,OP COMMISSIONING,Third Party Payments,Revenue
Walsall Council,http://opendatacommunities.org/id/metropolitan-district-council/walsall,WC73-38,31/10/2016,,Social Care & Inclusion,ABBEY COURT NURSING & RESIDEN,25/10/2016,"1,728.77",73373-RESIDENTIAL & NURSING CARE PLACEMENTS,OP COMMISSIONING,Third Party Payments,Revenue
Walsall Council,http://opendatacommunities.org/id/metropolitan-district-council/walsall,WC73-39,31/10/2016,,Social Care & Inclusion,ABBEY COURT NURSING & RESIDEN,25/10/2016,"1,728.77",73373-RESIDENTIAL & NURSING CARE PLACEMENTS,OP COMMISSIONING,Third Party Payments,Revenue
Walsall Council,http://opendatacommunities.org/id/metropolitan-district-council/walsall,WC73-40,31/10/2016,,Social Care & Inclusion,ABBEY COURT NURSING & RESIDEN,25/10/2016,"1,786.40",73373-RESIDENTIAL & NURSING CARE PLACEMENTS,OP COMMISSIONING,Third Party Payments,Revenue
Walsall Council,http://opendatacommunities.org/id/metropolitan-district-council/walsall,WC73-41,31/10/2016,,Social Care & Inclusion,ABBEY COURT NURSING & RESIDEN,25/10/2016,"1,786.40",73373-RESIDENTIAL & NURSING CARE PLACEMENTS,OP COMMISSIONING,Third Party Payments,Revenue
Walsall Council,http://opendatacommunities.org/id/metropolitan-district-council/walsall,WC73-42,31/10/2016,,Social Care & Inclusion,ABBEY COURT NURSING & RESIDEN,25/10/2016,"1,786.40",73373-RESIDENTIAL & NURSING CARE PLACEMENTS,OP COMMISSIONING,Third Party Payments,Revenue
Walsall Council,http://opendatacommunities.org/id/metropolitan-district-council/walsall,WC73-43,31/10/2016,,Social Care & Inclusion,ABBEY COURT NURSING & RESIDEN,13/10/2016,"3,818.43",73373-RESIDENTIAL & NURSING CARE PLACEMENTS,MH COMMISSIONING,Third Party Payments,Revenue
Walsall Council,http://opendatacommunities.org/id/metropolitan-district-council/walsall,WC73-44,31/10/2016,,Social Care & Inclusion,ABBEY HEALTHCARE HOMES LTD,13/10/2016,"1,699.16",73373-RESIDENTIAL & NURSING CARE PLACEMENTS,PD COMMISSIONING,Third Party Payments,Revenue
Walsall Council,http://opendatacommunities.org/id/metropolitan-district-council/walsall,WC73-45,31/10/2016,,Social Care & Inclusion,ABBEY HEALTHCARE HOMES LTD,13/10/2016,"2,294.08",73373-RESIDENTIAL & NURSING CARE PLACEMENTS,PD COMMISSIONING,Third Party Payments,Revenue
Walsall Council,http://opendatacommunities.org/id/metropolitan-district-council/walsall,WC73-46,31/10/2016,,Childrens,ABC FOSTERING,13/10/2016,"2,779.71",74037-INDEPENDENT FOSTER CARE-OTH AGENCY PROVISION,EXTERNAL FOSTER CARE PROVISION,Third Party Payments,Revenue
Walsall Council,http://opendatacommunities.org/id/metropolitan-district-council/walsall,WC73-47,31/10/2016,,Childrens,ABC FOSTERING,13/10/2016,"2,823.42",74037-INDEPENDENT FOSTER CARE-OTH AGENCY PROVISION,EXTERNAL FOSTER CARE PROVISION,Third Party Payments,Revenue
Walsall Council,http://opendatacommunities.org/id/metropolitan-district-council/walsall,WC73-48,31/10/2016,,Childrens,ABC FOSTERING,13/10/2016,"2,823.42",74037-INDEPENDENT FOSTER CARE-OTH AGENCY PROVISION,EXTERNAL FOSTER CARE PROVISION,Third Party Payments,Revenue
Walsall Council,http://opendatacommunities.org/id/metropolitan-district-council/walsall,WC73-49,31/10/2016,,Childrens,ABC FOSTERING,13/10/2016,"2,900.57",74037-INDEPENDENT FOSTER CARE-OTH AGENCY PROVISION,EXTERNAL FOSTER CARE PROVISION,Third Party Payments,Revenue
Walsall Council,http://opendatacommunities.org/id/metropolitan-district-council/walsall,WC73-50,31/10/2016,,Childrens,ABC FOSTERING,13/10/2016,"2,900.57",74037-INDEPENDENT FOSTER CARE-OTH AGENCY PROVISION,EXTERNAL FOSTER CARE PROVISION,Third Party Payments,Revenue
Walsall Council,http://opendatacommunities.org/id/metropolitan-district-council/walsall,WC73-51,31/10/2016,,Childrens,ABC FOSTERING,13/10/2016,"3,008.57",74037-INDEPENDENT FOSTER CARE-OTH AGENCY PROVISION,EXTERNAL FOSTER CARE PROVISION,Third Party Payments,Revenue
Walsall Council,http://opendatacommunities.org/id/metropolitan-district-council/walsall,WC73-52,31/10/2016,,Childrens,ABC FOSTERING,13/10/2016,"3,199.89",74037-INDEPENDENT FOSTER CARE-OTH AGENCY PROVISION,EXTERNAL FOSTER CARE PROVISION,Third Party Payments,Revenue
Walsall Council,http://opendatacommunities.org/id/metropolitan-district-council/walsall,WC73-53,31/10/2016,,Childrens,ABC FOSTERING,13/10/2016,"3,199.89",74037-INDEPENDENT FOSTER CARE-OTH AGENCY PROVISION,EXTERNAL FOSTER CARE PROVISION,Third Party Payments,Revenue
Walsall Council,http://opendatacommunities.org/id/metropolitan-district-council/walsall,WC73-54,31/10/2016,,Social Care & Inclusion,REDACTED,10/10/2016,"1,557.68",76422-DIRECT PAYMENTS TO SOCIAL SERVICES CLIENTS,LD COMMISSIONING,Transfer Payments,Revenue
Walsall Council,http://opendatacommunities.org/id/metropolitan-district-council/walsall,WC73-55,31/10/2016,,Change and Governance,ABEL ALARM CO LTD,07/10/2016,208.94,73002-SECURITY-PRIV CONTRACTOR FEES,CENTRALISED MAINTENANCE,Third Party Payments,Revenue
Walsall Council,http://opendatacommunities.org/id/metropolitan-district-council/walsall,WC73-56,31/10/2016,,Change and Governance,ABEL ALARM CO LTD,25/10/2016,357,63224-SECURITY ALARMS-NEW/REP & MAINT-PAYMENT TO CONTRACTOR,ACCOMMODATION SERVICES MANAGEMENT,Premises,Revenue
Walsall Council,http://opendatacommunities.org/id/metropolitan-district-council/walsall,WC73-57,31/10/2016,,Economy & Environment,ABEL ALARM CO LTD,12/10/2016,976.6,60006-NEW-FURNITURE & EQUIPMENT,STREETLY CREMATORIUM,Supplies & Services,Revenue
Walsall Council,http://opendatacommunities.org/id/metropolitan-district-council/walsall,WC73-58,31/10/2016,,Social Care & Inclusion,REDACTED,10/10/2016,"2,357.99",76422-DIRECT PAYMENTS TO SOCIAL SERVICES CLIENTS,LD COMMISSIONING,Transfer Payments,Revenue
Walsall Council,http://opendatacommunities.org/id/metropolitan-district-council/walsall,WC73-59,31/10/2016,,Social Care & Inclusion,ACCORD HOUSING ASSOCIATION LTD#135,04/10/2016,362.13,73372-DOMICILIARY CARE,OP COMMISSIONING,Third Party Payments,Revenue
Walsall Council,http://opendatacommunities.org/id/metropolitan-district-council/walsall,WC73-60,31/10/2016,,Social Care & Inclusion,ACCORD HOUSING ASSOCIATION LTD#135,04/10/2016,362.13,73372-DOMICILIARY CARE,OP COMMISSIONING,Third Party Payments,Revenue
Walsall Council,http://opendatacommunities.org/id/metropolitan-district-council/walsall,WC73-61,31/10/2016,,Social Care & Inclusion,ACCORD HOUSING ASSOCIATION LTD#135,04/10/2016,531.32,73372-DOMICILIARY CARE,OP COMMISSIONING,Third Party Payments,Revenue
Walsall Council,http://opendatacommunities.org/id/metropolitan-district-council/walsall,WC73-62,31/10/2016,,Social Care & Inclusion,ACCORD HOUSING ASSOCIATION LTD#135,24/10/2016,578.25,73374-SUPPORTED & OTHER ACCOMMODATION,LD COMMISSIONING,Third Party Payments,Revenue
Walsall Council,http://opendatacommunities.org/id/metropolitan-district-council/walsall,WC73-63,31/10/2016,,Social Care & Inclusion,ACCORD HOUSING ASSOCIATION LTD#135,13/10/2016,"4,591.84",73373-RESIDENTIAL & NURSING CARE PLACEMENTS,LD COMMISSIONING,Third Party Payments,Revenue
Walsall Council,http://opendatacommunities.org/id/metropolitan-district-council/walsall,WC73-64,31/10/2016,,Social Care & Inclusion,ACCORD HOUSING ASSOCIATION LTD#135,13/10/2016,"4,591.84",73373-RESIDENTIAL & NURSING CARE PLACEMENTS,LD COMMISSIONING,Third Party Payments,Revenue
Walsall Council,http://opendatacommunities.org/id/metropolitan-district-council/walsall,WC73-65,31/10/2016,,Social Care & Inclusion,ACCORD HOUSING ASSOCIATION LTD#135,13/10/2016,"4,591.84",73373-RESIDENTIAL & NURSING CARE PLACEMENTS,LD COMMISSIONING,Third Party Payments,Revenue
Walsall Council,http://opendatacommunities.org/id/metropolitan-district-council/walsall,WC73-66,31/10/2016,,Social Care & Inclusion,ACCORD HOUSING ASSOCIATION LTD#135,13/10/2016,"4,591.84",73373-RESIDENTIAL & NURSING CARE PLACEMENTS,LD COMMISSIONING,Third Party Payments,Revenue
Walsall Council,http://opendatacommunities.org/id/metropolitan-district-council/walsall,WC73-67,31/10/2016,,Social Care & Inclusion,ACCORD HOUSING ASSOCIATION LTD#135,13/10/2016,"4,591.84",73373-RESIDENTIAL & NURSING CARE PLACEMENTS,LD COMMISSIONING,Third Party Payments,Revenue
Walsall Council,http://opendatacommunities.org/id/metropolitan-district-council/walsall,WC73-68,31/10/2016,,Social Care & Inclusion,ACCORD HOUSING ASSOCIATION LTD#135,13/10/2016,"4,744.90",73373-RESIDENTIAL & NURSING CARE PLACEMENTS,LD COMMISSIONING,Third Party Payments,Revenue
Walsall Council,http://opendatacommunities.org/id/metropolitan-district-council/walsall,WC73-69,31/10/2016,,Social Care & Inclusion,ACCORD HOUSING ASSOCIATION LTD#135,13/10/2016,"6,408.73",73373-RESIDENTIAL & NURSING CARE PLACEMENTS,LD COMMISSIONING,Third Party Payments,Revenue
Walsall Council,http://opendatacommunities.org/id/metropolitan-district-council/walsall,WC73-70,31/10/2016,,Social Care & Inclusion,ACCORD HOUSING ASSOCIATION LTD#135,13/10/2016,"6,408.73",73373-RESIDENTIAL & NURSING CARE PLACEMENTS,LD COMMISSIONING,Third Party Payments,Revenue
Walsall Council,http://opendatacommunities.org/id/metropolitan-district-council/walsall,WC73-71,31/10/2016,,Social Care & Inclusion,ACCORD HOUSING ASSOCIATION LTD#135,13/10/2016,"6,408.73",73373-RESIDENTIAL & NURSING CARE PLACEMENTS,LD COMMISSIONING,Third Party Payments,Revenue
Walsall Council,http://opendatacommunities.org/id/metropolitan-district-council/walsall,WC73-72,31/10/2016,,Social Care & Inclusion,ACCORD HOUSING ASSOCIATION LTD#135,12/10/2016,"9,138.80",73372-DOMICILIARY CARE,OP COMMISSIONING,Third Party Payments,Revenue
Walsall Council,http://opendatacommunities.org/id/metropolitan-district-council/walsall,WC73-73,31/10/2016,,Social Care & Inclusion,ACCORD HOUSING ASSOCIATION LTD#135,12/10/2016,"31,390.07",73372-DOMICILIARY CARE,OP COMMISSIONING,Third Party Payments,Revenue
Walsall Council,http://opendatacommunities.org/id/metropolitan-district-council/walsall,WC73-74,31/10/2016,,Social Care & Inclusion,ACCORD HOUSING ASSOCIATION LTD#135,01/10/2016,"59,721.51",73365-BLOCK GROSS-SUPPORTING PEOPLE,EXTERNAL SP,Third Party Payments,Revenue
Walsall Council,http://opendatacommunities.org/id/metropolitan-district-council/walsall,WC73-75,31/10/2016,,Economy & Environment,ACCORD HOUSING ASSOCIATION LTD#135,11/10/2016,"122,590.80",66500-GRANTS TO OTHER ORGS,CITY DEAL WELFARE PILOT,Third Party Payments,Revenue
Walsall Council,http://opendatacommunities.org/id/metropolitan-district-council/walsall,WC73-76,31/10/2016,,Social Care & Inclusion,ACE CARE AGENCY,21/10/2016,647.52,73372-DOMICILIARY CARE,MH COMMISSIONING,Third Party Payments,Revenue
Walsall Council,http://opendatacommunities.org/id/metropolitan-district-council/walsall,WC73-77,31/10/2016,,Childrens,ACE RADIO CARS,11/10/2016,"1,757.16",52000-WITH DRIVER-HIRE OF VEHICLES,SCHOOL TRANSPORT,Transport,Revenue
Walsall Council,http://opendatacommunities.org/id/metropolitan-district-council/walsall,WC73-78,31/10/2016,,Social Care & Inclusion,ACEPAY LTD (COTTAGE NUR HOME),25/10/2016,"2,274.80",73373-RESIDENTIAL & NURSING CARE PLACEMENTS,OP COMMISSIONING,Third Party Payments,Revenue
Walsall Council,http://opendatacommunities.org/id/metropolitan-district-council/walsall,WC73-79,31/10/2016,,Social Care & Inclusion,ACEPAY LTD (COTTAGE NUR HOME),25/10/2016,"2,274.80",73373-RESIDENTIAL & NURSING CARE PLACEMENTS,OP COMMISSIONING,Third Party Payments,Revenue
Walsall Council,http://opendatacommunities.org/id/metropolitan-district-council/walsall,WC73-80,31/10/2016,,Social Care & Inclusion,ACEPAY LTD (COTTAGE NUR HOME),25/10/2016,"2,274.80",73373-RESIDENTIAL & NURSING CARE PLACEMENTS,OP COMMISSIONING,Third Party Payments,Revenue
Walsall Council,http://opendatacommunities.org/id/metropolitan-district-council/walsall,WC73-81,31/10/2016,,Social Care & Inclusion,ACEPAY LTD (COTTAGE NUR HOME),25/10/2016,"2,320.80",73373-RESIDENTIAL & NURSING CARE PLACEMENTS,OP COMMISSIONING,Third Party Payments,Revenue
Walsall Council,http://opendatacommunities.org/id/metropolitan-district-council/walsall,WC73-82,31/10/2016,,Social Care & Inclusion,ACEPAY LTD (COTTAGE NUR HOME),25/10/2016,"2,320.80",73373-RESIDENTIAL & NURSING CARE PLACEMENTS,OP COMMISSIONING,Third Party Payments,Revenue
Walsall Council,http://opendatacommunities.org/id/metropolitan-district-council/walsall,WC73-83,31/10/2016,,Social Care & Inclusion,ACEPAY LTD (COTTAGE NUR HOME),25/10/2016,"2,320.80",73373-RESIDENTIAL & NURSING CARE PLACEMENTS,OP COMMISSIONING,Third Party Payments,Revenue
Walsall Council,http://opendatacommunities.org/id/metropolitan-district-council/walsall,WC73-84,31/10/2016,,Social Care & Inclusion,ACORN CARE LTD,25/10/2016,"15,174.19",73373-RESIDENTIAL & NURSING CARE PLACEMENTS,LD COMMISSIONING,Third Party Payments,Revenue
Walsall Council,http://opendatacommunities.org/id/metropolitan-district-council/walsall,WC73-85,31/10/2016,,Social Care & Inclusion,ACORN REST HOME,25/10/2016,"1,620.00",73373-RESIDENTIAL & NURSING CARE PLACEMENTS,OP COMMISSIONING,Third Party Payments,Revenue
Walsall Council,http://opendatacommunities.org/id/metropolitan-district-council/walsall,WC73-86,31/10/2016,,Social Care & Inclusion,ACTON BANKS LTD,06/10/2016,591.78,34305-AGENCY STAFF-EMPLOYEES,REABLEMENT TEAM - HOLLY BANK,Employees,Revenue
Walsall Council,http://opendatacommunities.org/id/metropolitan-district-council/walsall,WC73-87,31/10/2016,,Social Care & Inclusion,ACTON BANKS LTD,24/10/2016,704.97,34305-AGENCY STAFF-EMPLOYEES,REABLEMENT TEAM - HOLLY BANK,Employees,Revenue
Walsall Council,http://opendatacommunities.org/id/metropolitan-district-council/walsall,WC73-88,31/10/2016,,Social Care & Inclusion,ACTON BANKS LTD,06/10/2016,756.57,34305-AGENCY STAFF-EMPLOYEES,REABLEMENT TEAM - HOLLY BANK,Employees,Revenue
Walsall Council,http://opendatacommunities.org/id/metropolitan-district-council/walsall,WC73-89,31/10/2016,,Social Care & Inclusion,ACTON BANKS LTD,20/10/2016,759.48,34305-AGENCY STAFF-EMPLOYEES,REABLEMENT TEAM - HOLLY BANK,Employees,Revenue
Walsall Council,http://opendatacommunities.org/id/metropolitan-district-council/walsall,WC73-90,31/10/2016,,Economy & Environment,REDACTED,21/10/2016,280,63239-EXTERNAL WORKS-PAYMENT TO CONTRACTOR,NAG - TEMPORARY EXHIBITIONS,Third Party Payments,Revenue
Walsall Council,http://opendatacommunities.org/id/metropolitan-district-council/walsall,WC73-91,31/10/2016,,Economy & Environment,REDACTED,21/10/2016,375,63239-EXTERNAL WORKS-PAYMENT TO CONTRACTOR,NAG - EXTERNALLY FUNDED PROJECTS,Third Party Payments,Revenue
Walsall Council,http://opendatacommunities.org/id/metropolitan-district-council/walsall,WC73-92,31/10/2016,,Economy & Environment,REDACTED,24/10/2016,528.12,63239-EXTERNAL WORKS-PAYMENT TO CONTRACTOR,NAG - TEMPORARY EXHIBITIONS,Third Party Payments,Revenue
Walsall Council,http://opendatacommunities.org/id/metropolitan-district-council/walsall,WC73-93,31/10/2016,,Economy & Environment,REDACTED,21/10/2016,"1,112.50",63239-EXTERNAL WORKS-PAYMENT TO CONTRACTOR,NAG - TEMPORARY EXHIBITIONS,Third Party Payments,Revenue
Walsall Council,http://opendatacommunities.org/id/metropolitan-district-council/walsall,WC73-94,31/10/2016,,Childrens,REDACTED,10/10/2016,487.6,76422-DIRECT PAYMENTS TO SOCIAL SERVICES CLIENTS,FAMILY SUPPORT - DIRECT PAYMENTS,Transfer Payments,Revenue
Walsall Council,http://opendatacommunities.org/id/metropolitan-district-council/walsall,WC73-95,31/10/2016,,Social Care & Inclusion,REDACTED,10/10/2016,554.56,76422-DIRECT PAYMENTS TO SOCIAL SERVICES CLIENTS,LD COMMISSIONING,Transfer Payments,Revenue
Walsall Council,http://opendatacommunities.org/id/metropolitan-district-council/walsall,WC73-96,31/10/2016,,Social Care & Inclusion,REDACTED,10/10/2016,964,76422-DIRECT PAYMENTS TO SOCIAL SERVICES CLIENTS,OP COMMISSIONING,Transfer Payments,Revenue
Walsall Council,http://opendatacommunities.org/id/metropolitan-district-council/walsall,WC73-97,31/10/2016,,Social Care & Inclusion,ADMIRAL SELF STORAGE LTD,05/10/2016,-210.99,60514-MATERIALS TO STORES,REVIEW TEAM,Supplies & Services,Revenue
Walsall Council,http://opendatacommunities.org/id/metropolitan-district-council/walsall,WC73-98,31/10/2016,,Social Care & Inclusion,ADMIRAL SELF STORAGE LTD,05/10/2016,228.78,60514-MATERIALS TO STORES,REVIEW TEAM,Supplies & Services,Revenue
Walsall Council,http://opendatacommunities.org/id/metropolitan-district-council/walsall,WC73-99,31/10/2016,,Change and Governance,ADMIRAL SELF STORAGE LTD,20/10/2016,419.32,63000-PROFESSIONAL FEES AND SERVICES,FINANCE ADMIN,Supplies & Services,Revenue
Walsall Council,http://opendatacommunities.org/id/metropolitan-district-council/walsall,WC73-100,31/10/2016,,Change and Governance,ADMIRAL SELF STORAGE LTD,26/10/2016,419.32,63000-PROFESSIONAL FEES AND SERVICES,FINANCE ADMIN,Supplies & Services,Revenue
Walsall Council,http://opendatacommunities.org/id/metropolitan-district-council/walsall,WC73-101,31/10/2016,,Change and Governance,ADMIRAL SELF STORAGE LTD,26/10/2016,419.32,63000-PROFESSIONAL FEES AND SERVICES,FINANCE ADMIN,Supplies & Services,Revenue
Walsall Council,http://opendatacommunities.org/id/metropolitan-district-council/walsall,WC73-102,31/10/2016,,Childrens,REDACTED,24/10/2016,694.24,74006-HOLIDAY/CHRISTMAS ALLOWANCE-FOSTER CARERS-OTH AGENCY PROVISION,INTERNAL FOSTER CARE PROVISION,Third Party Payments,Revenue
Walsall Council,http://opendatacommunities.org/id/metropolitan-district-council/walsall,WC73-103,31/10/2016,,Economy & Environment,ADS ELECTRICAL & HIGHWAY SERVICES LTD,26/10/2016,"7,407.50",60534-VEHICLE TESTING STATION-MATERIALS,GROUNDS,Supplies & Services,Revenue
Walsall Council,http://opendatacommunities.org/id/metropolitan-district-council/walsall,WC73-104,31/10/2016,,Social Care & Inclusion,ADVANCE HEALTH CARE (UK) LTD,17/10/2016,"1,490.15",73025-PROFESSIONAL SERVICES-PRIV CONTRACTOR & OTHER AGENCIES,COMMUNITY INTERMEDIATE CARE,Third Party Payments,Revenue
Walsall Council,http://opendatacommunities.org/id/metropolitan-district-council/walsall,WC73-105,31/10/2016,,Social Care & Inclusion,ADVANCE HEALTH CARE (UK) LTD,24/10/2016,"1,732.50",73025-PROFESSIONAL SERVICES-PRIV CONTRACTOR & OTHER AGENCIES,COMMUNITY INTERMEDIATE CARE,Third Party Payments,Revenue
Walsall Council,http://opendatacommunities.org/id/metropolitan-district-council/walsall,WC73-106,31/10/2016,,Social Care & Inclusion,ADVANCE HEALTH CARE (UK) LTD,24/10/2016,"1,755.43",73025-PROFESSIONAL SERVICES-PRIV CONTRACTOR & OTHER AGENCIES,COMMUNITY INTERMEDIATE CARE,Third Party Payments,Revenue
Walsall Council,http://opendatacommunities.org/id/metropolitan-district-council/walsall,WC73-107,31/10/2016,,Social Care & Inclusion,ADVANCE HEALTH CARE (UK) LTD,05/10/2016,"2,236.85",73025-PROFESSIONAL SERVICES-PRIV CONTRACTOR & OTHER AGENCIES,COMMUNITY INTERMEDIATE CARE,Third Party Payments,Revenue
Walsall Council,http://opendatacommunities.org/id/metropolitan-district-council/walsall,WC73-108,31/10/2016,,Social Care & Inclusion,ADVANCE HEALTH CARE (UK) LTD,06/10/2016,"2,335.10",73025-PROFESSIONAL SERVICES-PRIV CONTRACTOR & OTHER AGENCIES,COMMUNITY INTERMEDIATE CARE,Third Party Payments,Revenue
Walsall Council,http://opendatacommunities.org/id/metropolitan-district-council/walsall,WC73-109,31/10/2016,,Social Care & Inclusion,ADVANCE HEALTH CARE (UK) LTD,05/10/2016,"2,544.70",73025-PROFESSIONAL SERVICES-PRIV CONTRACTOR & OTHER AGENCIES,COMMUNITY INTERMEDIATE CARE,Third Party Payments,Revenue
Walsall Council,http://opendatacommunities.org/id/metropolitan-district-council/walsall,WC73-110,31/10/2016,,Social Care & Inclusion,ADVANCE HEALTH CARE (UK) LTD,14/10/2016,"3,275.00",73025-PROFESSIONAL SERVICES-PRIV CONTRACTOR & OTHER AGENCIES,COMMUNITY INTERMEDIATE CARE,Third Party Payments,Revenue
Walsall Council,http://opendatacommunities.org/id/metropolitan-district-council/walsall,WC73-111,31/10/2016,,Social Care & Inclusion,ADVANCE HEALTH CARE (UK) LTD,17/10/2016,"3,294.65",73025-PROFESSIONAL SERVICES-PRIV CONTRACTOR & OTHER AGENCIES,COMMUNITY INTERMEDIATE CARE,Third Party Payments,Revenue
Walsall Council,http://opendatacommunities.org/id/metropolitan-district-council/walsall,WC73-112,31/10/2016,,Social Care & Inclusion,ADVANCE HEALTH CARE (UK) LTD,05/10/2016,"3,419.10",73025-PROFESSIONAL SERVICES-PRIV CONTRACTOR & OTHER AGENCIES,COMMUNITY INTERMEDIATE CARE,Third Party Payments,Revenue
Walsall Council,http://opendatacommunities.org/id/metropolitan-district-council/walsall,WC73-113,31/10/2016,,Social Care & Inclusion,ADVANCE HEALTH CARE (UK) LTD,01/10/2016,"3,936.55",73025-PROFESSIONAL SERVICES-PRIV CONTRACTOR & OTHER AGENCIES,COMMUNITY INTERMEDIATE CARE,Third Party Payments,Revenue
Walsall Council,http://opendatacommunities.org/id/metropolitan-district-council/walsall,WC73-114,31/10/2016,,Social Care & Inclusion,ADVANCE HEALTH CARE (UK) LTD,14/10/2016,"4,155.98",73025-PROFESSIONAL SERVICES-PRIV CONTRACTOR & OTHER AGENCIES,COMMUNITY INTERMEDIATE CARE,Third Party Payments,Revenue
Walsall Council,http://opendatacommunities.org/id/metropolitan-district-council/walsall,WC73-115,31/10/2016,,Social Care & Inclusion,ADVANCE HEALTH CARE (UK) LTD,12/10/2016,"47,616.67",73372-DOMICILIARY CARE,OP COMMISSIONING,Third Party Payments,Revenue
Walsall Council,http://opendatacommunities.org/id/metropolitan-district-council/walsall,WC73-116,31/10/2016,,Change and Governance,ADVANTAGE RESTORATION LTD,10/10/2016,"2,326.02","40000-REPAIRS,ALTERATIONS & MAINTENANCE-PREM",RECHARGEABLE - SCHOOLS MAINTENANCE,Premises,Revenue
Walsall Council,http://opendatacommunities.org/id/metropolitan-district-council/walsall,WC73-117,31/10/2016,,Childrens,ADVENTURELAND DAY NURSERY,01/10/2016,252,63120-CRECHE FACILITIES-SERVICES-FEES,BUDDY COSTS 0-5,Supplies & Services,Revenue
Walsall Council,http://opendatacommunities.org/id/metropolitan-district-council/walsall,WC73-118,31/10/2016,,Childrens,ADVENTURELAND DAY NURSERY,03/10/2016,575,63120-CRECHE FACILITIES-SERVICES-FEES,CENTRAL & EAST LOCALITY - SCHOOL READY,Supplies & Services,Revenue
Walsall Council,http://opendatacommunities.org/id/metropolitan-district-council/walsall,WC73-119,31/10/2016,,Social Care & Inclusion,ADVOCACY MATTERS LIMITED,03/10/2016,"22,560.75",70000-SOCIAL SERVICES-FEES TO VOLUNTARY BODIES,EXTERNAL SP,Third Party Payments,Revenue
Walsall Council,http://opendatacommunities.org/id/metropolitan-district-council/walsall,WC73-120,31/10/2016,,Economy & Environment,AEBI SCHMIDT UK LIMITED,18/10/2016,209.98,60500-GENERAL MATERIALS,FLEET,Supplies & Services,Revenue
Walsall Council,http://opendatacommunities.org/id/metropolitan-district-council/walsall,WC73-121,31/10/2016,,Economy & Environment,AECOM LIMITED,14/10/2016,722.41,01001-OTHER CONSULTANTS FEES,CFR 876 DARLASTON CDMC,Capital,Capital
Walsall Council,http://opendatacommunities.org/id/metropolitan-district-council/walsall,WC73-122,31/10/2016,,Economy & Environment,AECOM LIMITED,07/10/2016,"8,973.00",01001-OTHER CONSULTANTS FEES,CFR 876 DARLASTON DSDA,Capital,Capital
Walsall Council,http://opendatacommunities.org/id/metropolitan-district-council/walsall,WC73-123,31/10/2016,,Economy & Environment,AECOM LIMITED,26/10/2016,"26,614.69",01002-PROJECT FEES,CFR 1072 M6 JUNCTION 10,Capital,Capital
Walsall Council,http://opendatacommunities.org/id/metropolitan-district-council/walsall,WC73-124,31/10/2016,,Childrens,AFTER ADOPTION,01/10/2016,"5,000.00",63000-PROFESSIONAL FEES AND SERVICES,ADOPTION TEAM,Supplies & Services,Revenue
Walsall Council,http://opendatacommunities.org/id/metropolitan-district-council/walsall,WC73-125,31/10/2016,,Childrens,AFTER ADOPTION,01/10/2016,"8,450.00",73025-PROFESSIONAL SERVICES-PRIV CONTRACTOR & OTHER AGENCIES,ADOPTION TEAM,Third Party Payments,Revenue
Walsall Council,http://opendatacommunities.org/id/metropolitan-district-council/walsall,WC73-126,31/10/2016,,Economy & Environment,AGE UK WALSALL,05/10/2016,"11,250.00",63000-PROFESSIONAL FEES AND SERVICES,FALLS PREVENTION,Supplies & Services,Revenue
Walsall Council,http://opendatacommunities.org/id/metropolitan-district-council/walsall,WC73-127,31/10/2016,,Social Care & Inclusion,REDACTED,10/10/2016,"1,882.00",76422-DIRECT PAYMENTS TO SOCIAL SERVICES CLIENTS,LD COMMISSIONING,Transfer Payments,Revenue
Walsall Council,http://opendatacommunities.org/id/metropolitan-district-council/walsall,WC73-128,31/10/2016,,Social Care & Inclusion,REDACTED,10/10/2016,914.2,76422-DIRECT PAYMENTS TO SOCIAL SERVICES CLIENTS,OP COMMISSIONING,Transfer Payments,Revenue
Walsall Council,http://opendatacommunities.org/id/metropolitan-district-council/walsall,WC73-129,31/10/2016,,Childrens,AJK TRAVEL,06/10/2016,"16,142.32",52000-WITH DRIVER-HIRE OF VEHICLES,SCHOOL TRANSPORT,Transport,Revenue
Walsall Council,http://opendatacommunities.org/id/metropolitan-district-council/walsall,WC73-130,31/10/2016,,Childrens,ALAN CRITCHLEY ASSOCIATES,04/10/2016,"4,816.00",63102-CONSULTANTS FEES - CORPORATE,SAFEGUARDING BOARD,Supplies & Services,Revenue
Walsall Council,http://opendatacommunities.org/id/metropolitan-district-council/walsall,WC73-131,31/10/2016,,Economy & Environment,ALBEMARLE,11/10/2016,800,63000-PROFESSIONAL FEES AND SERVICES,FOREST ARTS CENTRE,Supplies & Services,Revenue
Walsall Council,http://opendatacommunities.org/id/metropolitan-district-council/walsall,WC73-132,31/10/2016,,Economy & Environment,ALBERT JAGGER LTD,01/10/2016,357.36,60514-MATERIALS TO STORES,FLEET PARTS STOCK ACCOUNT,Supplies & Services,Revenue
Walsall Council,http://opendatacommunities.org/id/metropolitan-district-council/walsall,WC73-133,31/10/2016,,Economy & Environment,ALDERBROOK HEALTHCARE LTD,26/10/2016,"1,267.00",63000-PROFESSIONAL FEES AND SERVICES,CORONERS SERVICE,Supplies & Services,Revenue
Walsall Council,http://opendatacommunities.org/id/metropolitan-district-council/walsall,WC73-134,31/10/2016,,Economy & Environment,ALDERCROSS LIMITED,12/10/2016,450,30030-EXTERNAL TRAINING,REGENERATION MANAGEMENT,Employees,Revenue
Walsall Council,http://opendatacommunities.org/id/metropolitan-district-council/walsall,WC73-135,31/10/2016,,Social Care & Inclusion,ALDERGROVE MANOR LTD,13/10/2016,"1,839.68",73373-RESIDENTIAL & NURSING CARE PLACEMENTS,MH COMMISSIONING,Third Party Payments,Revenue
Walsall Council,http://opendatacommunities.org/id/metropolitan-district-council/walsall,WC73-136,31/10/2016,,Social Care & Inclusion,REDACTED,10/10/2016,"1,204.00",76422-DIRECT PAYMENTS TO SOCIAL SERVICES CLIENTS,PD COMMISSIONING,Transfer Payments,Revenue
Walsall Council,http://opendatacommunities.org/id/metropolitan-district-council/walsall,WC73-137,31/10/2016,,Childrens,REDACTED,10/10/2016,582.66,76422-DIRECT PAYMENTS TO SOCIAL SERVICES CLIENTS,FAMILY SUPPORT - DIRECT PAYMENTS,Transfer Payments,Revenue
Walsall Council,http://opendatacommunities.org/id/metropolitan-district-council/walsall,WC73-138,31/10/2016,,Social Care & Inclusion,REDACTED,10/10/2016,898,76422-DIRECT PAYMENTS TO SOCIAL SERVICES CLIENTS,PD COMMISSIONING,Transfer Payments,Revenue
Walsall Council,http://opendatacommunities.org/id/metropolitan-district-council/walsall,WC73-139,31/10/2016,,Social Care & Inclusion,REDACTED,10/10/2016,612,76422-DIRECT PAYMENTS TO SOCIAL SERVICES CLIENTS,OP COMMISSIONING,Transfer Payments,Revenue
Walsall Council,http://opendatacommunities.org/id/metropolitan-district-council/walsall,WC73-140,31/10/2016,,Childrens,REDACTED,10/10/2016,906.76,62515-MISCELLANEOUS SUPPLIES,INTERNAL FOSTER CARE PROVISION,Supplies & Services,Revenue
Walsall Council,http://opendatacommunities.org/id/metropolitan-district-council/walsall,WC73-141,31/10/2016,,Childrens,REDACTED,10/10/2016,985.76,74006-HOLIDAY/CHRISTMAS ALLOWANCE-FOSTER CARERS-OTH AGENCY PROVISION,INTERNAL FOSTER CARE PROVISION,Third Party Payments,Revenue
Walsall Council,http://opendatacommunities.org/id/metropolitan-district-council/walsall,WC73-142,31/10/2016,,Childrens,REDACTED,24/10/2016,571.44,74006-HOLIDAY/CHRISTMAS ALLOWANCE-FOSTER CARERS-OTH AGENCY PROVISION,INTERNAL FOSTER CARE PROVISION,Third Party Payments,Revenue
Walsall Council,http://opendatacommunities.org/id/metropolitan-district-council/walsall,WC73-143,31/10/2016,,Childrens,REDACTED,24/10/2016,552.96,74006-HOLIDAY/CHRISTMAS ALLOWANCE-FOSTER CARERS-OTH AGENCY PROVISION,INTERNAL FOSTER CARE PROVISION,Third Party Payments,Revenue
Walsall Council,http://opendatacommunities.org/id/metropolitan-district-council/walsall,WC73-144,31/10/2016,,Social Care & Inclusion,ALL SEASONS BOARDING KENNELS & CATTERY,19/10/2016,466.1,73374-SUPPORTED & OTHER ACCOMMODATION,OP COMMISSIONING,Third Party Payments,Revenue
Walsall Council,http://opendatacommunities.org/id/metropolitan-district-council/walsall,WC73-145,31/10/2016,,Social Care & Inclusion,ALMA COURT,25/10/2016,489.04,73373-RESIDENTIAL & NURSING CARE PLACEMENTS,MH COMMISSIONING,Third Party Payments,Revenue
Walsall Council,http://opendatacommunities.org/id/metropolitan-district-council/walsall,WC73-146,31/10/2016,,Social Care & Inclusion,ALMA COURT,25/10/2016,489.04,73373-RESIDENTIAL & NURSING CARE PLACEMENTS,MH COMMISSIONING,Third Party Payments,Revenue
Walsall Council,http://opendatacommunities.org/id/metropolitan-district-council/walsall,WC73-147,31/10/2016,,Social Care & Inclusion,ALMA COURT,25/10/2016,505.34,73373-RESIDENTIAL & NURSING CARE PLACEMENTS,MH COMMISSIONING,Third Party Payments,Revenue
Walsall Council,http://opendatacommunities.org/id/metropolitan-district-council/walsall,WC73-148,31/10/2016,,Social Care & Inclusion,ALMA COURT,25/10/2016,"4,328.11",73373-RESIDENTIAL & NURSING CARE PLACEMENTS,MH COMMISSIONING,Third Party Payments,Revenue
Walsall Council,http://opendatacommunities.org/id/metropolitan-district-council/walsall,WC73-149,31/10/2016,,Social Care & Inclusion,ALMA COURT,04/10/2016,"6,316.87",73373-RESIDENTIAL & NURSING CARE PLACEMENTS,MH COMMISSIONING,Third Party Payments,Revenue
Walsall Council,http://opendatacommunities.org/id/metropolitan-district-council/walsall,WC73-150,31/10/2016,,Social Care & Inclusion,ALMA COURT,04/10/2016,"6,316.87",73373-RESIDENTIAL & NURSING CARE PLACEMENTS,OP COMMISSIONING,Third Party Payments,Revenue
Walsall Council,http://opendatacommunities.org/id/metropolitan-district-council/walsall,WC73-151,31/10/2016,,Social Care & Inclusion,ALMA COURT,25/10/2016,"6,822.21",73373-RESIDENTIAL & NURSING CARE PLACEMENTS,MH COMMISSIONING,Third Party Payments,Revenue
Walsall Council,http://opendatacommunities.org/id/metropolitan-district-council/walsall,WC73-152,31/10/2016,,Childrens,ALPHA HAIR DESIGN ACADEMY,18/10/2016,"2,206.00",66502-TOP UP FUNDING -GRANTS TO SCHOOLS,INDEPENDENT PROVIDERS - POST SCHOOL,Third Party Payments,Revenue
Walsall Council,http://opendatacommunities.org/id/metropolitan-district-council/walsall,WC73-153,31/10/2016,,Childrens,ALPHA HAIR DESIGN ACADEMY,18/10/2016,"2,206.00",66502-TOP UP FUNDING -GRANTS TO SCHOOLS,INDEPENDENT PROVIDERS - POST SCHOOL,Third Party Payments,Revenue
Walsall Council,http://opendatacommunities.org/id/metropolitan-district-council/walsall,WC73-154,31/10/2016,,Childrens,ALPHA HAIR DESIGN ACADEMY,18/10/2016,"2,206.00",66502-TOP UP FUNDING -GRANTS TO SCHOOLS,INDEPENDENT PROVIDERS - POST SCHOOL,Third Party Payments,Revenue
Walsall Council,http://opendatacommunities.org/id/metropolitan-district-council/walsall,WC73-155,31/10/2016,,Social Care & Inclusion,ALPHA HEALTH CARE LTD,13/10/2016,514.29,73373-RESIDENTIAL & NURSING CARE PLACEMENTS,OP COMMISSIONING,Third Party Payments,Revenue
Walsall Council,http://opendatacommunities.org/id/metropolitan-district-council/walsall,WC73-156,31/10/2016,,Social Care & Inclusion,ALPHA HEALTH CARE LTD,25/10/2016,552.86,73373-RESIDENTIAL & NURSING CARE PLACEMENTS,OP COMMISSIONING,Third Party Payments,Revenue
Walsall Council,http://opendatacommunities.org/id/metropolitan-district-council/walsall,WC73-157,31/10/2016,,Social Care & Inclusion,ALPHA HEALTH CARE LTD,25/10/2016,708,73373-RESIDENTIAL & NURSING CARE PLACEMENTS,MH COMMISSIONING,Third Party Payments,Revenue
Walsall Council,http://opendatacommunities.org/id/metropolitan-district-council/walsall,WC73-158,31/10/2016,,Social Care & Inclusion,ALPHA HEALTH CARE LTD,13/10/2016,900,73373-RESIDENTIAL & NURSING CARE PLACEMENTS,OP COMMISSIONING,Third Party Payments,Revenue
Walsall Council,http://opendatacommunities.org/id/metropolitan-district-council/walsall,WC73-159,31/10/2016,,Social Care & Inclusion,ALPHA HEALTH CARE LTD,13/10/2016,"1,620.00",73373-RESIDENTIAL & NURSING CARE PLACEMENTS,OP COMMISSIONING,Third Party Payments,Revenue
Walsall Council,http://opendatacommunities.org/id/metropolitan-district-council/walsall,WC73-160,31/10/2016,,Social Care & Inclusion,ALPHA HEALTH CARE LTD,13/10/2016,"1,620.00",73373-RESIDENTIAL & NURSING CARE PLACEMENTS,OP COMMISSIONING,Third Party Payments,Revenue
Walsall Council,http://opendatacommunities.org/id/metropolitan-district-council/walsall,WC73-161,31/10/2016,,Social Care & Inclusion,ALPHA HEALTH CARE LTD,13/10/2016,"1,620.00",73373-RESIDENTIAL & NURSING CARE PLACEMENTS,OP COMMISSIONING,Third Party Payments,Revenue
Walsall Council,http://opendatacommunities.org/id/metropolitan-district-council/walsall,WC73-162,31/10/2016,,Social Care & Inclusion,ALPHA HEALTH CARE LTD,13/10/2016,"1,620.00",73373-RESIDENTIAL & NURSING CARE PLACEMENTS,OP COMMISSIONING,Third Party Payments,Revenue
Walsall Council,http://opendatacommunities.org/id/metropolitan-district-council/walsall,WC73-163,31/10/2016,,Social Care & Inclusion,ALPHA HEALTH CARE LTD,13/10/2016,"1,620.00",73373-RESIDENTIAL & NURSING CARE PLACEMENTS,OP COMMISSIONING,Third Party Payments,Revenue
Walsall Council,http://opendatacommunities.org/id/metropolitan-district-council/walsall,WC73-164,31/10/2016,,Social Care & Inclusion,ALPHA HEALTH CARE LTD,25/10/2016,"1,620.00",73373-RESIDENTIAL & NURSING CARE PLACEMENTS,OP COMMISSIONING,Third Party Payments,Revenue
Walsall Council,http://opendatacommunities.org/id/metropolitan-district-council/walsall,WC73-165,31/10/2016,,Social Care & Inclusion,ALPHA HEALTH CARE LTD,25/10/2016,"1,620.00",73373-RESIDENTIAL & NURSING CARE PLACEMENTS,OP COMMISSIONING,Third Party Payments,Revenue
Walsall Council,http://opendatacommunities.org/id/metropolitan-district-council/walsall,WC73-166,31/10/2016,,Social Care & Inclusion,ALPHA HEALTH CARE LTD,25/10/2016,"1,620.00",73373-RESIDENTIAL & NURSING CARE PLACEMENTS,OP COMMISSIONING,Third Party Payments,Revenue
Walsall Council,http://opendatacommunities.org/id/metropolitan-district-council/walsall,WC73-167,31/10/2016,,Social Care & Inclusion,ALPHA HEALTH CARE LTD,25/10/2016,"1,620.00",73373-RESIDENTIAL & NURSING CARE PLACEMENTS,OP COMMISSIONING,Third Party Payments,Revenue
Walsall Council,http://opendatacommunities.org/id/metropolitan-district-council/walsall,WC73-168,31/10/2016,,Social Care & Inclusion,ALPHA HEALTH CARE LTD,25/10/2016,"1,620.00",73373-RESIDENTIAL & NURSING CARE PLACEMENTS,OP COMMISSIONING,Third Party Payments,Revenue
Walsall Council,http://opendatacommunities.org/id/metropolitan-district-council/walsall,WC73-169,31/10/2016,,Social Care & Inclusion,ALPHA HEALTH CARE LTD,13/10/2016,"1,649.80",73373-RESIDENTIAL & NURSING CARE PLACEMENTS,OP COMMISSIONING,Third Party Payments,Revenue
Walsall Council,http://opendatacommunities.org/id/metropolitan-district-council/walsall,WC73-170,31/10/2016,,Social Care & Inclusion,ALPHA HEALTH CARE LTD,13/10/2016,"1,649.80",73373-RESIDENTIAL & NURSING CARE PLACEMENTS,OP COMMISSIONING,Third Party Payments,Revenue
Walsall Council,http://opendatacommunities.org/id/metropolitan-district-council/walsall,WC73-171,31/10/2016,,Social Care & Inclusion,ALPHA HEALTH CARE LTD,13/10/2016,"1,649.80",73373-RESIDENTIAL & NURSING CARE PLACEMENTS,OP COMMISSIONING,Third Party Payments,Revenue
Walsall Council,http://opendatacommunities.org/id/metropolitan-district-council/walsall,WC73-172,31/10/2016,,Social Care & Inclusion,ALPHA HEALTH CARE LTD,13/10/2016,"1,649.80",73373-RESIDENTIAL & NURSING CARE PLACEMENTS,OP COMMISSIONING,Third Party Payments,Revenue
Walsall Council,http://opendatacommunities.org/id/metropolitan-district-council/walsall,WC73-173,31/10/2016,,Social Care & Inclusion,ALPHA HEALTH CARE LTD,13/10/2016,"1,649.80",73373-RESIDENTIAL & NURSING CARE PLACEMENTS,OP COMMISSIONING,Third Party Payments,Revenue
Walsall Council,http://opendatacommunities.org/id/metropolitan-district-council/walsall,WC73-174,31/10/2016,,Social Care & Inclusion,ALPHA HEALTH CARE LTD,13/10/2016,"1,649.80",73373-RESIDENTIAL & NURSING CARE PLACEMENTS,OP COMMISSIONING,Third Party Payments,Revenue
Walsall Council,http://opendatacommunities.org/id/metropolitan-district-council/walsall,WC73-175,31/10/2016,,Social Care & Inclusion,ALPHA HEALTH CARE LTD,13/10/2016,"1,649.80",73373-RESIDENTIAL & NURSING CARE PLACEMENTS,OP COMMISSIONING,Third Party Payments,Revenue
Walsall Council,http://opendatacommunities.org/id/metropolitan-district-council/walsall,WC73-176,31/10/2016,,Social Care & Inclusion,ALPHA HEALTH CARE LTD,13/10/2016,"1,649.80",73373-RESIDENTIAL & NURSING CARE PLACEMENTS,OP COMMISSIONING,Third Party Payments,Revenue
Walsall Council,http://opendatacommunities.org/id/metropolitan-district-council/walsall,WC73-177,31/10/2016,,Social Care & Inclusion,ALPHA HEALTH CARE LTD,13/10/2016,"1,649.80",73373-RESIDENTIAL & NURSING CARE PLACEMENTS,OP COMMISSIONING,Third Party Payments,Revenue
Walsall Council,http://opendatacommunities.org/id/metropolitan-district-council/walsall,WC73-178,31/10/2016,,Social Care & Inclusion,ALPHA HEALTH CARE LTD,13/10/2016,"1,649.80",73373-RESIDENTIAL & NURSING CARE PLACEMENTS,OP COMMISSIONING,Third Party Payments,Revenue
Walsall Council,http://opendatacommunities.org/id/metropolitan-district-council/walsall,WC73-179,31/10/2016,,Social Care & Inclusion,ALPHA HEALTH CARE LTD,13/10/2016,"1,649.80",73373-RESIDENTIAL & NURSING CARE PLACEMENTS,OP COMMISSIONING,Third Party Payments,Revenue
Walsall Council,http://opendatacommunities.org/id/metropolitan-district-council/walsall,WC73-180,31/10/2016,,Social Care & Inclusion,ALPHA HEALTH CARE LTD,13/10/2016,"1,649.80",73373-RESIDENTIAL & NURSING CARE PLACEMENTS,MH COMMISSIONING,Third Party Payments,Revenue
Walsall Council,http://opendatacommunities.org/id/metropolitan-district-council/walsall,WC73-181,31/10/2016,,Social Care & Inclusion,ALPHA HEALTH CARE LTD,25/10/2016,"1,649.80",73373-RESIDENTIAL & NURSING CARE PLACEMENTS,OP COMMISSIONING,Third Party Payments,Revenue
Walsall Council,http://opendatacommunities.org/id/metropolitan-district-council/walsall,WC73-182,31/10/2016,,Social Care & Inclusion,ALPHA HEALTH CARE LTD,25/10/2016,"1,649.80",73373-RESIDENTIAL & NURSING CARE PLACEMENTS,OP COMMISSIONING,Third Party Payments,Revenue
Walsall Council,http://opendatacommunities.org/id/metropolitan-district-council/walsall,WC73-183,31/10/2016,,Social Care & Inclusion,ALPHA HEALTH CARE LTD,25/10/2016,"1,649.80",73373-RESIDENTIAL & NURSING CARE PLACEMENTS,OP COMMISSIONING,Third Party Payments,Revenue
Walsall Council,http://opendatacommunities.org/id/metropolitan-district-council/walsall,WC73-184,31/10/2016,,Social Care & Inclusion,ALPHA HEALTH CARE LTD,25/10/2016,"1,649.80",73373-RESIDENTIAL & NURSING CARE PLACEMENTS,OP COMMISSIONING,Third Party Payments,Revenue
Walsall Council,http://opendatacommunities.org/id/metropolitan-district-council/walsall,WC73-185,31/10/2016,,Social Care & Inclusion,ALPHA HEALTH CARE LTD,25/10/2016,"1,649.80",73373-RESIDENTIAL & NURSING CARE PLACEMENTS,OP COMMISSIONING,Third Party Payments,Revenue
Walsall Council,http://opendatacommunities.org/id/metropolitan-district-council/walsall,WC73-186,31/10/2016,,Social Care & Inclusion,ALPHA HEALTH CARE LTD,25/10/2016,"1,649.80",73373-RESIDENTIAL & NURSING CARE PLACEMENTS,OP COMMISSIONING,Third Party Payments,Revenue
Walsall Council,http://opendatacommunities.org/id/metropolitan-district-council/walsall,WC73-187,31/10/2016,,Social Care & Inclusion,ALPHA HEALTH CARE LTD,25/10/2016,"1,649.80",73373-RESIDENTIAL & NURSING CARE PLACEMENTS,MH COMMISSIONING,Third Party Payments,Revenue
Walsall Council,http://opendatacommunities.org/id/metropolitan-district-council/walsall,WC73-188,31/10/2016,,Social Care & Inclusion,ALPHA HEALTH CARE LTD,25/10/2016,"1,649.80",73373-RESIDENTIAL & NURSING CARE PLACEMENTS,OP COMMISSIONING,Third Party Payments,Revenue
Walsall Council,http://opendatacommunities.org/id/metropolitan-district-council/walsall,WC73-189,31/10/2016,,Social Care & Inclusion,ALPHA HEALTH CARE LTD,25/10/2016,"1,649.80",73373-RESIDENTIAL & NURSING CARE PLACEMENTS,OP COMMISSIONING,Third Party Payments,Revenue
Walsall Council,http://opendatacommunities.org/id/metropolitan-district-council/walsall,WC73-190,31/10/2016,,Social Care & Inclusion,ALPHA HEALTH CARE LTD,25/10/2016,"1,649.80",73373-RESIDENTIAL & NURSING CARE PLACEMENTS,OP COMMISSIONING,Third Party Payments,Revenue
Walsall Council,http://opendatacommunities.org/id/metropolitan-district-council/walsall,WC73-191,31/10/2016,,Social Care & Inclusion,ALPHA HEALTH CARE LTD,25/10/2016,"1,649.80",73373-RESIDENTIAL & NURSING CARE PLACEMENTS,OP COMMISSIONING,Third Party Payments,Revenue
Walsall Council,http://opendatacommunities.org/id/metropolitan-district-council/walsall,WC73-192,31/10/2016,,Social Care & Inclusion,ALPHA HEALTH CARE LTD,25/10/2016,"1,649.80",73373-RESIDENTIAL & NURSING CARE PLACEMENTS,MH COMMISSIONING,Third Party Payments,Revenue
Walsall Council,http://opendatacommunities.org/id/metropolitan-district-council/walsall,WC73-193,31/10/2016,,Social Care & Inclusion,ALPHA HEALTH CARE LTD,13/10/2016,"1,650.17",73373-RESIDENTIAL & NURSING CARE PLACEMENTS,MH COMMISSIONING,Third Party Payments,Revenue
Walsall Council,http://opendatacommunities.org/id/metropolitan-district-council/walsall,WC73-194,31/10/2016,,Social Care & Inclusion,ALPHA HEALTH CARE LTD,13/10/2016,"1,753.04",73373-RESIDENTIAL & NURSING CARE PLACEMENTS,OP COMMISSIONING,Third Party Payments,Revenue
Walsall Council,http://opendatacommunities.org/id/metropolitan-district-council/walsall,WC73-195,31/10/2016,,Social Care & Inclusion,ALPHA HEALTH CARE LTD,25/10/2016,"1,753.04",73373-RESIDENTIAL & NURSING CARE PLACEMENTS,OP COMMISSIONING,Third Party Payments,Revenue
Walsall Council,http://opendatacommunities.org/id/metropolitan-district-council/walsall,WC73-196,31/10/2016,,Social Care & Inclusion,ALPHA HEALTH CARE LTD,13/10/2016,"1,800.00",73373-RESIDENTIAL & NURSING CARE PLACEMENTS,OP COMMISSIONING,Third Party Payments,Revenue
Walsall Council,http://opendatacommunities.org/id/metropolitan-district-council/walsall,WC73-197,31/10/2016,,Social Care & Inclusion,ALPHA HEALTH CARE LTD,13/10/2016,"1,800.00",73373-RESIDENTIAL & NURSING CARE PLACEMENTS,OP COMMISSIONING,Third Party Payments,Revenue
Walsall Council,http://opendatacommunities.org/id/metropolitan-district-council/walsall,WC73-198,31/10/2016,,Social Care & Inclusion,ALPHA HEALTH CARE LTD,25/10/2016,"1,800.00",73373-RESIDENTIAL & NURSING CARE PLACEMENTS,OP COMMISSIONING,Third Party Payments,Revenue
Walsall Council,http://opendatacommunities.org/id/metropolitan-district-council/walsall,WC73-199,31/10/2016,,Social Care & Inclusion,ALPHA HEALTH CARE LTD,25/10/2016,"1,800.00",73373-RESIDENTIAL & NURSING CARE PLACEMENTS,OP COMMISSIONING,Third Party Payments,Revenue
Walsall Council,http://opendatacommunities.org/id/metropolitan-district-council/walsall,WC73-200,31/10/2016,,Social Care & Inclusion,ALPHA HEALTH CARE LTD,13/10/2016,"2,095.00",73373-RESIDENTIAL & NURSING CARE PLACEMENTS,OP COMMISSIONING,Third Party Payments,Revenue
Walsall Council,http://opendatacommunities.org/id/metropolitan-district-council/walsall,WC73-201,31/10/2016,,Social Care & Inclusion,ALPHA HEALTH CARE LTD,25/10/2016,"2,095.00",73373-RESIDENTIAL & NURSING CARE PLACEMENTS,OP COMMISSIONING,Third Party Payments,Revenue
Walsall Council,http://opendatacommunities.org/id/metropolitan-district-council/walsall,WC73-202,31/10/2016,,Social Care & Inclusion,ALPHA HEALTH CARE LTD,25/10/2016,"2,095.00",73373-RESIDENTIAL & NURSING CARE PLACEMENTS,OP COMMISSIONING,Third Party Payments,Revenue
Walsall Council,http://opendatacommunities.org/id/metropolitan-district-council/walsall,WC73-203,31/10/2016,,Social Care & Inclusion,ALPHA HEALTH CARE LTD,25/10/2016,"2,095.00",73373-RESIDENTIAL & NURSING CARE PLACEMENTS,OP COMMISSIONING,Third Party Payments,Revenue
Walsall Council,http://opendatacommunities.org/id/metropolitan-district-council/walsall,WC73-204,31/10/2016,,Social Care & Inclusion,ALPHA HEALTH CARE LTD,25/10/2016,"2,326.00",73373-RESIDENTIAL & NURSING CARE PLACEMENTS,MH COMMISSIONING,Third Party Payments,Revenue
Walsall Council,http://opendatacommunities.org/id/metropolitan-district-council/walsall,WC73-205,31/10/2016,,Social Care & Inclusion,ALPHA HEALTH CARE LTD,25/10/2016,"2,326.00",73373-RESIDENTIAL & NURSING CARE PLACEMENTS,MH COMMISSIONING,Third Party Payments,Revenue
Walsall Council,http://opendatacommunities.org/id/metropolitan-district-council/walsall,WC73-206,31/10/2016,,Social Care & Inclusion,ALPHA HEALTH CARE LTD,25/10/2016,"2,635.71",73373-RESIDENTIAL & NURSING CARE PLACEMENTS,OP COMMISSIONING,Third Party Payments,Revenue
Walsall Council,http://opendatacommunities.org/id/metropolitan-district-council/walsall,WC73-207,31/10/2016,,Social Care & Inclusion,ALPHA HEALTH CARE LTD,25/10/2016,"2,864.28",73373-RESIDENTIAL & NURSING CARE PLACEMENTS,MH COMMISSIONING,Third Party Payments,Revenue
Walsall Council,http://opendatacommunities.org/id/metropolitan-district-council/walsall,WC73-208,31/10/2016,,Social Care & Inclusion,ALPHA HEALTH CARE LTD,04/10/2016,"3,064.29",73373-RESIDENTIAL & NURSING CARE PLACEMENTS,MH COMMISSIONING,Third Party Payments,Revenue
Walsall Council,http://opendatacommunities.org/id/metropolitan-district-council/walsall,WC73-209,31/10/2016,,Social Care & Inclusion,ALPHA HEALTH CARE LTD,04/10/2016,"3,064.29",73373-RESIDENTIAL & NURSING CARE PLACEMENTS,MH COMMISSIONING,Third Party Payments,Revenue
Walsall Council,http://opendatacommunities.org/id/metropolitan-district-council/walsall,WC73-210,31/10/2016,,Social Care & Inclusion,ALPHA HEALTH CARE LTD,04/10/2016,"3,064.29",73373-RESIDENTIAL & NURSING CARE PLACEMENTS,MH COMMISSIONING,Third Party Payments,Revenue
Walsall Council,http://opendatacommunities.org/id/metropolitan-district-council/walsall,WC73-211,31/10/2016,,Social Care & Inclusion,ALPHA HEALTH CARE LTD,04/10/2016,"3,166.43",73373-RESIDENTIAL & NURSING CARE PLACEMENTS,MH COMMISSIONING,Third Party Payments,Revenue
Walsall Council,http://opendatacommunities.org/id/metropolitan-district-council/walsall,WC73-212,31/10/2016,,Social Care & Inclusion,ALPHA HEALTH CARE LTD,04/10/2016,"3,166.43",73373-RESIDENTIAL & NURSING CARE PLACEMENTS,MH COMMISSIONING,Third Party Payments,Revenue
Walsall Council,http://opendatacommunities.org/id/metropolitan-district-council/walsall,WC73-213,31/10/2016,,Social Care & Inclusion,ALPHA HEALTH CARE LTD,04/10/2016,"3,166.43",73373-RESIDENTIAL & NURSING CARE PLACEMENTS,MH COMMISSIONING,Third Party Payments,Revenue
Walsall Council,http://opendatacommunities.org/id/metropolitan-district-council/walsall,WC73-214,31/10/2016,,Social Care & Inclusion,ALPHA HEALTH CARE LTD,13/10/2016,"3,166.43",73373-RESIDENTIAL & NURSING CARE PLACEMENTS,MH COMMISSIONING,Third Party Payments,Revenue
Walsall Council,http://opendatacommunities.org/id/metropolitan-district-council/walsall,WC73-215,31/10/2016,,Social Care & Inclusion,ALPHA HEALTH CARE LTD,25/10/2016,"5,987.96",73373-RESIDENTIAL & NURSING CARE PLACEMENTS,MH COMMISSIONING,Third Party Payments,Revenue
Walsall Council,http://opendatacommunities.org/id/metropolitan-district-council/walsall,WC73-216,31/10/2016,,Social Care & Inclusion,ALPHA HEALTH CARE LTD,25/10/2016,"5,987.96",73373-RESIDENTIAL & NURSING CARE PLACEMENTS,MH COMMISSIONING,Third Party Payments,Revenue
Walsall Council,http://opendatacommunities.org/id/metropolitan-district-council/walsall,WC73-217,31/10/2016,,Change and Governance,ALTODIGITAL NETWORKS LTD,14/10/2016,350,60009-LEASING/HIRE/RENTAL-EQUIPMENT,PHOTOCOPIERS - CENTRAL BUDGET,Supplies & Services,Revenue
Walsall Council,http://opendatacommunities.org/id/metropolitan-district-council/walsall,WC73-218,31/10/2016,,Childrens,REDACTED,24/10/2016,"1,198.47",74006-HOLIDAY/CHRISTMAS ALLOWANCE-FOSTER CARERS-OTH AGENCY PROVISION,INTERNAL FOSTER CARE PROVISION,Third Party Payments,Revenue
Walsall Council,http://opendatacommunities.org/id/metropolitan-district-council/walsall,WC73-219,31/10/2016,,Childrens,REDACTED,10/10/2016,732.29,74006-HOLIDAY/CHRISTMAS ALLOWANCE-FOSTER CARERS-OTH AGENCY PROVISION,INTERNAL FOSTER CARE PROVISION,Third Party Payments,Revenue
Walsall Council,http://opendatacommunities.org/id/metropolitan-district-council/walsall,WC73-220,31/10/2016,,Childrens,REDACTED,10/10/2016,790.2,62515-MISCELLANEOUS SUPPLIES,INTERNAL FOSTER CARE PROVISION,Supplies & Services,Revenue
Walsall Council,http://opendatacommunities.org/id/metropolitan-district-council/walsall,WC73-221,31/10/2016,,Childrens,REDACTED,10/10/2016,312.92,76422-DIRECT PAYMENTS TO SOCIAL SERVICES CLIENTS,FAMILY SUPPORT - DIRECT PAYMENTS,Transfer Payments,Revenue
Walsall Council,http://opendatacommunities.org/id/metropolitan-district-council/walsall,WC73-222,31/10/2016,,Economy & Environment,AMEC FOSTER WHEELER ENVIRONMENT & INFRASTRUTURE UK LIMITED,06/10/2016,"3,178.75",63000-PROFESSIONAL FEES AND SERVICES,NEW HOMES BONUS DEVELOPMENT COSTS,Supplies & Services,Revenue
Walsall Council,http://opendatacommunities.org/id/metropolitan-district-council/walsall,WC73-223,31/10/2016,,Economy & Environment,AMEY LG LIMITED,01/10/2016,304.46,73025-PROFESSIONAL SERVICES-PRIV CONTRACTOR & OTHER AGENCIES,TRAFFIC MANAGEMENT,Third Party Payments,Revenue
Walsall Council,http://opendatacommunities.org/id/metropolitan-district-council/walsall,WC73-224,31/10/2016,,Economy & Environment,AMEY LG LIMITED,07/10/2016,452.31,73002-SECURITY-PRIV CONTRACTOR FEES,TRAFFIC CONTROL,Third Party Payments,Revenue
Walsall Council,http://opendatacommunities.org/id/metropolitan-district-council/walsall,WC73-225,31/10/2016,,Change and Governance,AMEY LG LIMITED,10/10/2016,"1,169.90",73025-PROFESSIONAL SERVICES-PRIV CONTRACTOR & OTHER AGENCIES,ASB TOOLS & POWERS,Third Party Payments,Revenue
Walsall Council,http://opendatacommunities.org/id/metropolitan-district-council/walsall,WC73-226,31/10/2016,,Economy & Environment,AMEY LG LIMITED,10/10/2016,"3,658.84",73025-PROFESSIONAL SERVICES-PRIV CONTRACTOR & OTHER AGENCIES,TRAFFIC CONTROL,Third Party Payments,Revenue
Walsall Council,http://opendatacommunities.org/id/metropolitan-district-council/walsall,WC73-227,31/10/2016,,Economy & Environment,AMEY LG LIMITED,05/10/2016,"15,650.98",73025-PROFESSIONAL SERVICES-PRIV CONTRACTOR & OTHER AGENCIES,TRAFFIC MANAGEMENT,Third Party Payments,Revenue
Walsall Council,http://opendatacommunities.org/id/metropolitan-district-council/walsall,WC73-228,31/10/2016,,Childrens,AMG NURSING CARE SERVICES,04/10/2016,"1,421.00",63000-PROFESSIONAL FEES AND SERVICES,DIRECTLY COMMISSIONED NURSING SERVICES,Supplies & Services,Revenue
Walsall Council,http://opendatacommunities.org/id/metropolitan-district-council/walsall,WC73-229,31/10/2016,,Childrens,AMG NURSING CARE SERVICES,04/10/2016,"1,436.32",63000-PROFESSIONAL FEES AND SERVICES,DIRECTLY COMMISSIONED NURSING SERVICES,Supplies & Services,Revenue
Walsall Council,http://opendatacommunities.org/id/metropolitan-district-council/walsall,WC73-230,31/10/2016,,Childrens,AMG NURSING CARE SERVICES,14/10/2016,"1,480.96",63000-PROFESSIONAL FEES AND SERVICES,DIRECTLY COMMISSIONED NURSING SERVICES,Supplies & Services,Revenue
Walsall Council,http://opendatacommunities.org/id/metropolitan-district-council/walsall,WC73-231,31/10/2016,,Childrens,AMG NURSING CARE SERVICES,04/10/2016,"1,624.00",63000-PROFESSIONAL FEES AND SERVICES,DIRECTLY COMMISSIONED NURSING SERVICES,Supplies & Services,Revenue
Walsall Council,http://opendatacommunities.org/id/metropolitan-district-council/walsall,WC73-232,31/10/2016,,Childrens,AMG NURSING CARE SERVICES,04/10/2016,"1,624.00",63000-PROFESSIONAL FEES AND SERVICES,DIRECTLY COMMISSIONED NURSING SERVICES,Supplies & Services,Revenue
Walsall Council,http://opendatacommunities.org/id/metropolitan-district-council/walsall,WC73-233,31/10/2016,,Childrens,AMG NURSING CARE SERVICES,04/10/2016,"1,693.86",63000-PROFESSIONAL FEES AND SERVICES,DIRECTLY COMMISSIONED NURSING SERVICES,Supplies & Services,Revenue
Walsall Council,http://opendatacommunities.org/id/metropolitan-district-council/walsall,WC73-234,31/10/2016,,Childrens,AMG NURSING CARE SERVICES,04/10/2016,"1,827.00",63000-PROFESSIONAL FEES AND SERVICES,DIRECTLY COMMISSIONED NURSING SERVICES,Supplies & Services,Revenue
Walsall Council,http://opendatacommunities.org/id/metropolitan-district-council/walsall,WC73-235,31/10/2016,,Childrens,AMG NURSING CARE SERVICES,04/10/2016,"1,851.36",63000-PROFESSIONAL FEES AND SERVICES,DIRECTLY COMMISSIONED NURSING SERVICES,Supplies & Services,Revenue
Walsall Council,http://opendatacommunities.org/id/metropolitan-district-council/walsall,WC73-236,31/10/2016,,Childrens,AMG NURSING CARE SERVICES,04/10/2016,"1,922.76",63000-PROFESSIONAL FEES AND SERVICES,DIRECTLY COMMISSIONED NURSING SERVICES,Supplies & Services,Revenue
Walsall Council,http://opendatacommunities.org/id/metropolitan-district-council/walsall,WC73-237,31/10/2016,,Childrens,AMG NURSING CARE SERVICES,04/10/2016,"2,536.98",63000-PROFESSIONAL FEES AND SERVICES,DIRECTLY COMMISSIONED NURSING SERVICES,Supplies & Services,Revenue
Walsall Council,http://opendatacommunities.org/id/metropolitan-district-council/walsall,WC73-238,31/10/2016,,Childrens,AMG NURSING CARE SERVICES,17/10/2016,"2,644.72",63000-PROFESSIONAL FEES AND SERVICES,DIRECTLY COMMISSIONED NURSING SERVICES,Supplies & Services,Revenue
Walsall Council,http://opendatacommunities.org/id/metropolitan-district-council/walsall,WC73-239,31/10/2016,,Childrens,AMG NURSING CARE SERVICES,04/10/2016,"3,082.52",63000-PROFESSIONAL FEES AND SERVICES,DIRECTLY COMMISSIONED NURSING SERVICES,Supplies & Services,Revenue
Walsall Council,http://opendatacommunities.org/id/metropolitan-district-council/walsall,WC73-240,31/10/2016,,Childrens,AMG NURSING CARE SERVICES,04/10/2016,"4,151.68",63000-PROFESSIONAL FEES AND SERVICES,DIRECTLY COMMISSIONED NURSING SERVICES,Supplies & Services,Revenue
Walsall Council,http://opendatacommunities.org/id/metropolitan-district-council/walsall,WC73-241,31/10/2016,,Social Care & Inclusion,AMG NURSING CARE SERVICES,19/10/2016,"7,003.50",73374-SUPPORTED & OTHER ACCOMMODATION,PD COMMISSIONING,Third Party Payments,Revenue
Walsall Council,http://opendatacommunities.org/id/metropolitan-district-council/walsall,WC73-242,31/10/2016,,Social Care & Inclusion,AMG NURSING CARE SERVICES,06/10/2016,"7,166.50",73372-DOMICILIARY CARE,PD COMMISSIONING,Third Party Payments,Revenue
Walsall Council,http://opendatacommunities.org/id/metropolitan-district-council/walsall,WC73-243,31/10/2016,,Social Care & Inclusion,AMG NURSING CARE SERVICES,19/10/2016,"7,705.00",73372-DOMICILIARY CARE,PD COMMISSIONING,Third Party Payments,Revenue
Walsall Council,http://opendatacommunities.org/id/metropolitan-district-council/walsall,WC73-244,31/10/2016,,Social Care & Inclusion,AMG NURSING CARE SERVICES,19/10/2016,"10,679.82",73374-SUPPORTED & OTHER ACCOMMODATION,OP COMMISSIONING,Third Party Payments,Revenue
Walsall Council,http://opendatacommunities.org/id/metropolitan-district-council/walsall,WC73-245,31/10/2016,,Social Care & Inclusion,AMG NURSING CARE SERVICES,19/10/2016,"10,711.68",73374-SUPPORTED & OTHER ACCOMMODATION,OP COMMISSIONING,Third Party Payments,Revenue
Walsall Council,http://opendatacommunities.org/id/metropolitan-district-council/walsall,WC73-246,31/10/2016,,Social Care & Inclusion,AMG NURSING CARE SERVICES,19/10/2016,"10,711.68",73374-SUPPORTED & OTHER ACCOMMODATION,OP COMMISSIONING,Third Party Payments,Revenue
Walsall Council,http://opendatacommunities.org/id/metropolitan-district-council/walsall,WC73-247,31/10/2016,,Social Care & Inclusion,AMG NURSING CARE SERVICES,19/10/2016,"10,711.69",73374-SUPPORTED & OTHER ACCOMMODATION,OP COMMISSIONING,Third Party Payments,Revenue
Walsall Council,http://opendatacommunities.org/id/metropolitan-district-council/walsall,WC73-248,31/10/2016,,Social Care & Inclusion,REDACTED,10/10/2016,"1,133.44",76422-DIRECT PAYMENTS TO SOCIAL SERVICES CLIENTS,OP COMMISSIONING,Transfer Payments,Revenue
Walsall Council,http://opendatacommunities.org/id/metropolitan-district-council/walsall,WC73-249,31/10/2016,,Childrens,REDACTED,24/10/2016,675.92,74006-HOLIDAY/CHRISTMAS ALLOWANCE-FOSTER CARERS-OTH AGENCY PROVISION,INTERNAL FOSTER CARE PROVISION,Third Party Payments,Revenue
Walsall Council,http://opendatacommunities.org/id/metropolitan-district-council/walsall,WC73-250,31/10/2016,,Childrens,REDACTED,24/10/2016,425.08,74006-HOLIDAY/CHRISTMAS ALLOWANCE-FOSTER CARERS-OTH AGENCY PROVISION,INTERNAL FOSTER CARE PROVISION,Third Party Payments,Revenue
Walsall Council,http://opendatacommunities.org/id/metropolitan-district-council/walsall,WC73-251,31/10/2016,,Social Care & Inclusion,REDACTED,10/10/2016,576,76422-DIRECT PAYMENTS TO SOCIAL SERVICES CLIENTS,OP COMMISSIONING,Transfer Payments,Revenue
Walsall Council,http://opendatacommunities.org/id/metropolitan-district-council/walsall,WC73-252,31/10/2016,,Social Care & Inclusion,REDACTED,10/10/2016,756,76422-DIRECT PAYMENTS TO SOCIAL SERVICES CLIENTS,OP COMMISSIONING,Transfer Payments,Revenue
Walsall Council,http://opendatacommunities.org/id/metropolitan-district-council/walsall,WC73-253,31/10/2016,,Social Care & Inclusion,ANCHOR,13/10/2016,771.43,73373-RESIDENTIAL & NURSING CARE PLACEMENTS,OP COMMISSIONING,Third Party Payments,Revenue
Walsall Council,http://opendatacommunities.org/id/metropolitan-district-council/walsall,WC73-254,31/10/2016,,Social Care & Inclusion,ANCHOR,13/10/2016,"1,028.57",73373-RESIDENTIAL & NURSING CARE PLACEMENTS,OP COMMISSIONING,Third Party Payments,Revenue
Walsall Council,http://opendatacommunities.org/id/metropolitan-district-council/walsall,WC73-255,31/10/2016,,Social Care & Inclusion,ANCHOR,13/10/2016,"1,800.00",73373-RESIDENTIAL & NURSING CARE PLACEMENTS,OP COMMISSIONING,Third Party Payments,Revenue
Walsall Council,http://opendatacommunities.org/id/metropolitan-district-council/walsall,WC73-256,31/10/2016,,Social Care & Inclusion,ANCHOR,19/10/2016,"1,800.00",73373-RESIDENTIAL & NURSING CARE PLACEMENTS,MH COMMISSIONING,Third Party Payments,Revenue
Walsall Council,http://opendatacommunities.org/id/metropolitan-district-council/walsall,WC73-257,31/10/2016,,Social Care & Inclusion,ANCHOR,19/10/2016,"3,471.43",73373-RESIDENTIAL & NURSING CARE PLACEMENTS,MH COMMISSIONING,Third Party Payments,Revenue
Walsall Council,http://opendatacommunities.org/id/metropolitan-district-council/walsall,WC73-258,31/10/2016,,Childrens,REDACTED,10/10/2016,650.92,74006-HOLIDAY/CHRISTMAS ALLOWANCE-FOSTER CARERS-OTH AGENCY PROVISION,INTERNAL FOSTER CARE PROVISION,Third Party Payments,Revenue
Walsall Council,http://opendatacommunities.org/id/metropolitan-district-council/walsall,WC73-259,31/10/2016,,Childrens,REDACTED,10/10/2016,"1,156.76",62515-MISCELLANEOUS SUPPLIES,INTERNAL FOSTER CARE PROVISION,Supplies & Services,Revenue
Walsall Council,http://opendatacommunities.org/id/metropolitan-district-council/walsall,WC73-260,31/10/2016,,Social Care & Inclusion,REDACTED,10/10/2016,378,76422-DIRECT PAYMENTS TO SOCIAL SERVICES CLIENTS,PD COMMISSIONING,Transfer Payments,Revenue
Walsall Council,http://opendatacommunities.org/id/metropolitan-district-council/walsall,WC73-261,31/10/2016,,Social Care & Inclusion,ANGEL COURT RESIDENTIAL CARE HOME,19/10/2016,"1,992.85",73373-RESIDENTIAL & NURSING CARE PLACEMENTS,OP COMMISSIONING,Third Party Payments,Revenue
Walsall Council,http://opendatacommunities.org/id/metropolitan-district-council/walsall,WC73-262,31/10/2016,,Social Care & Inclusion,ANGEL COURT RESIDENTIAL CARE HOME,19/10/2016,"2,150.07",73373-RESIDENTIAL & NURSING CARE PLACEMENTS,OP COMMISSIONING,Third Party Payments,Revenue
Walsall Council,http://opendatacommunities.org/id/metropolitan-district-council/walsall,WC73-263,31/10/2016,,Childrens,REDACTED,24/10/2016,"1,892.27",74006-HOLIDAY/CHRISTMAS ALLOWANCE-FOSTER CARERS-OTH AGENCY PROVISION,INTERNAL FOSTER CARE PROVISION,Third Party Payments,Revenue
Walsall Council,http://opendatacommunities.org/id/metropolitan-district-council/walsall,WC73-264,31/10/2016,,Childrens,REDACTED,24/10/2016,269.68,74006-HOLIDAY/CHRISTMAS ALLOWANCE-FOSTER CARERS-OTH AGENCY PROVISION,INTERNAL FOSTER CARE PROVISION,Third Party Payments,Revenue
Walsall Council,http://opendatacommunities.org/id/metropolitan-district-council/walsall,WC73-265,31/10/2016,,Social Care & Inclusion,REDACTED,10/10/2016,344,76422-DIRECT PAYMENTS TO SOCIAL SERVICES CLIENTS,LD COMMISSIONING,Transfer Payments,Revenue
Walsall Council,http://opendatacommunities.org/id/metropolitan-district-council/walsall,WC73-266,31/10/2016,,Childrens,REDACTED,10/10/2016,925,62515-MISCELLANEOUS SUPPLIES,INTERNAL FOSTER CARE PROVISION,Supplies & Services,Revenue
Walsall Council,http://opendatacommunities.org/id/metropolitan-district-council/walsall,WC73-267,31/10/2016,,Social Care & Inclusion,REDACTED,26/10/2016,286.99,73374-SUPPORTED & OTHER ACCOMMODATION,LD COMMISSIONING,Third Party Payments,Revenue
Walsall Council,http://opendatacommunities.org/id/metropolitan-district-council/walsall,WC73-268,31/10/2016,,Social Care & Inclusion,REDACTED,26/10/2016,292.4,73374-SUPPORTED & OTHER ACCOMMODATION,LD COMMISSIONING,Third Party Payments,Revenue
Walsall Council,http://opendatacommunities.org/id/metropolitan-district-council/walsall,WC73-269,31/10/2016,,Social Care & Inclusion,REDACTED,26/10/2016,319.39,73374-SUPPORTED & OTHER ACCOMMODATION,LD COMMISSIONING,Third Party Payments,Revenue
Walsall Council,http://opendatacommunities.org/id/metropolitan-district-council/walsall,WC73-270,31/10/2016,,Social Care & Inclusion,ANSON COURT RESIDENTIAL HOME,04/10/2016,"-1,092.86",73373-RESIDENTIAL & NURSING CARE PLACEMENTS,OP COMMISSIONING,Third Party Payments,Revenue
Walsall Council,http://opendatacommunities.org/id/metropolitan-district-council/walsall,WC73-271,31/10/2016,,Social Care & Inclusion,ANSON COURT RESIDENTIAL HOME,19/10/2016,"1,800.00",73373-RESIDENTIAL & NURSING CARE PLACEMENTS,OP COMMISSIONING,Third Party Payments,Revenue
Walsall Council,http://opendatacommunities.org/id/metropolitan-district-council/walsall,WC73-272,31/10/2016,,Social Care & Inclusion,ANSON COURT RESIDENTIAL HOME,25/10/2016,"1,800.00",73373-RESIDENTIAL & NURSING CARE PLACEMENTS,OP COMMISSIONING,Third Party Payments,Revenue
Walsall Council,http://opendatacommunities.org/id/metropolitan-district-council/walsall,WC73-273,31/10/2016,,Social Care & Inclusion,ANSON COURT RESIDENTIAL HOME,25/10/2016,"1,800.00",73373-RESIDENTIAL & NURSING CARE PLACEMENTS,OP COMMISSIONING,Third Party Payments,Revenue
Walsall Council,http://opendatacommunities.org/id/metropolitan-district-council/walsall,WC73-274,31/10/2016,,Social Care & Inclusion,ANSON COURT RESIDENTIAL HOME,25/10/2016,"1,800.00",73373-RESIDENTIAL & NURSING CARE PLACEMENTS,OP COMMISSIONING,Third Party Payments,Revenue
Walsall Council,http://opendatacommunities.org/id/metropolitan-district-council/walsall,WC73-275,31/10/2016,,Social Care & Inclusion,ANSON COURT RESIDENTIAL HOME,25/10/2016,"1,800.00",73373-RESIDENTIAL & NURSING CARE PLACEMENTS,OP COMMISSIONING,Third Party Payments,Revenue
Walsall Council,http://opendatacommunities.org/id/metropolitan-district-council/walsall,WC73-276,31/10/2016,,Social Care & Inclusion,ANSON COURT RESIDENTIAL HOME,25/10/2016,"1,800.00",73373-RESIDENTIAL & NURSING CARE PLACEMENTS,OP COMMISSIONING,Third Party Payments,Revenue
Walsall Council,http://opendatacommunities.org/id/metropolitan-district-council/walsall,WC73-277,31/10/2016,,Social Care & Inclusion,ANSON COURT RESIDENTIAL HOME,25/10/2016,"1,800.00",73373-RESIDENTIAL & NURSING CARE PLACEMENTS,MH COMMISSIONING,Third Party Payments,Revenue
Walsall Council,http://opendatacommunities.org/id/metropolitan-district-council/walsall,WC73-278,31/10/2016,,Social Care & Inclusion,ANSON COURT RESIDENTIAL HOME,25/10/2016,"1,800.00",73373-RESIDENTIAL & NURSING CARE PLACEMENTS,OP COMMISSIONING,Third Party Payments,Revenue
Walsall Council,http://opendatacommunities.org/id/metropolitan-district-council/walsall,WC73-279,31/10/2016,,Social Care & Inclusion,ANSON COURT RESIDENTIAL HOME,25/10/2016,"1,800.00",73373-RESIDENTIAL & NURSING CARE PLACEMENTS,MH COMMISSIONING,Third Party Payments,Revenue
Walsall Council,http://opendatacommunities.org/id/metropolitan-district-council/walsall,WC73-280,31/10/2016,,Social Care & Inclusion,ANSON COURT RESIDENTIAL HOME,25/10/2016,"1,800.00",73373-RESIDENTIAL & NURSING CARE PLACEMENTS,OP COMMISSIONING,Third Party Payments,Revenue
Walsall Council,http://opendatacommunities.org/id/metropolitan-district-council/walsall,WC73-281,31/10/2016,,Social Care & Inclusion,ANSON COURT RESIDENTIAL HOME,25/10/2016,"1,800.00",73373-RESIDENTIAL & NURSING CARE PLACEMENTS,MH COMMISSIONING,Third Party Payments,Revenue
Walsall Council,http://opendatacommunities.org/id/metropolitan-district-council/walsall,WC73-282,31/10/2016,,Social Care & Inclusion,ANSON COURT RESIDENTIAL HOME,25/10/2016,"1,800.00",73373-RESIDENTIAL & NURSING CARE PLACEMENTS,OP COMMISSIONING,Third Party Payments,Revenue
Walsall Council,http://opendatacommunities.org/id/metropolitan-district-council/walsall,WC73-283,31/10/2016,,Social Care & Inclusion,ANSON COURT RESIDENTIAL HOME,25/10/2016,"1,800.00",73373-RESIDENTIAL & NURSING CARE PLACEMENTS,OP COMMISSIONING,Third Party Payments,Revenue
Walsall Council,http://opendatacommunities.org/id/metropolitan-district-council/walsall,WC73-284,31/10/2016,,Social Care & Inclusion,ANSON COURT RESIDENTIAL HOME,25/10/2016,"1,800.00",73373-RESIDENTIAL & NURSING CARE PLACEMENTS,OP COMMISSIONING,Third Party Payments,Revenue
Walsall Council,http://opendatacommunities.org/id/metropolitan-district-council/walsall,WC73-285,31/10/2016,,Social Care & Inclusion,ANSON COURT RESIDENTIAL HOME,25/10/2016,"1,800.00",73373-RESIDENTIAL & NURSING CARE PLACEMENTS,OP COMMISSIONING,Third Party Payments,Revenue
Walsall Council,http://opendatacommunities.org/id/metropolitan-district-council/walsall,WC73-286,31/10/2016,,Social Care & Inclusion,ANSON COURT RESIDENTIAL HOME,25/10/2016,"1,800.00",73373-RESIDENTIAL & NURSING CARE PLACEMENTS,OP COMMISSIONING,Third Party Payments,Revenue
Walsall Council,http://opendatacommunities.org/id/metropolitan-district-council/walsall,WC73-287,31/10/2016,,Social Care & Inclusion,ANSON COURT RESIDENTIAL HOME,25/10/2016,"1,800.00",73373-RESIDENTIAL & NURSING CARE PLACEMENTS,OP COMMISSIONING,Third Party Payments,Revenue
Walsall Council,http://opendatacommunities.org/id/metropolitan-district-council/walsall,WC73-288,31/10/2016,,Social Care & Inclusion,ANSON COURT RESIDENTIAL HOME,25/10/2016,"1,800.00",73373-RESIDENTIAL & NURSING CARE PLACEMENTS,OP COMMISSIONING,Third Party Payments,Revenue
Walsall Council,http://opendatacommunities.org/id/metropolitan-district-council/walsall,WC73-289,31/10/2016,,Social Care & Inclusion,ANSON COURT RESIDENTIAL HOME,25/10/2016,"1,800.00",73373-RESIDENTIAL & NURSING CARE PLACEMENTS,OP COMMISSIONING,Third Party Payments,Revenue
Walsall Council,http://opendatacommunities.org/id/metropolitan-district-council/walsall,WC73-290,31/10/2016,,Social Care & Inclusion,ANSON COURT RESIDENTIAL HOME,04/10/2016,"1,947.14",73373-RESIDENTIAL & NURSING CARE PLACEMENTS,OP COMMISSIONING,Third Party Payments,Revenue
Walsall Council,http://opendatacommunities.org/id/metropolitan-district-council/walsall,WC73-291,31/10/2016,,Social Care & Inclusion,ANSON COURT RESIDENTIAL HOME,19/10/2016,"2,250.00",73373-RESIDENTIAL & NURSING CARE PLACEMENTS,OP COMMISSIONING,Third Party Payments,Revenue
Walsall Council,http://opendatacommunities.org/id/metropolitan-district-council/walsall,WC73-292,31/10/2016,,Social Care & Inclusion,ANSON COURT RESIDENTIAL HOME,25/10/2016,"4,880.00",73373-RESIDENTIAL & NURSING CARE PLACEMENTS,MH COMMISSIONING,Third Party Payments,Revenue
Walsall Council,http://opendatacommunities.org/id/metropolitan-district-council/walsall,WC73-293,31/10/2016,,Change and Governance,ANTALIS LIMITED,14/10/2016,267.8,60500-GENERAL MATERIALS,PRINTING SERVICES,Supplies & Services,Revenue
Walsall Council,http://opendatacommunities.org/id/metropolitan-district-council/walsall,WC73-294,31/10/2016,,Childrens,REDACTED,24/10/2016,"1,310.64",74006-HOLIDAY/CHRISTMAS ALLOWANCE-FOSTER CARERS-OTH AGENCY PROVISION,INTERNAL FOSTER CARE PROVISION,Third Party Payments,Revenue
Walsall Council,http://opendatacommunities.org/id/metropolitan-district-council/walsall,WC73-295,31/10/2016,,Childrens,REDACTED,24/10/2016,312.76,74006-HOLIDAY/CHRISTMAS ALLOWANCE-FOSTER CARERS-OTH AGENCY PROVISION,INTERNAL FOSTER CARE PROVISION,Third Party Payments,Revenue
Walsall Council,http://opendatacommunities.org/id/metropolitan-district-council/walsall,WC73-296,31/10/2016,,Economy & Environment,APCOA PARKING SERVICES (UK) LTD,11/10/2016,"49,726.18",73025-PROFESSIONAL SERVICES-PRIV CONTRACTOR & OTHER AGENCIES,PARKING SERVICES,Third Party Payments,Revenue
Walsall Council,http://opendatacommunities.org/id/metropolitan-district-council/walsall,WC73-297,31/10/2016,,Childrens,APPLE TRANSCRIPTION LIMITED,21/10/2016,228.4,73014-LEGAL FEES-PRIV CONTRACTOR FEES,GENERAL MANAGEMENT SUPPORT (INC LEGAL),Third Party Payments,Revenue
Walsall Council,http://opendatacommunities.org/id/metropolitan-district-council/walsall,WC73-298,31/10/2016,,Economy & Environment,AQUALYMPIC,04/10/2016,255,34305-AGENCY STAFF-EMPLOYEES,BLOXWICH LEISURE CENTRE,Employees,Revenue
Walsall Council,http://opendatacommunities.org/id/metropolitan-district-council/walsall,WC73-299,31/10/2016,,Economy & Environment,AQUALYMPIC,03/10/2016,435,34305-AGENCY STAFF-EMPLOYEES,BLOXWICH LEISURE CENTRE,Employees,Revenue
Walsall Council,http://opendatacommunities.org/id/metropolitan-district-council/walsall,WC73-300,31/10/2016,,Economy & Environment,AQUALYMPIC,03/10/2016,472.5,34305-AGENCY STAFF-EMPLOYEES,BLOXWICH LEISURE CENTRE,Employees,Revenue
Walsall Council,http://opendatacommunities.org/id/metropolitan-district-council/walsall,WC73-301,31/10/2016,,Economy & Environment,AQUALYMPIC,03/10/2016,650,32000-MISC FEES AND EXPENSES,WALSALL GALA CENTRE,Employees,Revenue
Walsall Council,http://opendatacommunities.org/id/metropolitan-district-council/walsall,WC73-302,31/10/2016,,Economy & Environment,AQUALYMPIC,19/10/2016,795,34305-AGENCY STAFF-EMPLOYEES,BLOXWICH LEISURE CENTRE,Employees,Revenue
Walsall Council,http://opendatacommunities.org/id/metropolitan-district-council/walsall,WC73-303,31/10/2016,,Economy & Environment,AQUALYMPIC,03/10/2016,862.5,34305-AGENCY STAFF-EMPLOYEES,BLOXWICH LEISURE CENTRE,Employees,Revenue
Walsall Council,http://opendatacommunities.org/id/metropolitan-district-council/walsall,WC73-304,31/10/2016,,Economy & Environment,AQUALYMPIC,03/10/2016,877.5,34305-AGENCY STAFF-EMPLOYEES,BLOXWICH LEISURE CENTRE,Employees,Revenue
Walsall Council,http://opendatacommunities.org/id/metropolitan-district-council/walsall,WC73-305,31/10/2016,,Economy & Environment,AQUALYMPIC,03/10/2016,"1,132.50",34305-AGENCY STAFF-EMPLOYEES,BLOXWICH LEISURE CENTRE,Employees,Revenue
Walsall Council,http://opendatacommunities.org/id/metropolitan-district-council/walsall,WC73-306,31/10/2016,,Economy & Environment,AQUALYMPIC,19/10/2016,"1,380.00",34305-AGENCY STAFF-EMPLOYEES,BLOXWICH LEISURE CENTRE,Employees,Revenue
Walsall Council,http://opendatacommunities.org/id/metropolitan-district-council/walsall,WC73-307,31/10/2016,,Social Care & Inclusion,ARBORETUM NURSING HOME.,04/10/2016,-726,73373-RESIDENTIAL & NURSING CARE PLACEMENTS,OP COMMISSIONING,Third Party Payments,Revenue
Walsall Council,http://opendatacommunities.org/id/metropolitan-district-council/walsall,WC73-308,31/10/2016,,Social Care & Inclusion,ARBORETUM NURSING HOME.,04/10/2016,-693,73373-RESIDENTIAL & NURSING CARE PLACEMENTS,OP COMMISSIONING,Third Party Payments,Revenue
Walsall Council,http://opendatacommunities.org/id/metropolitan-district-council/walsall,WC73-309,31/10/2016,,Social Care & Inclusion,ARBORETUM NURSING HOME.,04/10/2016,929.25,73373-RESIDENTIAL & NURSING CARE PLACEMENTS,OP COMMISSIONING,Third Party Payments,Revenue
Walsall Council,http://opendatacommunities.org/id/metropolitan-district-council/walsall,WC73-310,31/10/2016,,Social Care & Inclusion,ARBORETUM NURSING HOME.,04/10/2016,"1,048.60",73373-RESIDENTIAL & NURSING CARE PLACEMENTS,OP COMMISSIONING,Third Party Payments,Revenue
Walsall Council,http://opendatacommunities.org/id/metropolitan-district-council/walsall,WC73-311,31/10/2016,,Social Care & Inclusion,ARBORETUM NURSING HOME.,04/10/2016,"1,125.21",73373-RESIDENTIAL & NURSING CARE PLACEMENTS,OP COMMISSIONING,Third Party Payments,Revenue
Walsall Council,http://opendatacommunities.org/id/metropolitan-district-council/walsall,WC73-312,31/10/2016,,Social Care & Inclusion,ARBORETUM NURSING HOME.,04/10/2016,"1,144.18",73373-RESIDENTIAL & NURSING CARE PLACEMENTS,OP COMMISSIONING,Third Party Payments,Revenue
Walsall Council,http://opendatacommunities.org/id/metropolitan-district-council/walsall,WC73-313,31/10/2016,,Social Care & Inclusion,ARBORETUM NURSING HOME.,04/10/2016,"1,144.18",73373-RESIDENTIAL & NURSING CARE PLACEMENTS,OP COMMISSIONING,Third Party Payments,Revenue
Walsall Council,http://opendatacommunities.org/id/metropolitan-district-council/walsall,WC73-314,31/10/2016,,Social Care & Inclusion,ARBORETUM NURSING HOME.,04/10/2016,"1,150.50",73373-RESIDENTIAL & NURSING CARE PLACEMENTS,OP COMMISSIONING,Third Party Payments,Revenue
Walsall Council,http://opendatacommunities.org/id/metropolitan-district-council/walsall,WC73-315,31/10/2016,,Social Care & Inclusion,ARBORETUM NURSING HOME.,04/10/2016,"1,150.50",73373-RESIDENTIAL & NURSING CARE PLACEMENTS,OP COMMISSIONING,Third Party Payments,Revenue
Walsall Council,http://opendatacommunities.org/id/metropolitan-district-council/walsall,WC73-316,31/10/2016,,Social Care & Inclusion,ARBORETUM NURSING HOME.,04/10/2016,"1,150.50",73373-RESIDENTIAL & NURSING CARE PLACEMENTS,OP COMMISSIONING,Third Party Payments,Revenue
Walsall Council,http://opendatacommunities.org/id/metropolitan-district-council/walsall,WC73-317,31/10/2016,,Social Care & Inclusion,ARBORETUM NURSING HOME.,04/10/2016,"1,150.50",73373-RESIDENTIAL & NURSING CARE PLACEMENTS,OP COMMISSIONING,Third Party Payments,Revenue
Walsall Council,http://opendatacommunities.org/id/metropolitan-district-council/walsall,WC73-318,31/10/2016,,Social Care & Inclusion,ARBORETUM NURSING HOME.,04/10/2016,"1,150.50",73373-RESIDENTIAL & NURSING CARE PLACEMENTS,OP COMMISSIONING,Third Party Payments,Revenue
Walsall Council,http://opendatacommunities.org/id/metropolitan-district-council/walsall,WC73-319,31/10/2016,,Social Care & Inclusion,ARBORETUM NURSING HOME.,13/10/2016,"1,299.89",73373-RESIDENTIAL & NURSING CARE PLACEMENTS,OP COMMISSIONING,Third Party Payments,Revenue
Walsall Council,http://opendatacommunities.org/id/metropolitan-district-council/walsall,WC73-320,31/10/2016,,Social Care & Inclusion,ARBORETUM NURSING HOME.,13/10/2016,"2,274.80",73373-RESIDENTIAL & NURSING CARE PLACEMENTS,OP COMMISSIONING,Third Party Payments,Revenue
Walsall Council,http://opendatacommunities.org/id/metropolitan-district-council/walsall,WC73-321,31/10/2016,,Social Care & Inclusion,ARBORETUM NURSING HOME.,13/10/2016,"2,274.80",73373-RESIDENTIAL & NURSING CARE PLACEMENTS,OP COMMISSIONING,Third Party Payments,Revenue
Walsall Council,http://opendatacommunities.org/id/metropolitan-district-council/walsall,WC73-322,31/10/2016,,Social Care & Inclusion,ARBORETUM NURSING HOME.,13/10/2016,"2,274.80",73373-RESIDENTIAL & NURSING CARE PLACEMENTS,OP COMMISSIONING,Third Party Payments,Revenue
Walsall Council,http://opendatacommunities.org/id/metropolitan-district-council/walsall,WC73-323,31/10/2016,,Social Care & Inclusion,ARBORETUM NURSING HOME.,13/10/2016,"2,274.80",73373-RESIDENTIAL & NURSING CARE PLACEMENTS,OP COMMISSIONING,Third Party Payments,Revenue
Walsall Council,http://opendatacommunities.org/id/metropolitan-district-council/walsall,WC73-324,31/10/2016,,Social Care & Inclusion,ARBORETUM NURSING HOME.,13/10/2016,"2,274.80",73373-RESIDENTIAL & NURSING CARE PLACEMENTS,OP COMMISSIONING,Third Party Payments,Revenue
Walsall Council,http://opendatacommunities.org/id/metropolitan-district-council/walsall,WC73-325,31/10/2016,,Social Care & Inclusion,ARBORETUM NURSING HOME.,13/10/2016,"2,319.08",73373-RESIDENTIAL & NURSING CARE PLACEMENTS,OP COMMISSIONING,Third Party Payments,Revenue
Walsall Council,http://opendatacommunities.org/id/metropolitan-district-council/walsall,WC73-326,31/10/2016,,Social Care & Inclusion,ARBORETUM NURSING HOME.,13/10/2016,"2,319.08",73373-RESIDENTIAL & NURSING CARE PLACEMENTS,OP COMMISSIONING,Third Party Payments,Revenue
Walsall Council,http://opendatacommunities.org/id/metropolitan-district-council/walsall,WC73-327,31/10/2016,,Social Care & Inclusion,ARBORETUM NURSING HOME.,13/10/2016,"2,319.84",73373-RESIDENTIAL & NURSING CARE PLACEMENTS,OP COMMISSIONING,Third Party Payments,Revenue
Walsall Council,http://opendatacommunities.org/id/metropolitan-district-council/walsall,WC73-328,31/10/2016,,Social Care & Inclusion,ARBORETUM NURSING HOME.,24/10/2016,"2,678.57",73019-PSE'S-PRIV CONTRACTOR FEES,TRANSITIONAL CARE SUPPORT TEAM,Third Party Payments,Revenue
Walsall Council,http://opendatacommunities.org/id/metropolitan-district-council/walsall,WC73-329,31/10/2016,,Social Care & Inclusion,ARBORETUM NURSING HOME.,13/10/2016,"2,843.50",73373-RESIDENTIAL & NURSING CARE PLACEMENTS,OP COMMISSIONING,Third Party Payments,Revenue
Walsall Council,http://opendatacommunities.org/id/metropolitan-district-council/walsall,WC73-330,31/10/2016,,Social Care & Inclusion,ARBORETUM NURSING HOME.,12/10/2016,"15,000.00",73019-PSE'S-PRIV CONTRACTOR FEES,TRANSITIONAL CARE SUPPORT TEAM,Third Party Payments,Revenue
Walsall Council,http://opendatacommunities.org/id/metropolitan-district-council/walsall,WC73-331,31/10/2016,,Economy & Environment,ARCANE DIRECT MARKETING,04/10/2016,306.71,62511-DISTRIBUTION,NAG - ART GALLERY MARKETING,Supplies & Services,Revenue
Walsall Council,http://opendatacommunities.org/id/metropolitan-district-council/walsall,WC73-332,31/10/2016,,Economy & Environment,ARCANE DIRECT MARKETING,04/10/2016,926.23,62511-DISTRIBUTION,NAG - ART GALLERY MARKETING,Supplies & Services,Revenue
Walsall Council,http://opendatacommunities.org/id/metropolitan-district-council/walsall,WC73-333,31/10/2016,,Childrens,ARCHDIOCESE OF BIRMINGHAM,26/10/2016,"44,856.45",01006-SITE WORKS MAIN CONTRACTORS,CFR 1024 UNIVERSAL INFANT FREE SCHOOL MEALS PHASE 3,Capital,Capital
Walsall Council,http://opendatacommunities.org/id/metropolitan-district-council/walsall,WC73-334,31/10/2016,,Economy & Environment,ARCHWAY TCS LTD,26/10/2016,707.5,60537-VEHICLE WASH PLANT-MATERIALS,DEPOT,Supplies & Services,Revenue
Walsall Council,http://opendatacommunities.org/id/metropolitan-district-council/walsall,WC73-335,31/10/2016,,Childrens,ARNFIELD CARE LIMITED,17/10/2016,"17,289.01",74036-EXTERNAL RESIDENTIAL CARE-OTH AGENCY PROVISION,INDEPENDENT RESIDENTIAL HOMES,Third Party Payments,Revenue
Walsall Council,http://opendatacommunities.org/id/metropolitan-district-council/walsall,WC73-336,31/10/2016,,Economy & Environment,ARTBEAT,01/10/2016,296.8,63000-PROFESSIONAL FEES AND SERVICES,FOREST ARTS CENTRE,Supplies & Services,Revenue
Walsall Council,http://opendatacommunities.org/id/metropolitan-district-council/walsall,WC73-337,31/10/2016,,Childrens,ARTHUR M GRIFFITHS & SON LTD,17/10/2016,"215,841.42",01006-SITE WORKS MAIN CONTRACTORS,CFR 929 KING CHARLES PRIMARY SIGNIFICANT ENLARGEMENT,Capital,Capital
Walsall Council,http://opendatacommunities.org/id/metropolitan-district-council/walsall,WC73-338,31/10/2016,,Economy & Environment,ASDA PHARMACY,19/10/2016,78.03,71007-CONTRIBUTION TO PCT,PUBLIC HEALTH BUSINESS SUPPORT,Third Party Payments,Revenue
Walsall Council,http://opendatacommunities.org/id/metropolitan-district-council/walsall,WC73-339,31/10/2016,,Economy & Environment,ASDA PHARMACY,19/10/2016,433.65,63000-PROFESSIONAL FEES AND SERVICES,SEXUAL HEALTH,Supplies & Services,Revenue
Walsall Council,http://opendatacommunities.org/id/metropolitan-district-council/walsall,WC73-340,31/10/2016,,Social Care & Inclusion,ASH GRANGE CARE HOME,25/10/2016,"-1,734.36",73373-RESIDENTIAL & NURSING CARE PLACEMENTS,OP COMMISSIONING,Third Party Payments,Revenue
Walsall Council,http://opendatacommunities.org/id/metropolitan-district-council/walsall,WC73-341,31/10/2016,,Social Care & Inclusion,ASH GRANGE CARE HOME,13/10/2016,177,73373-RESIDENTIAL & NURSING CARE PLACEMENTS,OP COMMISSIONING,Third Party Payments,Revenue
Walsall Council,http://opendatacommunities.org/id/metropolitan-district-council/walsall,WC73-342,31/10/2016,,Social Care & Inclusion,ASH GRANGE CARE HOME,04/10/2016,290.79,73373-RESIDENTIAL & NURSING CARE PLACEMENTS,OP COMMISSIONING,Third Party Payments,Revenue
Walsall Council,http://opendatacommunities.org/id/metropolitan-district-council/walsall,WC73-343,31/10/2016,,Social Care & Inclusion,ASH GRANGE CARE HOME,25/10/2016,486.75,73373-RESIDENTIAL & NURSING CARE PLACEMENTS,OP COMMISSIONING,Third Party Payments,Revenue
Walsall Council,http://opendatacommunities.org/id/metropolitan-district-council/walsall,WC73-344,31/10/2016,,Social Care & Inclusion,ASH GRANGE CARE HOME,25/10/2016,625.82,73373-RESIDENTIAL & NURSING CARE PLACEMENTS,OP COMMISSIONING,Third Party Payments,Revenue
Walsall Council,http://opendatacommunities.org/id/metropolitan-district-council/walsall,WC73-345,31/10/2016,,Social Care & Inclusion,ASH GRANGE CARE HOME,13/10/2016,708,73373-RESIDENTIAL & NURSING CARE PLACEMENTS,MH COMMISSIONING,Third Party Payments,Revenue
Walsall Council,http://opendatacommunities.org/id/metropolitan-district-council/walsall,WC73-346,31/10/2016,,Social Care & Inclusion,ASH GRANGE CARE HOME,25/10/2016,945.15,73373-RESIDENTIAL & NURSING CARE PLACEMENTS,MH COMMISSIONING,Third Party Payments,Revenue
Walsall Council,http://opendatacommunities.org/id/metropolitan-district-council/walsall,WC73-347,31/10/2016,,Social Care & Inclusion,ASH GRANGE CARE HOME,25/10/2016,"1,051.32",73373-RESIDENTIAL & NURSING CARE PLACEMENTS,OP COMMISSIONING,Third Party Payments,Revenue
Walsall Council,http://opendatacommunities.org/id/metropolitan-district-council/walsall,WC73-348,31/10/2016,,Social Care & Inclusion,ASH GRANGE CARE HOME,25/10/2016,"1,131.11",73373-RESIDENTIAL & NURSING CARE PLACEMENTS,OP COMMISSIONING,Third Party Payments,Revenue
Walsall Council,http://opendatacommunities.org/id/metropolitan-district-council/walsall,WC73-349,31/10/2016,,Social Care & Inclusion,ASH GRANGE CARE HOME,04/10/2016,"1,182.10",73373-RESIDENTIAL & NURSING CARE PLACEMENTS,OP COMMISSIONING,Third Party Payments,Revenue
Walsall Council,http://opendatacommunities.org/id/metropolitan-district-council/walsall,WC73-350,31/10/2016,,Social Care & Inclusion,ASH GRANGE CARE HOME,04/10/2016,"1,182.10",73373-RESIDENTIAL & NURSING CARE PLACEMENTS,OP COMMISSIONING,Third Party Payments,Revenue
Walsall Council,http://opendatacommunities.org/id/metropolitan-district-council/walsall,WC73-351,31/10/2016,,Social Care & Inclusion,ASH GRANGE CARE HOME,04/10/2016,"1,182.10",73373-RESIDENTIAL & NURSING CARE PLACEMENTS,OP COMMISSIONING,Third Party Payments,Revenue
Walsall Council,http://opendatacommunities.org/id/metropolitan-district-council/walsall,WC73-352,31/10/2016,,Social Care & Inclusion,ASH GRANGE CARE HOME,04/10/2016,"1,182.11",73373-RESIDENTIAL & NURSING CARE PLACEMENTS,OP COMMISSIONING,Third Party Payments,Revenue
Walsall Council,http://opendatacommunities.org/id/metropolitan-district-council/walsall,WC73-353,31/10/2016,,Social Care & Inclusion,ASH GRANGE CARE HOME,04/10/2016,"1,182.11",73373-RESIDENTIAL & NURSING CARE PLACEMENTS,OP COMMISSIONING,Third Party Payments,Revenue
Walsall Council,http://opendatacommunities.org/id/metropolitan-district-council/walsall,WC73-354,31/10/2016,,Social Care & Inclusion,ASH GRANGE CARE HOME,04/10/2016,"1,182.11",73373-RESIDENTIAL & NURSING CARE PLACEMENTS,OP COMMISSIONING,Third Party Payments,Revenue
Walsall Council,http://opendatacommunities.org/id/metropolitan-district-council/walsall,WC73-355,31/10/2016,,Social Care & Inclusion,ASH GRANGE CARE HOME,04/10/2016,"1,182.11",73373-RESIDENTIAL & NURSING CARE PLACEMENTS,OP COMMISSIONING,Third Party Payments,Revenue
Walsall Council,http://opendatacommunities.org/id/metropolitan-district-council/walsall,WC73-356,31/10/2016,,Social Care & Inclusion,ASH GRANGE CARE HOME,19/10/2016,"1,182.11",73373-RESIDENTIAL & NURSING CARE PLACEMENTS,OP COMMISSIONING,Third Party Payments,Revenue
Walsall Council,http://opendatacommunities.org/id/metropolitan-district-council/walsall,WC73-357,31/10/2016,,Social Care & Inclusion,ASH GRANGE CARE HOME,13/10/2016,"1,620.00",73373-RESIDENTIAL & NURSING CARE PLACEMENTS,OP COMMISSIONING,Third Party Payments,Revenue
Walsall Council,http://opendatacommunities.org/id/metropolitan-district-council/walsall,WC73-358,31/10/2016,,Social Care & Inclusion,ASH GRANGE CARE HOME,13/10/2016,"2,288.40",73373-RESIDENTIAL & NURSING CARE PLACEMENTS,OP COMMISSIONING,Third Party Payments,Revenue
Walsall Council,http://opendatacommunities.org/id/metropolitan-district-council/walsall,WC73-359,31/10/2016,,Social Care & Inclusion,ASH GRANGE CARE HOME,13/10/2016,"2,288.40",73373-RESIDENTIAL & NURSING CARE PLACEMENTS,OP COMMISSIONING,Third Party Payments,Revenue
Walsall Council,http://opendatacommunities.org/id/metropolitan-district-council/walsall,WC73-360,31/10/2016,,Social Care & Inclusion,ASH GRANGE CARE HOME,13/10/2016,"2,288.40",73373-RESIDENTIAL & NURSING CARE PLACEMENTS,OP COMMISSIONING,Third Party Payments,Revenue
Walsall Council,http://opendatacommunities.org/id/metropolitan-district-council/walsall,WC73-361,31/10/2016,,Social Care & Inclusion,ASH GRANGE CARE HOME,13/10/2016,"2,288.40",73373-RESIDENTIAL & NURSING CARE PLACEMENTS,OP COMMISSIONING,Third Party Payments,Revenue
Walsall Council,http://opendatacommunities.org/id/metropolitan-district-council/walsall,WC73-362,31/10/2016,,Social Care & Inclusion,ASH GRANGE CARE HOME,13/10/2016,"2,288.40",73373-RESIDENTIAL & NURSING CARE PLACEMENTS,OP COMMISSIONING,Third Party Payments,Revenue
Walsall Council,http://opendatacommunities.org/id/metropolitan-district-council/walsall,WC73-363,31/10/2016,,Social Care & Inclusion,ASH GRANGE CARE HOME,13/10/2016,"2,288.40",73373-RESIDENTIAL & NURSING CARE PLACEMENTS,MH COMMISSIONING,Third Party Payments,Revenue
Walsall Council,http://opendatacommunities.org/id/metropolitan-district-council/walsall,WC73-364,31/10/2016,,Social Care & Inclusion,ASH GRANGE CARE HOME,13/10/2016,"2,288.40",73373-RESIDENTIAL & NURSING CARE PLACEMENTS,OP COMMISSIONING,Third Party Payments,Revenue
Walsall Council,http://opendatacommunities.org/id/metropolitan-district-council/walsall,WC73-365,31/10/2016,,Social Care & Inclusion,ASH GRANGE CARE HOME,13/10/2016,"2,288.40",73373-RESIDENTIAL & NURSING CARE PLACEMENTS,OP COMMISSIONING,Third Party Payments,Revenue
Walsall Council,http://opendatacommunities.org/id/metropolitan-district-council/walsall,WC73-366,31/10/2016,,Social Care & Inclusion,ASH GRANGE CARE HOME,13/10/2016,"2,288.40",73373-RESIDENTIAL & NURSING CARE PLACEMENTS,OP COMMISSIONING,Third Party Payments,Revenue
Walsall Council,http://opendatacommunities.org/id/metropolitan-district-council/walsall,WC73-367,31/10/2016,,Social Care & Inclusion,ASH GRANGE CARE HOME,13/10/2016,"2,288.40",73373-RESIDENTIAL & NURSING CARE PLACEMENTS,OP COMMISSIONING,Third Party Payments,Revenue
Walsall Council,http://opendatacommunities.org/id/metropolitan-district-council/walsall,WC73-368,31/10/2016,,Social Care & Inclusion,ASH GRANGE CARE HOME,19/10/2016,"2,288.40",73373-RESIDENTIAL & NURSING CARE PLACEMENTS,OP COMMISSIONING,Third Party Payments,Revenue
Walsall Council,http://opendatacommunities.org/id/metropolitan-district-council/walsall,WC73-369,31/10/2016,,Social Care & Inclusion,ASH GRANGE CARE HOME,19/10/2016,"2,288.40",73373-RESIDENTIAL & NURSING CARE PLACEMENTS,OP COMMISSIONING,Third Party Payments,Revenue
Walsall Council,http://opendatacommunities.org/id/metropolitan-district-council/walsall,WC73-370,31/10/2016,,Social Care & Inclusion,ASH GRANGE CARE HOME,25/10/2016,"2,372.04",73373-RESIDENTIAL & NURSING CARE PLACEMENTS,OP COMMISSIONING,Third Party Payments,Revenue
Walsall Council,http://opendatacommunities.org/id/metropolitan-district-council/walsall,WC73-371,31/10/2016,,Social Care & Inclusion,ASH GRANGE CARE HOME,25/10/2016,"2,504.40",73373-RESIDENTIAL & NURSING CARE PLACEMENTS,MH COMMISSIONING,Third Party Payments,Revenue
Walsall Council,http://opendatacommunities.org/id/metropolitan-district-council/walsall,WC73-372,31/10/2016,,Social Care & Inclusion,ASH GRANGE CARE HOME,13/10/2016,"3,120.72",73373-RESIDENTIAL & NURSING CARE PLACEMENTS,OP COMMISSIONING,Third Party Payments,Revenue
Walsall Council,http://opendatacommunities.org/id/metropolitan-district-council/walsall,WC73-373,31/10/2016,,Social Care & Inclusion,ASHBOURNE LODGE,19/10/2016,"2,103.86",73373-RESIDENTIAL & NURSING CARE PLACEMENTS,OP COMMISSIONING,Third Party Payments,Revenue
Walsall Council,http://opendatacommunities.org/id/metropolitan-district-council/walsall,WC73-374,31/10/2016,,Social Care & Inclusion,ASHBOURNE LODGE,13/10/2016,"2,173.99",73373-RESIDENTIAL & NURSING CARE PLACEMENTS,OP COMMISSIONING,Third Party Payments,Revenue
Walsall Council,http://opendatacommunities.org/id/metropolitan-district-council/walsall,WC73-375,31/10/2016,,Social Care & Inclusion,ASHBOURNE LODGE,19/10/2016,"2,173.99",73373-RESIDENTIAL & NURSING CARE PLACEMENTS,OP COMMISSIONING,Third Party Payments,Revenue
Walsall Council,http://opendatacommunities.org/id/metropolitan-district-council/walsall,WC73-376,31/10/2016,,Economy & Environment,ASKEWS AND HOLTS LIBRARY SERVICES LTD,06/10/2016,259.43,60501-LIBRARY BOOKS,LIBRARY STOCK AND PERFORMANCE,Supplies & Services,Revenue
Walsall Council,http://opendatacommunities.org/id/metropolitan-district-council/walsall,WC73-377,31/10/2016,,Economy & Environment,ASKEWS AND HOLTS LIBRARY SERVICES LTD,06/10/2016,285.34,60501-LIBRARY BOOKS,LIBRARY STOCK AND PERFORMANCE,Supplies & Services,Revenue
Walsall Council,http://opendatacommunities.org/id/metropolitan-district-council/walsall,WC73-378,31/10/2016,,Economy & Environment,ASKEWS AND HOLTS LIBRARY SERVICES LTD,07/10/2016,287.75,60501-LIBRARY BOOKS,LIBRARY STOCK AND PERFORMANCE,Supplies & Services,Revenue
Walsall Council,http://opendatacommunities.org/id/metropolitan-district-council/walsall,WC73-379,31/10/2016,,Economy & Environment,ASKEWS AND HOLTS LIBRARY SERVICES LTD,03/10/2016,336.13,60501-LIBRARY BOOKS,LIBRARY STOCK AND PERFORMANCE,Supplies & Services,Revenue
Walsall Council,http://opendatacommunities.org/id/metropolitan-district-council/walsall,WC73-380,31/10/2016,,Economy & Environment,ASKEWS AND HOLTS LIBRARY SERVICES LTD,07/10/2016,340.6,60501-LIBRARY BOOKS,LIBRARY STOCK AND PERFORMANCE,Supplies & Services,Revenue
Walsall Council,http://opendatacommunities.org/id/metropolitan-district-council/walsall,WC73-381,31/10/2016,,Economy & Environment,ASKEWS AND HOLTS LIBRARY SERVICES LTD,17/10/2016,396.11,60501-LIBRARY BOOKS,LIBRARY STOCK AND PERFORMANCE,Supplies & Services,Revenue
Walsall Council,http://opendatacommunities.org/id/metropolitan-district-council/walsall,WC73-382,31/10/2016,,Economy & Environment,ASKEWS AND HOLTS LIBRARY SERVICES LTD,05/10/2016,535.46,60501-LIBRARY BOOKS,LIBRARY STOCK AND PERFORMANCE,Supplies & Services,Revenue
Walsall Council,http://opendatacommunities.org/id/metropolitan-district-council/walsall,WC73-383,31/10/2016,,Economy & Environment,ASKEWS AND HOLTS LIBRARY SERVICES LTD,05/10/2016,744.02,60501-LIBRARY BOOKS,LIBRARY STOCK AND PERFORMANCE,Supplies & Services,Revenue
Walsall Council,http://opendatacommunities.org/id/metropolitan-district-council/walsall,WC73-384,31/10/2016,,Social Care & Inclusion,REDACTED,10/10/2016,493,76422-DIRECT PAYMENTS TO SOCIAL SERVICES CLIENTS,OP COMMISSIONING,Transfer Payments,Revenue
Walsall Council,http://opendatacommunities.org/id/metropolitan-district-council/walsall,WC73-385,31/10/2016,,Childrens,ASTON CHILDRENS CARE,17/10/2016,"10,714.20",74036-EXTERNAL RESIDENTIAL CARE-OTH AGENCY PROVISION,INDEPENDENT RESIDENTIAL HOMES,Third Party Payments,Revenue
Walsall Council,http://opendatacommunities.org/id/metropolitan-district-council/walsall,WC73-386,31/10/2016,,Change and Governance,ASTUN TECHNOLOGY LIMITED,05/10/2016,"11,325.00",63820-RECHARGE FOR MAINTENANCE/APPLICATION COSTS-COMPUTER,APPLICATIONS,Supplies & Services,Revenue
Walsall Council,http://opendatacommunities.org/id/metropolitan-district-council/walsall,WC73-387,31/10/2016,,Economy & Environment,ATHWAL NEWS LTD,11/10/2016,522.7,60501-LIBRARY BOOKS,LIBRARY STOCK AND PERFORMANCE,Supplies & Services,Revenue
Walsall Council,http://opendatacommunities.org/id/metropolitan-district-council/walsall,WC73-388,31/10/2016,,Economy & Environment,ATKINS LIMITED,06/10/2016,-282.01,01001-OTHER CONSULTANTS FEES,CFR 1072 LEX - GROWTH DEAL,Capital,Capital
Walsall Council,http://opendatacommunities.org/id/metropolitan-district-council/walsall,WC73-389,31/10/2016,,Economy & Environment,ATKINS LIMITED,26/10/2016,"3,410.00",01001-OTHER CONSULTANTS FEES,CFR 1072 LEX - GROWTH DEAL,Capital,Capital
Walsall Council,http://opendatacommunities.org/id/metropolitan-district-council/walsall,WC73-390,31/10/2016,,Economy & Environment,ATKINS LIMITED,06/10/2016,"16,825.71",01001-OTHER CONSULTANTS FEES,CFR 1072 LEX - GROWTH DEAL,Capital,Capital
Walsall Council,http://opendatacommunities.org/id/metropolitan-district-council/walsall,WC73-391,31/10/2016,,Economy & Environment,AUGEAN PLC,01/10/2016,446.6,73029-HAZARDOUS WASTE REMOVAL/DISPOSAL-PRIV CONTRACTOR FEES,WASTE DISPOSAL - RESIDUAL,Third Party Payments,Revenue
Walsall Council,http://opendatacommunities.org/id/metropolitan-district-council/walsall,WC73-392,31/10/2016,,Change and Governance,AURORA GRAPHICS & DISPLAYS LTD,14/10/2016,685.93,62008-OUTWORK-PRINT ROOM,PRINTING SERVICES,Supplies & Services,Revenue
Walsall Council,http://opendatacommunities.org/id/metropolitan-district-council/walsall,WC73-393,31/10/2016,,Change and Governance,AURORA GRAPHICS & DISPLAYS LTD,01/10/2016,"1,729.15",62008-OUTWORK-PRINT ROOM,PRINTING SERVICES,Supplies & Services,Revenue
Walsall Council,http://opendatacommunities.org/id/metropolitan-district-council/walsall,WC73-394,31/10/2016,,Change and Governance,AURORA GRAPHICS & DISPLAYS LTD,14/10/2016,"1,767.90",62008-OUTWORK-PRINT ROOM,PRINTING SERVICES,Supplies & Services,Revenue
Walsall Council,http://opendatacommunities.org/id/metropolitan-district-council/walsall,WC73-395,31/10/2016,,Social Care & Inclusion,AUTISM WEST MIDLANDS,13/10/2016,"7,237.75",73373-RESIDENTIAL & NURSING CARE PLACEMENTS,LD COMMISSIONING,Third Party Payments,Revenue
Walsall Council,http://opendatacommunities.org/id/metropolitan-district-council/walsall,WC73-396,31/10/2016,,Social Care & Inclusion,AUTISM WEST MIDLANDS 001,13/10/2016,"4,838.06",73373-RESIDENTIAL & NURSING CARE PLACEMENTS,LD COMMISSIONING,Third Party Payments,Revenue
Walsall Council,http://opendatacommunities.org/id/metropolitan-district-council/walsall,WC73-397,31/10/2016,,Economy & Environment,AVANTGARDE PHARMA LTD T/A AL-SHAFA PHARMACY,19/10/2016,274.77,71007-CONTRIBUTION TO PCT,PUBLIC HEALTH BUSINESS SUPPORT,Third Party Payments,Revenue
Walsall Council,http://opendatacommunities.org/id/metropolitan-district-council/walsall,WC73-398,31/10/2016,,Social Care & Inclusion,REDACTED,10/10/2016,"1,572.15",76422-DIRECT PAYMENTS TO SOCIAL SERVICES CLIENTS,OP COMMISSIONING,Transfer Payments,Revenue
Walsall Council,http://opendatacommunities.org/id/metropolitan-district-council/walsall,WC73-399,31/10/2016,,Economy & Environment,AXIELL LIMITED,05/10/2016,643.3,63000-PROFESSIONAL FEES AND SERVICES,LIBRARY DEVELOPMENT 1,Supplies & Services,Revenue
Walsall Council,http://opendatacommunities.org/id/metropolitan-district-council/walsall,WC73-400,31/10/2016,,Childrens,REDACTED,10/10/2016,"1,284.00",76422-DIRECT PAYMENTS TO SOCIAL SERVICES CLIENTS,FAMILY SUPPORT - DIRECT PAYMENTS,Transfer Payments,Revenue
Walsall Council,http://opendatacommunities.org/id/metropolitan-district-council/walsall,WC73-401,31/10/2016,,Social Care & Inclusion,REDACTED,10/10/2016,"2,808.00",76422-DIRECT PAYMENTS TO SOCIAL SERVICES CLIENTS,LD COMMISSIONING,Transfer Payments,Revenue
Walsall Council,http://opendatacommunities.org/id/metropolitan-district-council/walsall,WC73-402,31/10/2016,,Childrens,REDACTED,24/10/2016,920.31,74006-HOLIDAY/CHRISTMAS ALLOWANCE-FOSTER CARERS-OTH AGENCY PROVISION,INTERNAL FOSTER CARE PROVISION,Third Party Payments,Revenue
Walsall Council,http://opendatacommunities.org/id/metropolitan-district-council/walsall,WC73-403,31/10/2016,,Childrens,REDACTED,10/10/2016,945.23,62515-MISCELLANEOUS SUPPLIES,INTERNAL FOSTER CARE PROVISION,Supplies & Services,Revenue
Walsall Council,http://opendatacommunities.org/id/metropolitan-district-council/walsall,WC73-404,31/10/2016,,Childrens,REDACTED,10/10/2016,"1,056.17",74006-HOLIDAY/CHRISTMAS ALLOWANCE-FOSTER CARERS-OTH AGENCY PROVISION,INTERNAL FOSTER CARE PROVISION,Third Party Payments,Revenue
Walsall Council,http://opendatacommunities.org/id/metropolitan-district-council/walsall,WC73-405,31/10/2016,,Childrens,REDACTED,04/10/2016,464,76000-TRANSFER PAYMENTS - SOCIAL SERVICES CLIENTS,TRANSITION AND LEAVING CARE,Transfer Payments,Revenue
Walsall Council,http://opendatacommunities.org/id/metropolitan-district-council/walsall,WC73-406,31/10/2016,,Childrens,REDACTED,25/10/2016,464,76000-TRANSFER PAYMENTS - SOCIAL SERVICES CLIENTS,TRANSITION AND LEAVING CARE,Transfer Payments,Revenue
Walsall Council,http://opendatacommunities.org/id/metropolitan-district-council/walsall,WC73-407,31/10/2016,,Childrens,REDACTED,10/10/2016,985.76,74006-HOLIDAY/CHRISTMAS ALLOWANCE-FOSTER CARERS-OTH AGENCY PROVISION,INTERNAL FOSTER CARE PROVISION,Third Party Payments,Revenue
Walsall Council,http://opendatacommunities.org/id/metropolitan-district-council/walsall,WC73-408,31/10/2016,,Childrens,REDACTED,10/10/2016,"1,210.63",62515-MISCELLANEOUS SUPPLIES,INTERNAL FOSTER CARE PROVISION,Supplies & Services,Revenue
Walsall Council,http://opendatacommunities.org/id/metropolitan-district-council/walsall,WC73-409,31/10/2016,,Economy & Environment,BAART HARRIES NEWALL,24/10/2016,"1,487.75",01002-PROJECT FEES,CFR 837 SMARTER WORKPLACES-WORKPLACE SOLUTIONS INVESTMENT,Capital,Capital
Walsall Council,http://opendatacommunities.org/id/metropolitan-district-council/walsall,WC73-410,31/10/2016,,Economy & Environment,BAKER HALL PARTNERSHIP,10/10/2016,"1,469.25",63000-PROFESSIONAL FEES AND SERVICES,BUILDING CONTROL REVENUE FUNDED,Supplies & Services,Revenue
Walsall Council,http://opendatacommunities.org/id/metropolitan-district-council/walsall,WC73-411,31/10/2016,,Social Care & Inclusion,REDACTED,10/10/2016,480,76422-DIRECT PAYMENTS TO SOCIAL SERVICES CLIENTS,MH COMMISSIONING,Transfer Payments,Revenue
Walsall Council,http://opendatacommunities.org/id/metropolitan-district-council/walsall,WC73-412,31/10/2016,,Social Care & Inclusion,REDACTED,10/10/2016,"2,849.92",76422-DIRECT PAYMENTS TO SOCIAL SERVICES CLIENTS,LD COMMISSIONING,Transfer Payments,Revenue
Walsall Council,http://opendatacommunities.org/id/metropolitan-district-council/walsall,WC73-413,31/10/2016,,Social Care & Inclusion,REDACTED,10/10/2016,800,76422-DIRECT PAYMENTS TO SOCIAL SERVICES CLIENTS,OP COMMISSIONING,Transfer Payments,Revenue
Walsall Council,http://opendatacommunities.org/id/metropolitan-district-council/walsall,WC73-414,31/10/2016,,Social Care & Inclusion,REDACTED,10/10/2016,"1,582.86",76422-DIRECT PAYMENTS TO SOCIAL SERVICES CLIENTS,OP COMMISSIONING,Transfer Payments,Revenue
Walsall Council,http://opendatacommunities.org/id/metropolitan-district-council/walsall,WC73-415,31/10/2016,,Childrens,REDACTED,24/10/2016,571.44,74006-HOLIDAY/CHRISTMAS ALLOWANCE-FOSTER CARERS-OTH AGENCY PROVISION,INTERNAL FOSTER CARE PROVISION,Third Party Payments,Revenue
Walsall Council,http://opendatacommunities.org/id/metropolitan-district-council/walsall,WC73-416,31/10/2016,,Social Care & Inclusion,REDACTED,10/10/2016,849.64,76422-DIRECT PAYMENTS TO SOCIAL SERVICES CLIENTS,OP COMMISSIONING,Transfer Payments,Revenue
Walsall Council,http://opendatacommunities.org/id/metropolitan-district-council/walsall,WC73-417,31/10/2016,,Childrens,BARNARDOS SERVICES LTD,04/10/2016,"3,078.00",74037-INDEPENDENT FOSTER CARE-OTH AGENCY PROVISION,EXTERNAL FOSTER CARE PROVISION,Third Party Payments,Revenue
Walsall Council,http://opendatacommunities.org/id/metropolitan-district-council/walsall,WC73-418,31/10/2016,,Childrens,BARNARDOS SERVICES LTD,24/10/2016,"3,180.60",74037-INDEPENDENT FOSTER CARE-OTH AGENCY PROVISION,EXTERNAL FOSTER CARE PROVISION,Third Party Payments,Revenue
Walsall Council,http://opendatacommunities.org/id/metropolitan-district-council/walsall,WC73-419,31/10/2016,,Childrens,BARNARDOS SERVICES LTD,04/10/2016,"3,210.00",74037-INDEPENDENT FOSTER CARE-OTH AGENCY PROVISION,EXTERNAL FOSTER CARE PROVISION,Third Party Payments,Revenue
Walsall Council,http://opendatacommunities.org/id/metropolitan-district-council/walsall,WC73-420,31/10/2016,,Childrens,BARNARDOS SERVICES LTD,24/10/2016,"3,317.00",74037-INDEPENDENT FOSTER CARE-OTH AGENCY PROVISION,EXTERNAL FOSTER CARE PROVISION,Third Party Payments,Revenue
Walsall Council,http://opendatacommunities.org/id/metropolitan-district-council/walsall,WC73-421,31/10/2016,,Childrens,BARNARDOS SERVICES LTD,26/10/2016,"4,884.00",63000-PROFESSIONAL FEES AND SERVICES,DIRECTLY COMMISSIONED NURSING SERVICES,Supplies & Services,Revenue
Walsall Council,http://opendatacommunities.org/id/metropolitan-district-council/walsall,WC73-422,31/10/2016,,Change and Governance,BARONS COURT HOTEL,13/10/2016,700,63128-HIRE OF ROOM-SERVICES-FEES,CORPORATE EXPENSES,Supplies & Services,Revenue
Walsall Council,http://opendatacommunities.org/id/metropolitan-district-council/walsall,WC73-423,31/10/2016,,Social Care & Inclusion,REDACTED,10/10/2016,980.8,76422-DIRECT PAYMENTS TO SOCIAL SERVICES CLIENTS,OP COMMISSIONING,Transfer Payments,Revenue
Walsall Council,http://opendatacommunities.org/id/metropolitan-district-council/walsall,WC73-424,31/10/2016,,Economy & Environment,BAT FABRICATIONS LTD,05/10/2016,370,60006-NEW-FURNITURE & EQUIPMENT,INFRASTRUCTURE MAINTENANCE,Supplies & Services,Revenue
Walsall Council,http://opendatacommunities.org/id/metropolitan-district-council/walsall,WC73-425,31/10/2016,,Economy & Environment,BAT FABRICATIONS LTD,05/10/2016,625,60006-NEW-FURNITURE & EQUIPMENT,INFRASTRUCTURE MAINTENANCE,Supplies & Services,Revenue
Walsall Council,http://opendatacommunities.org/id/metropolitan-district-council/walsall,WC73-426,31/10/2016,,Economy & Environment,BAT FABRICATIONS LTD,05/10/2016,780,"40000-REPAIRS,ALTERATIONS & MAINTENANCE-PREM",INFRASTRUCTURE MAINTENANCE,Premises,Revenue
Walsall Council,http://opendatacommunities.org/id/metropolitan-district-council/walsall,WC73-427,31/10/2016,,Economy & Environment,BAT FABRICATIONS LTD,05/10/2016,"2,000.00",60006-NEW-FURNITURE & EQUIPMENT,INFRASTRUCTURE MAINTENANCE,Supplies & Services,Revenue
Walsall Council,http://opendatacommunities.org/id/metropolitan-district-council/walsall,WC73-428,31/10/2016,,Economy & Environment,BAT FABRICATIONS LTD,21/10/2016,"2,250.00","40000-REPAIRS,ALTERATIONS & MAINTENANCE-PREM",INFRASTRUCTURE MAINTENANCE,Premises,Revenue
Walsall Council,http://opendatacommunities.org/id/metropolitan-district-council/walsall,WC73-429,31/10/2016,,Economy & Environment,BAT FABRICATIONS LTD,21/10/2016,"2,630.00",60500-GENERAL MATERIALS,INFRASTRUCTURE MAINTENANCE,Supplies & Services,Revenue
Walsall Council,http://opendatacommunities.org/id/metropolitan-district-council/walsall,WC73-430,31/10/2016,,Economy & Environment,BAT FABRICATIONS LTD,21/10/2016,"4,920.00",60008-MAINTENANCE-FURNITURE & EQUIPMENT,PARKING SERVICES,Supplies & Services,Revenue
Walsall Council,http://opendatacommunities.org/id/metropolitan-district-council/walsall,WC73-431,31/10/2016,,Economy & Environment,BATES WELLS & BRAITHWAITE LONDON LLP,26/10/2016,"1,000.00",01028-OTHER PURCHASE COSTS,CFR 1037 ACTIVE LIVING OAK PARK (PRUDENTIAL),Capital,Capital
Walsall Council,http://opendatacommunities.org/id/metropolitan-district-council/walsall,WC73-432,31/10/2016,,Childrens,REDACTED,10/10/2016,925,62515-MISCELLANEOUS SUPPLIES,INTERNAL FOSTER CARE PROVISION,Supplies & Services,Revenue
Walsall Council,http://opendatacommunities.org/id/metropolitan-district-council/walsall,WC73-433,31/10/2016,,Childrens,REDACTED,10/10/2016,"1,301.84",74006-HOLIDAY/CHRISTMAS ALLOWANCE-FOSTER CARERS-OTH AGENCY PROVISION,INTERNAL FOSTER CARE PROVISION,Third Party Payments,Revenue
Walsall Council,http://opendatacommunities.org/id/metropolitan-district-council/walsall,WC73-434,31/10/2016,,Economy & Environment,BEAR CREEK ADVENTURE LTD,01/10/2016,360,30030-EXTERNAL TRAINING,SPORT & LEISURE DEVELOPMENT SERVICES,Employees,Revenue
Walsall Council,http://opendatacommunities.org/id/metropolitan-district-council/walsall,WC73-435,31/10/2016,,Economy & Environment,BEARING SALES AND SERVICES LTD,11/10/2016,317.55,60514-MATERIALS TO STORES,FLEET PARTS STOCK ACCOUNT,Supplies & Services,Revenue
Walsall Council,http://opendatacommunities.org/id/metropolitan-district-council/walsall,WC73-436,31/10/2016,,Economy & Environment,BEARING SALES AND SERVICES LTD,11/10/2016,559.2,60514-MATERIALS TO STORES,FLEET PARTS STOCK ACCOUNT,Supplies & Services,Revenue
Walsall Council,http://opendatacommunities.org/id/metropolitan-district-council/walsall,WC73-437,31/10/2016,,Social Care & Inclusion,BEARWOOD NURSING HOME LTD,13/10/2016,698.28,73373-RESIDENTIAL & NURSING CARE PLACEMENTS,OP COMMISSIONING,Third Party Payments,Revenue
Walsall Council,http://opendatacommunities.org/id/metropolitan-district-council/walsall,WC73-438,31/10/2016,,Social Care & Inclusion,BEARWOOD NURSING HOME LTD,13/10/2016,"1,649.80",73373-RESIDENTIAL & NURSING CARE PLACEMENTS,OP COMMISSIONING,Third Party Payments,Revenue
Walsall Council,http://opendatacommunities.org/id/metropolitan-district-council/walsall,WC73-439,31/10/2016,,Social Care & Inclusion,REDACTED,10/10/2016,866.25,76422-DIRECT PAYMENTS TO SOCIAL SERVICES CLIENTS,OP COMMISSIONING,Transfer Payments,Revenue
Walsall Council,http://opendatacommunities.org/id/metropolitan-district-council/walsall,WC73-440,31/10/2016,,Economy & Environment,BEATROOT AV,26/10/2016,462.5,63000-PROFESSIONAL FEES AND SERVICES,NAG - TEMPORARY EXHIBITIONS,Supplies & Services,Revenue
Walsall Council,http://opendatacommunities.org/id/metropolitan-district-council/walsall,WC73-441,31/10/2016,,Childrens,REDACTED,10/10/2016,571.44,74006-HOLIDAY/CHRISTMAS ALLOWANCE-FOSTER CARERS-OTH AGENCY PROVISION,INTERNAL FOSTER CARE PROVISION,Third Party Payments,Revenue
Walsall Council,http://opendatacommunities.org/id/metropolitan-district-council/walsall,WC73-442,31/10/2016,,Childrens,REDACTED,10/10/2016,790.2,62515-MISCELLANEOUS SUPPLIES,INTERNAL FOSTER CARE PROVISION,Supplies & Services,Revenue
Walsall Council,http://opendatacommunities.org/id/metropolitan-district-council/walsall,WC73-443,31/10/2016,,Social Care & Inclusion,REDACTED,10/10/2016,"2,310.00",76422-DIRECT PAYMENTS TO SOCIAL SERVICES CLIENTS,LD COMMISSIONING,Transfer Payments,Revenue
Walsall Council,http://opendatacommunities.org/id/metropolitan-district-council/walsall,WC73-444,31/10/2016,,Social Care & Inclusion,BENTLEY COURT PRIORY,13/10/2016,714.32,73373-RESIDENTIAL & NURSING CARE PLACEMENTS,OP COMMISSIONING,Third Party Payments,Revenue
Walsall Council,http://opendatacommunities.org/id/metropolitan-district-council/walsall,WC73-445,31/10/2016,,Social Care & Inclusion,BENTLEY COURT PRIORY,04/10/2016,"1,767.86",73373-RESIDENTIAL & NURSING CARE PLACEMENTS,OP COMMISSIONING,Third Party Payments,Revenue
Walsall Council,http://opendatacommunities.org/id/metropolitan-district-council/walsall,WC73-446,31/10/2016,,Social Care & Inclusion,BENTLEY COURT PRIORY,04/10/2016,"1,924.50",73373-RESIDENTIAL & NURSING CARE PLACEMENTS,OP COMMISSIONING,Third Party Payments,Revenue
Walsall Council,http://opendatacommunities.org/id/metropolitan-district-council/walsall,WC73-447,31/10/2016,,Social Care & Inclusion,BENTLEY COURT PRIORY,04/10/2016,"2,004.17",73373-RESIDENTIAL & NURSING CARE PLACEMENTS,OP COMMISSIONING,Third Party Payments,Revenue
Walsall Council,http://opendatacommunities.org/id/metropolitan-district-council/walsall,WC73-448,31/10/2016,,Social Care & Inclusion,BENTLEY COURT PRIORY,04/10/2016,"2,041.20",73373-RESIDENTIAL & NURSING CARE PLACEMENTS,OP COMMISSIONING,Third Party Payments,Revenue
Walsall Council,http://opendatacommunities.org/id/metropolitan-district-council/walsall,WC73-449,31/10/2016,,Social Care & Inclusion,BENTLEY COURT PRIORY,04/10/2016,"2,196.21",73373-RESIDENTIAL & NURSING CARE PLACEMENTS,OP COMMISSIONING,Third Party Payments,Revenue
Walsall Council,http://opendatacommunities.org/id/metropolitan-district-council/walsall,WC73-450,31/10/2016,,Social Care & Inclusion,BENTLEY COURT PRIORY,13/10/2016,"2,437.29",73373-RESIDENTIAL & NURSING CARE PLACEMENTS,OP COMMISSIONING,Third Party Payments,Revenue
Walsall Council,http://opendatacommunities.org/id/metropolitan-district-council/walsall,WC73-451,31/10/2016,,Social Care & Inclusion,REDACTED,10/10/2016,912,76422-DIRECT PAYMENTS TO SOCIAL SERVICES CLIENTS,OP COMMISSIONING,Transfer Payments,Revenue
Walsall Council,http://opendatacommunities.org/id/metropolitan-district-council/walsall,WC73-452,31/10/2016,,Childrens,REDACTED,10/10/2016,746.44,74006-HOLIDAY/CHRISTMAS ALLOWANCE-FOSTER CARERS-OTH AGENCY PROVISION,INTERNAL FOSTER CARE PROVISION,Third Party Payments,Revenue
Walsall Council,http://opendatacommunities.org/id/metropolitan-district-council/walsall,WC73-453,31/10/2016,,Childrens,REDACTED,10/10/2016,"1,445.32",62515-MISCELLANEOUS SUPPLIES,INTERNAL FOSTER CARE PROVISION,Supplies & Services,Revenue
Walsall Council,http://opendatacommunities.org/id/metropolitan-district-council/walsall,WC73-454,31/10/2016,,Social Care & Inclusion,REDACTED,10/10/2016,968,76422-DIRECT PAYMENTS TO SOCIAL SERVICES CLIENTS,OP COMMISSIONING,Transfer Payments,Revenue
Walsall Council,http://opendatacommunities.org/id/metropolitan-district-council/walsall,WC73-455,31/10/2016,,Economy & Environment,BESCOT STADIUM SUNDAY MARKET LTD,13/10/2016,"2,800.00",73025-PROFESSIONAL SERVICES-PRIV CONTRACTOR & OTHER AGENCIES,WILLENHALL MARKET,Third Party Payments,Revenue
Walsall Council,http://opendatacommunities.org/id/metropolitan-district-council/walsall,WC73-456,31/10/2016,,Social Care & Inclusion,BESS CARE LIMITED,17/10/2016,450,73372-DOMICILIARY CARE,OP COMMISSIONING,Third Party Payments,Revenue
Walsall Council,http://opendatacommunities.org/id/metropolitan-district-council/walsall,WC73-457,31/10/2016,,Social Care & Inclusion,BESS CARE LIMITED,04/10/2016,455,73372-DOMICILIARY CARE,OP COMMISSIONING,Third Party Payments,Revenue
Walsall Council,http://opendatacommunities.org/id/metropolitan-district-council/walsall,WC73-458,31/10/2016,,Social Care & Inclusion,BETHPHAGE.,26/10/2016,650,73374-SUPPORTED & OTHER ACCOMMODATION,LD COMMISSIONING,Third Party Payments,Revenue
Walsall Council,http://opendatacommunities.org/id/metropolitan-district-council/walsall,WC73-459,31/10/2016,,Social Care & Inclusion,BETHPHAGE.,26/10/2016,"1,439.24",73374-SUPPORTED & OTHER ACCOMMODATION,LD COMMISSIONING,Third Party Payments,Revenue
Walsall Council,http://opendatacommunities.org/id/metropolitan-district-council/walsall,WC73-460,31/10/2016,,Social Care & Inclusion,BETHPHAGE.,26/10/2016,"1,523.89",73374-SUPPORTED & OTHER ACCOMMODATION,LD COMMISSIONING,Third Party Payments,Revenue
Walsall Council,http://opendatacommunities.org/id/metropolitan-district-council/walsall,WC73-461,31/10/2016,,Social Care & Inclusion,BETHPHAGE.,06/10/2016,"2,210.00",73374-SUPPORTED & OTHER ACCOMMODATION,LD COMMISSIONING,Third Party Payments,Revenue
Walsall Council,http://opendatacommunities.org/id/metropolitan-district-council/walsall,WC73-462,31/10/2016,,Social Care & Inclusion,REDACTED,10/10/2016,949.52,76422-DIRECT PAYMENTS TO SOCIAL SERVICES CLIENTS,MH COMMISSIONING,Transfer Payments,Revenue
Walsall Council,http://opendatacommunities.org/id/metropolitan-district-council/walsall,WC73-463,31/10/2016,,Social Care & Inclusion,REDACTED,10/10/2016,"2,767.84",76422-DIRECT PAYMENTS TO SOCIAL SERVICES CLIENTS,OP COMMISSIONING,Transfer Payments,Revenue
Walsall Council,http://opendatacommunities.org/id/metropolitan-district-council/walsall,WC73-464,31/10/2016,,Childrens,REDACTED,10/10/2016,487.72,76422-DIRECT PAYMENTS TO SOCIAL SERVICES CLIENTS,FAMILY SUPPORT - DIRECT PAYMENTS,Transfer Payments,Revenue
Walsall Council,http://opendatacommunities.org/id/metropolitan-district-council/walsall,WC73-465,31/10/2016,,Childrens,REDACTED,10/10/2016,789.5,76422-DIRECT PAYMENTS TO SOCIAL SERVICES CLIENTS,FAMILY SUPPORT - DIRECT PAYMENTS,Transfer Payments,Revenue
Walsall Council,http://opendatacommunities.org/id/metropolitan-district-council/walsall,WC73-466,31/10/2016,,Childrens,BIRCHILLS C OF E COMMUNITY ACADEMY,03/10/2016,441.86,77300-ISB-FORMULA ALLOCATION,BIRCHILLS CE COMMUNITY ACADEMY,Transfer Payments,Revenue
Walsall Council,http://opendatacommunities.org/id/metropolitan-district-council/walsall,WC73-467,31/10/2016,,Childrens,BIRCHILLS C OF E COMMUNITY ACADEMY,04/10/2016,"2,648.47",66502-TOP UP FUNDING -GRANTS TO SCHOOLS,BIRCHILLS CE COMMUNITY ACADEMY,Third Party Payments,Revenue
Walsall Council,http://opendatacommunities.org/id/metropolitan-district-council/walsall,WC73-468,31/10/2016,,Childrens,BIRMINGHAM CITY COUNCIL,01/10/2016,"1,261.43",66502-TOP UP FUNDING -GRANTS TO SCHOOLS,MAINTAINED PROVIDERS,Third Party Payments,Revenue
Walsall Council,http://opendatacommunities.org/id/metropolitan-district-council/walsall,WC73-469,31/10/2016,,Childrens,BIRMINGHAM CITY COUNCIL,03/10/2016,"2,102.37",66502-TOP UP FUNDING -GRANTS TO SCHOOLS,MAINTAINED PROVIDERS,Third Party Payments,Revenue
Walsall Council,http://opendatacommunities.org/id/metropolitan-district-council/walsall,WC73-470,31/10/2016,,Social Care & Inclusion,BLACK COUNTRY PARTNERSHIP NHS,03/10/2016,"7,886.00",71007-CONTRIBUTION TO PCT,BCPFT,Third Party Payments,Revenue
Walsall Council,http://opendatacommunities.org/id/metropolitan-district-council/walsall,WC73-471,31/10/2016,,Social Care & Inclusion,BLACK COUNTRY PARTNERSHIP NHS,03/10/2016,"8,320.00",73375-IN PATIENT BEDS,LD COMMISSIONING,Third Party Payments,Revenue
Walsall Council,http://opendatacommunities.org/id/metropolitan-district-council/walsall,WC73-472,31/10/2016,,Social Care & Inclusion,BLACK COUNTRY PARTNERSHIP NHS,03/10/2016,"18,805.00",71007-CONTRIBUTION TO PCT,BCPFT,Third Party Payments,Revenue
Walsall Council,http://opendatacommunities.org/id/metropolitan-district-council/walsall,WC73-473,31/10/2016,,Social Care & Inclusion,BLACK COUNTRY PARTNERSHIP NHS,03/10/2016,"18,805.00",71007-CONTRIBUTION TO PCT,BCPFT,Third Party Payments,Revenue
Walsall Council,http://opendatacommunities.org/id/metropolitan-district-council/walsall,WC73-474,31/10/2016,,Social Care & Inclusion,BLACK COUNTRY PARTNERSHIP NHS,03/10/2016,"18,805.00",71007-CONTRIBUTION TO PCT,BCPFT,Third Party Payments,Revenue
Walsall Council,http://opendatacommunities.org/id/metropolitan-district-council/walsall,WC73-475,31/10/2016,,Economy & Environment,BLACK COUNTRY TRAINING LTD T/A BRITISH HGV TRAINING GROUP,18/10/2016,415,30030-EXTERNAL TRAINING,FLEET,Employees,Revenue
Walsall Council,http://opendatacommunities.org/id/metropolitan-district-council/walsall,WC73-476,31/10/2016,,Childrens,BLAKENALL HEATH JMI SCHOOL,25/10/2016,"57,240.00",77302-ISB-SCHOOL STANDARDS GRANT,BLAKENALL HEATH JUNIOR SCHOOL,Transfer Payments,Revenue
Walsall Council,http://opendatacommunities.org/id/metropolitan-district-council/walsall,WC73-477,31/10/2016,,Childrens,BLAKENALL HEATH JMI SCHOOL,03/10/2016,"91,561.92",77300-ISB-FORMULA ALLOCATION,BLAKENALL HEATH JUNIOR SCHOOL,Transfer Payments,Revenue
Walsall Council,http://opendatacommunities.org/id/metropolitan-district-council/walsall,WC73-478,31/10/2016,,Economy & Environment,BLINFORDGRAPHICS LTD,17/10/2016,328.35,"40000-REPAIRS,ALTERATIONS & MAINTENANCE-PREM",COMMUNITY LIAISON,Premises,Revenue
Walsall Council,http://opendatacommunities.org/id/metropolitan-district-council/walsall,WC73-479,31/10/2016,,Social Care & Inclusion,BLOXWICH COMMUNITY PARTNERSHIP.,17/10/2016,351,73372-DOMICILIARY CARE,MH COMMISSIONING,Third Party Payments,Revenue
Walsall Council,http://opendatacommunities.org/id/metropolitan-district-council/walsall,WC73-480,31/10/2016,,Social Care & Inclusion,BLOXWICH COMMUNITY PARTNERSHIP.,19/10/2016,378,73374-SUPPORTED & OTHER ACCOMMODATION,MH COMMISSIONING,Third Party Payments,Revenue
Walsall Council,http://opendatacommunities.org/id/metropolitan-district-council/walsall,WC73-481,31/10/2016,,Childrens,BLUEBELLS #1,10/10/2016,1.5,82500-BANK CHARGES-CENTRAL EXPENSES,BLUEBELLS,Supplies & Services,Revenue
Walsall Council,http://opendatacommunities.org/id/metropolitan-district-council/walsall,WC73-482,31/10/2016,,Childrens,BLUEBELLS #1,10/10/2016,12.67,53000-OFFICERS/STAFF-CAR ALLOWANCES,BLUEBELLS,Transport,Revenue
Walsall Council,http://opendatacommunities.org/id/metropolitan-district-council/walsall,WC73-483,31/10/2016,,Childrens,BLUEBELLS #1,10/10/2016,160.42,"40000-REPAIRS,ALTERATIONS & MAINTENANCE-PREM",BLUEBELLS,Premises,Revenue
Walsall Council,http://opendatacommunities.org/id/metropolitan-district-council/walsall,WC73-484,31/10/2016,,Childrens,BLUEBELLS #1,10/10/2016,371.46,61016-FOOD AND BEVERAGES-PROVISIONS,BLUEBELLS,Supplies & Services,Revenue
Walsall Council,http://opendatacommunities.org/id/metropolitan-district-council/walsall,WC73-485,31/10/2016,,Childrens,BLUEBELLS #1,10/10/2016,568.33,76000-TRANSFER PAYMENTS - SOCIAL SERVICES CLIENTS,BLUEBELLS,Transfer Payments,Revenue
Walsall Council,http://opendatacommunities.org/id/metropolitan-district-council/walsall,WC73-486,31/10/2016,,Social Care & Inclusion,BLUEBIRD CARE (MID STAFFS),17/10/2016,540,73372-DOMICILIARY CARE,OP COMMISSIONING,Third Party Payments,Revenue
Walsall Council,http://opendatacommunities.org/id/metropolitan-district-council/walsall,WC73-487,31/10/2016,,Economy & Environment,BME UNITED LTD,13/10/2016,"3,226.00",63000-PROFESSIONAL FEES AND SERVICES,SMOKING CESSATION,Supplies & Services,Revenue
Walsall Council,http://opendatacommunities.org/id/metropolitan-district-council/walsall,WC73-488,31/10/2016,,Economy & Environment,BME UNITED LTD,13/10/2016,"3,604.00",63000-PROFESSIONAL FEES AND SERVICES,SMOKING CESSATION,Supplies & Services,Revenue
Walsall Council,http://opendatacommunities.org/id/metropolitan-district-council/walsall,WC73-489,31/10/2016,,Economy & Environment,BOC LTD,04/10/2016,293.45,60500-GENERAL MATERIALS,INFRASTRUCTURE MAINTENANCE,Supplies & Services,Revenue
Walsall Council,http://opendatacommunities.org/id/metropolitan-district-council/walsall,WC73-490,31/10/2016,,Economy & Environment,BOC LTD,01/10/2016,589.73,63114-OTHER FEES & LICENCES-SERVICES-FEES,POLLUTION DIVISION,Supplies & Services,Revenue
Walsall Council,http://opendatacommunities.org/id/metropolitan-district-council/walsall,WC73-491,31/10/2016,,Social Care & Inclusion,BOLDMERE COURT CARE HOME,13/10/2016,667.75,73373-RESIDENTIAL & NURSING CARE PLACEMENTS,OP COMMISSIONING,Third Party Payments,Revenue
Walsall Council,http://opendatacommunities.org/id/metropolitan-district-council/walsall,WC73-492,31/10/2016,,Social Care & Inclusion,BOLDMERE COURT CARE HOME,13/10/2016,"3,594.21",73373-RESIDENTIAL & NURSING CARE PLACEMENTS,OP COMMISSIONING,Third Party Payments,Revenue
Walsall Council,http://opendatacommunities.org/id/metropolitan-district-council/walsall,WC73-493,31/10/2016,,Social Care & Inclusion,BOLDMERE COURT CARE HOME,13/10/2016,"13,071.43",73373-RESIDENTIAL & NURSING CARE PLACEMENTS,MH COMMISSIONING,Third Party Payments,Revenue
Walsall Council,http://opendatacommunities.org/id/metropolitan-district-council/walsall,WC73-494,31/10/2016,,Economy & Environment,BOLINDA UK LTD,18/10/2016,"1,158.87",60501-LIBRARY BOOKS,LIBRARY STOCK AND PERFORMANCE,Supplies & Services,Revenue
Walsall Council,http://opendatacommunities.org/id/metropolitan-district-council/walsall,WC73-495,31/10/2016,,Economy & Environment,BOLINDA UK LTD,14/10/2016,"1,544.30",60501-LIBRARY BOOKS,LIBRARY STOCK AND PERFORMANCE,Supplies & Services,Revenue
Walsall Council,http://opendatacommunities.org/id/metropolitan-district-council/walsall,WC73-496,31/10/2016,,Change and Governance,BOLLMOR LTD,04/10/2016,716,62001-STATIONERY & GENERAL SUPPLIES-OFFICE EXP,ELECTORAL SERVICES,Supplies & Services,Revenue
Walsall Council,http://opendatacommunities.org/id/metropolitan-district-council/walsall,WC73-497,31/10/2016,,Economy & Environment,BONINGALE NURSERIES,01/10/2016,223.09,60500-GENERAL MATERIALS,COUNTRYSIDE MANAGEMENT-OTHER,Supplies & Services,Revenue
Walsall Council,http://opendatacommunities.org/id/metropolitan-district-council/walsall,WC73-498,31/10/2016,,Childrens,BOULTON TRAVEL LIMITED,06/10/2016,780,52000-WITH DRIVER-HIRE OF VEHICLES,SCHOOL TRANSPORT,Transport,Revenue
Walsall Council,http://opendatacommunities.org/id/metropolitan-district-council/walsall,WC73-499,31/10/2016,,Childrens,BOULTON TRAVEL LIMITED,06/10/2016,"2,034.00",52000-WITH DRIVER-HIRE OF VEHICLES,SCHOOL TRANSPORT,Transport,Revenue
Walsall Council,http://opendatacommunities.org/id/metropolitan-district-council/walsall,WC73-500,31/10/2016,,Childrens,BOULTON TRAVEL LIMITED,06/10/2016,"2,286.00",52000-WITH DRIVER-HIRE OF VEHICLES,SCHOOL TRANSPORT,Transport,Revenue
Walsall Council,http://opendatacommunities.org/id/metropolitan-district-council/walsall,WC73-501,31/10/2016,,Social Care & Inclusion,BOWDEN DERRA PARK,25/10/2016,"10,502.76",73373-RESIDENTIAL & NURSING CARE PLACEMENTS,LD COMMISSIONING,Third Party Payments,Revenue
Walsall Council,http://opendatacommunities.org/id/metropolitan-district-council/walsall,WC73-502,31/10/2016,,Economy & Environment,BRADVALE LTD T/A INSPIRE HEALTHCARE SERVICES,20/10/2016,284.98,60009-LEASING/HIRE/RENTAL-EQUIPMENT,DARLASTON LEISURE CENTRE,Supplies & Services,Revenue
Walsall Council,http://opendatacommunities.org/id/metropolitan-district-council/walsall,WC73-503,31/10/2016,,Economy & Environment,BRADVALE LTD T/A INSPIRE HEALTHCARE SERVICES,10/10/2016,392.23,60008-MAINTENANCE-FURNITURE & EQUIPMENT,OAK PARK,Supplies & Services,Revenue
Walsall Council,http://opendatacommunities.org/id/metropolitan-district-council/walsall,WC73-504,31/10/2016,,Economy & Environment,BRADVALE LTD T/A INSPIRE HEALTHCARE SERVICES,10/10/2016,555.51,60500-GENERAL MATERIALS,ARBORETUM VISITOR CENTRE,Supplies & Services,Revenue
Walsall Council,http://opendatacommunities.org/id/metropolitan-district-council/walsall,WC73-505,31/10/2016,,Social Care & Inclusion,REDACTED,10/10/2016,440,76422-DIRECT PAYMENTS TO SOCIAL SERVICES CLIENTS,LD COMMISSIONING,Transfer Payments,Revenue
Walsall Council,http://opendatacommunities.org/id/metropolitan-district-council/walsall,WC73-506,31/10/2016,,Childrens,REDACTED,10/10/2016,"1,821.52",62515-MISCELLANEOUS SUPPLIES,INTERNAL FOSTER CARE PROVISION,Supplies & Services,Revenue
Walsall Council,http://opendatacommunities.org/id/metropolitan-district-council/walsall,WC73-507,31/10/2016,,Childrens,REDACTED,10/10/2016,"1,970.64",74006-HOLIDAY/CHRISTMAS ALLOWANCE-FOSTER CARERS-OTH AGENCY PROVISION,INTERNAL FOSTER CARE PROVISION,Third Party Payments,Revenue
Walsall Council,http://opendatacommunities.org/id/metropolitan-district-council/walsall,WC73-508,31/10/2016,,Economy & Environment,BRENNTAG UK LIMITED,17/10/2016,319.5,60503-CHEMICALS & SCIENTIFIC MATS-MATERIALS,BLOXWICH LEISURE CENTRE,Supplies & Services,Revenue
Walsall Council,http://opendatacommunities.org/id/metropolitan-district-council/walsall,WC73-509,31/10/2016,,Economy & Environment,BRENNTAG UK LIMITED,01/10/2016,364.5,60503-CHEMICALS & SCIENTIFIC MATS-MATERIALS,BLOXWICH LEISURE CENTRE,Supplies & Services,Revenue
Walsall Council,http://opendatacommunities.org/id/metropolitan-district-council/walsall,WC73-510,31/10/2016,,Economy & Environment,BRENNTAG UK LIMITED,01/10/2016,465,60503-CHEMICALS & SCIENTIFIC MATS-MATERIALS,BLOXWICH LEISURE CENTRE,Supplies & Services,Revenue
Walsall Council,http://opendatacommunities.org/id/metropolitan-district-council/walsall,WC73-511,31/10/2016,,Economy & Environment,BRENNTAG UK LIMITED,20/10/2016,550,01006-SITE WORKS MAIN CONTRACTORS,CFR 1037 ACTIVE LIVING BLOXWICH (PRUDENTIAL),Capital,Capital
Walsall Council,http://opendatacommunities.org/id/metropolitan-district-council/walsall,WC73-512,31/10/2016,,Economy & Environment,BRENNTAG UK LIMITED,21/10/2016,570.84,50301-FUEL-TRANSPORT RUN COSTS,FUEL STOCK ACCOUNT,Transport,Revenue
Walsall Council,http://opendatacommunities.org/id/metropolitan-district-council/walsall,WC73-513,31/10/2016,,Social Care & Inclusion,REDACTED,18/10/2016,"1,337.64",73374-SUPPORTED & OTHER ACCOMMODATION,LD COMMISSIONING,Third Party Payments,Revenue
Walsall Council,http://opendatacommunities.org/id/metropolitan-district-council/walsall,WC73-514,31/10/2016,,Social Care & Inclusion,REDACTED,18/10/2016,"1,597.60",73374-SUPPORTED & OTHER ACCOMMODATION,LD COMMISSIONING,Third Party Payments,Revenue
Walsall Council,http://opendatacommunities.org/id/metropolitan-district-council/walsall,WC73-515,31/10/2016,,Social Care & Inclusion,REDACTED,10/10/2016,"1,726.40",76422-DIRECT PAYMENTS TO SOCIAL SERVICES CLIENTS,OP COMMISSIONING,Transfer Payments,Revenue
Walsall Council,http://opendatacommunities.org/id/metropolitan-district-council/walsall,WC73-516,31/10/2016,,Social Care & Inclusion,REDACTED,10/10/2016,738,76422-DIRECT PAYMENTS TO SOCIAL SERVICES CLIENTS,OP COMMISSIONING,Transfer Payments,Revenue
Walsall Council,http://opendatacommunities.org/id/metropolitan-district-council/walsall,WC73-517,31/10/2016,,Economy & Environment,BRIDGEALL LIBRARIES LTD,05/10/2016,"10,558.00",64500-PUBLICATIONS/ORGANISATIONS-SUBSCRIPTIONS,LIBRARY STOCK AND PERFORMANCE,Supplies & Services,Revenue
Walsall Council,http://opendatacommunities.org/id/metropolitan-district-council/walsall,WC73-518,31/10/2016,,Social Care & Inclusion,BRIDGEWOOD HEALTH CARE LTD,19/10/2016,"5,513.72",73373-RESIDENTIAL & NURSING CARE PLACEMENTS,PD COMMISSIONING,Third Party Payments,Revenue
Walsall Council,http://opendatacommunities.org/id/metropolitan-district-council/walsall,WC73-519,31/10/2016,,Childrens,BRIGHT HORIZONS (WISHING WILLOW),21/10/2016,"1,099.63",63120-CRECHE FACILITIES-SERVICES-FEES,FAMILY PLACEMENTS,Supplies & Services,Revenue
Walsall Council,http://opendatacommunities.org/id/metropolitan-district-council/walsall,WC73-520,31/10/2016,,Change and Governance,BRISTOW & SUTOR,07/10/2016,339.4,73014-LEGAL FEES-PRIV CONTRACTOR FEES,REVENUES,Third Party Payments,Revenue
Walsall Council,http://opendatacommunities.org/id/metropolitan-district-council/walsall,WC73-521,31/10/2016,,Change and Governance,BRISTOW & SUTOR,07/10/2016,718.43,73014-LEGAL FEES-PRIV CONTRACTOR FEES,REVENUES,Third Party Payments,Revenue
Walsall Council,http://opendatacommunities.org/id/metropolitan-district-council/walsall,WC73-522,31/10/2016,,Economy & Environment,BRITANNIA APPRENTICESHIPS LTD,11/10/2016,375,66500-GRANTS TO OTHER ORGS,RES-WALSALL WORKS,Third Party Payments,Revenue
Walsall Council,http://opendatacommunities.org/id/metropolitan-district-council/walsall,WC73-523,31/10/2016,,Economy & Environment,BRITANNIA APPRENTICESHIPS LTD,11/10/2016,750,66500-GRANTS TO OTHER ORGS,RES-WALSALL WORKS,Third Party Payments,Revenue
Walsall Council,http://opendatacommunities.org/id/metropolitan-district-council/walsall,WC73-524,31/10/2016,,Change and Governance,BRITISH GAS BUSINESS,21/10/2016,273.34,42000-GAS-ENERGY COSTS,CENTRALISED ENERGY,Premises,Revenue
Walsall Council,http://opendatacommunities.org/id/metropolitan-district-council/walsall,WC73-525,31/10/2016,,Change and Governance,BRITISH GAS BUSINESS,21/10/2016,282.47,42000-GAS-ENERGY COSTS,CENTRALISED ENERGY,Premises,Revenue
Walsall Council,http://opendatacommunities.org/id/metropolitan-district-council/walsall,WC73-526,31/10/2016,,Change and Governance,BRITISH GAS BUSINESS,05/10/2016,284.43,42000-GAS-ENERGY COSTS,CENTRALISED ENERGY,Premises,Revenue
Walsall Council,http://opendatacommunities.org/id/metropolitan-district-council/walsall,WC73-527,31/10/2016,,Change and Governance,BRITISH GAS BUSINESS,05/10/2016,286.16,42000-GAS-ENERGY COSTS,DARLASTON TOWN HALL,Premises,Revenue
Walsall Council,http://opendatacommunities.org/id/metropolitan-district-council/walsall,WC73-528,31/10/2016,,Change and Governance,BRITISH GAS BUSINESS,05/10/2016,290.97,42000-GAS-ENERGY COSTS,RECHARGEABLE UTILITIES,Premises,Revenue
Walsall Council,http://opendatacommunities.org/id/metropolitan-district-council/walsall,WC73-529,31/10/2016,,Change and Governance,BRITISH GAS BUSINESS,05/10/2016,420.67,42000-GAS-ENERGY COSTS,CENTRALISED ENERGY,Premises,Revenue
Walsall Council,http://opendatacommunities.org/id/metropolitan-district-council/walsall,WC73-530,31/10/2016,,Change and Governance,BRITISH GAS BUSINESS,05/10/2016,437.31,42000-GAS-ENERGY COSTS,CENTRALISED ENERGY,Premises,Revenue
Walsall Council,http://opendatacommunities.org/id/metropolitan-district-council/walsall,WC73-531,31/10/2016,,Change and Governance,BRITISH GAS BUSINESS,21/10/2016,445.66,42000-GAS-ENERGY COSTS,RECHARGEABLE UTILITIES,Premises,Revenue
Walsall Council,http://opendatacommunities.org/id/metropolitan-district-council/walsall,WC73-532,31/10/2016,,Change and Governance,BRITISH GAS BUSINESS,05/10/2016,470,42000-GAS-ENERGY COSTS,CENTRALISED ENERGY,Premises,Revenue
Walsall Council,http://opendatacommunities.org/id/metropolitan-district-council/walsall,WC73-533,31/10/2016,,Change and Governance,BRITISH GAS BUSINESS,05/10/2016,478.81,42000-GAS-ENERGY COSTS,CENTRALISED ENERGY,Premises,Revenue
Walsall Council,http://opendatacommunities.org/id/metropolitan-district-council/walsall,WC73-534,31/10/2016,,Change and Governance,BRITISH GAS BUSINESS,05/10/2016,772.98,42000-GAS-ENERGY COSTS,CENTRALISED ENERGY,Premises,Revenue
Walsall Council,http://opendatacommunities.org/id/metropolitan-district-council/walsall,WC73-535,31/10/2016,,Change and Governance,BRITISH GAS BUSINESS,05/10/2016,839.27,42000-GAS-ENERGY COSTS,CENTRAL OFFICE ACCOMMODATION,Premises,Revenue
Walsall Council,http://opendatacommunities.org/id/metropolitan-district-council/walsall,WC73-536,31/10/2016,,Change and Governance,BRITISH GAS BUSINESS,05/10/2016,970.85,42000-GAS-ENERGY COSTS,CENTRALISED ENERGY,Premises,Revenue
Walsall Council,http://opendatacommunities.org/id/metropolitan-district-council/walsall,WC73-537,31/10/2016,,Childrens,BRITISH GAS BUSINESS,18/10/2016,"1,178.76",42000-GAS-ENERGY COSTS,PELSALL EDC,Premises,Revenue
Walsall Council,http://opendatacommunities.org/id/metropolitan-district-council/walsall,WC73-538,31/10/2016,,Change and Governance,BRITISH GAS BUSINESS,05/10/2016,"1,804.37",42000-GAS-ENERGY COSTS,RECHARGEABLE UTILITIES,Premises,Revenue
Walsall Council,http://opendatacommunities.org/id/metropolitan-district-council/walsall,WC73-539,31/10/2016,,Change and Governance,BRITISH GAS BUSINESS,05/10/2016,"2,046.08",42000-GAS-ENERGY COSTS,CENTRALISED ENERGY,Premises,Revenue
Walsall Council,http://opendatacommunities.org/id/metropolitan-district-council/walsall,WC73-540,31/10/2016,,Change and Governance,BRITISH GAS BUSINESS,05/10/2016,"2,815.52",42000-GAS-ENERGY COSTS,CENTRALISED ENERGY,Premises,Revenue
Walsall Council,http://opendatacommunities.org/id/metropolitan-district-council/walsall,WC73-541,31/10/2016,,Change and Governance,BRITISH GAS BUSINESS,05/10/2016,"2,879.70",42000-GAS-ENERGY COSTS,CENTRALISED ENERGY,Premises,Revenue
Walsall Council,http://opendatacommunities.org/id/metropolitan-district-council/walsall,WC73-542,31/10/2016,,Change and Governance,BRITISH GAS BUSINESS,05/10/2016,"3,372.50",42000-GAS-ENERGY COSTS,CENTRALISED ENERGY,Premises,Revenue
Walsall Council,http://opendatacommunities.org/id/metropolitan-district-council/walsall,WC73-543,31/10/2016,,Change and Governance,BRITISH GAS BUSINESS,05/10/2016,"4,801.93",42000-GAS-ENERGY COSTS,CENTRALISED ENERGY,Premises,Revenue
Walsall Council,http://opendatacommunities.org/id/metropolitan-district-council/walsall,WC73-544,31/10/2016,,Economy & Environment,BROADWAY PHARMACY,19/10/2016,141.6,63000-PROFESSIONAL FEES AND SERVICES,SEXUAL HEALTH,Supplies & Services,Revenue
Walsall Council,http://opendatacommunities.org/id/metropolitan-district-council/walsall,WC73-545,31/10/2016,,Economy & Environment,BROADWAY PHARMACY,19/10/2016,625.21,71007-CONTRIBUTION TO PCT,PUBLIC HEALTH BUSINESS SUPPORT,Third Party Payments,Revenue
Walsall Council,http://opendatacommunities.org/id/metropolitan-district-council/walsall,WC73-546,31/10/2016,,Holding Accounts,BROWNE JACOBSON SOLICITORS,14/10/2016,512,67001-MISC INSURANCES - PAYMENT OF CLAIMS,PUBLIC LIABILITY,Supplies & Services,Revenue
Walsall Council,http://opendatacommunities.org/id/metropolitan-district-council/walsall,WC73-547,31/10/2016,,Economy & Environment,BROWNHILLS ASPHALT & TARMAC LIMITED,28/10/2016,260,60500-GENERAL MATERIALS,CEMETERIES CENTRAL ADMINISTRATION,Supplies & Services,Revenue
Walsall Council,http://opendatacommunities.org/id/metropolitan-district-council/walsall,WC73-548,31/10/2016,,Economy & Environment,BROWNHILLS ASPHALT & TARMAC LIMITED,28/10/2016,520,60500-GENERAL MATERIALS,CEMETERIES CENTRAL ADMINISTRATION,Supplies & Services,Revenue
Walsall Council,http://opendatacommunities.org/id/metropolitan-district-council/walsall,WC73-549,31/10/2016,,Economy & Environment,BROWNHILLS ASPHALT & TARMAC LIMITED,03/10/2016,525,60006-NEW-FURNITURE & EQUIPMENT,INFRASTRUCTURE MAINTENANCE,Supplies & Services,Revenue
Walsall Council,http://opendatacommunities.org/id/metropolitan-district-council/walsall,WC73-550,31/10/2016,,Economy & Environment,BROWNHILLS ASPHALT & TARMAC LIMITED,17/10/2016,862,60006-NEW-FURNITURE & EQUIPMENT,INFRASTRUCTURE MAINTENANCE,Supplies & Services,Revenue
Walsall Council,http://opendatacommunities.org/id/metropolitan-district-council/walsall,WC73-551,31/10/2016,,Childrens,BROWNHILLS COMMUNITY ASSOCIATION,21/10/2016,441.1,63000-PROFESSIONAL FEES AND SERVICES,LOOKED AFTER CHILDRENS SOCIAL WORK TEAM,Supplies & Services,Revenue
Walsall Council,http://opendatacommunities.org/id/metropolitan-district-council/walsall,WC73-552,31/10/2016,,Social Care & Inclusion,REDACTED,10/10/2016,"1,530.00",76422-DIRECT PAYMENTS TO SOCIAL SERVICES CLIENTS,LD COMMISSIONING,Transfer Payments,Revenue
Walsall Council,http://opendatacommunities.org/id/metropolitan-district-council/walsall,WC73-553,31/10/2016,,Childrens,REDACTED,17/10/2016,"20,778.86",74036-EXTERNAL RESIDENTIAL CARE-OTH AGENCY PROVISION,INDEPENDENT RESIDENTIAL HOMES,Third Party Payments,Revenue
Walsall Council,http://opendatacommunities.org/id/metropolitan-district-council/walsall,WC73-554,31/10/2016,,Change and Governance,BT,12/10/2016,253.1,63601-COSTS (NOT INTERNAL RECHARGES)-TELEPHONES,CENTRAL COMMUNICATIONS RECHARGES,Supplies & Services,Revenue
Walsall Council,http://opendatacommunities.org/id/metropolitan-district-council/walsall,WC73-555,31/10/2016,,Change and Governance,BT,01/10/2016,835,63603-COST OF CALLS-TELEPHONES,PROCESSING,Supplies & Services,Revenue
Walsall Council,http://opendatacommunities.org/id/metropolitan-district-council/walsall,WC73-556,31/10/2016,,Economy & Environment,BT,13/10/2016,"8,628.76",63601-COSTS (NOT INTERNAL RECHARGES)-TELEPHONES,TRAFFIC CONTROL,Supplies & Services,Revenue
Walsall Council,http://opendatacommunities.org/id/metropolitan-district-council/walsall,WC73-557,31/10/2016,,Economy & Environment,BT,13/10/2016,"12,961.75",63601-COSTS (NOT INTERNAL RECHARGES)-TELEPHONES,TRAFFIC CONTROL,Supplies & Services,Revenue
Walsall Council,http://opendatacommunities.org/id/metropolitan-district-council/walsall,WC73-558,31/10/2016,,Change and Governance,BT,24/10/2016,"16,611.94",63601-COSTS (NOT INTERNAL RECHARGES)-TELEPHONES,CENTRAL COMMUNICATIONS RECHARGES,Supplies & Services,Revenue
Walsall Council,http://opendatacommunities.org/id/metropolitan-district-council/walsall,WC73-559,31/10/2016,,Change and Governance,BT PLC,04/10/2016,"6,334.90",63800-COMPUTER EQUIPMENT AND SUPPLIES,RECHARGEABLE EQUIPMENT,Supplies & Services,Revenue
Walsall Council,http://opendatacommunities.org/id/metropolitan-district-council/walsall,WC73-560,31/10/2016,,Change and Governance,BUILDING RECRUITMENT COMPANY,14/10/2016,871.25,73025-PROFESSIONAL SERVICES-PRIV CONTRACTOR & OTHER AGENCIES,INTEGRATED FACILITIES MANAGEMENT,Third Party Payments,Revenue
Walsall Council,http://opendatacommunities.org/id/metropolitan-district-council/walsall,WC73-561,31/10/2016,,Social Care & Inclusion,BUPA CARE HOMES (CFHCARE) LTD,13/10/2016,"1,649.80",73373-RESIDENTIAL & NURSING CARE PLACEMENTS,OP COMMISSIONING,Third Party Payments,Revenue
Walsall Council,http://opendatacommunities.org/id/metropolitan-district-council/walsall,WC73-562,31/10/2016,,Social Care & Inclusion,BUPA CARE HOMES (CFHCARE) LTD,13/10/2016,"1,882.36",73373-RESIDENTIAL & NURSING CARE PLACEMENTS,OP COMMISSIONING,Third Party Payments,Revenue
Walsall Council,http://opendatacommunities.org/id/metropolitan-district-council/walsall,WC73-563,31/10/2016,,Social Care & Inclusion,BUPA CARE HOMES (CFHCARE) LTD,13/10/2016,"3,380.20",73373-RESIDENTIAL & NURSING CARE PLACEMENTS,OP COMMISSIONING,Third Party Payments,Revenue
Walsall Council,http://opendatacommunities.org/id/metropolitan-district-council/walsall,WC73-564,31/10/2016,,Economy & Environment,BURTON ADDICTION CENTRE,25/10/2016,"1,350.00",63000-PROFESSIONAL FEES AND SERVICES,ALCOHOL & DRUGS MISUSE/TOBACCO CONTROL,Supplies & Services,Revenue
Walsall Council,http://opendatacommunities.org/id/metropolitan-district-council/walsall,WC73-565,31/10/2016,,Economy & Environment,BURTON HOSPITALS NHS FOUNDATION TRUST,17/10/2016,356.16,63000-PROFESSIONAL FEES AND SERVICES,SEXUAL HEALTH,Supplies & Services,Revenue
Walsall Council,http://opendatacommunities.org/id/metropolitan-district-council/walsall,WC73-566,31/10/2016,,Social Care & Inclusion,BUSH HOME LTD,04/10/2016,"1,620.00",73373-RESIDENTIAL & NURSING CARE PLACEMENTS,OP COMMISSIONING,Third Party Payments,Revenue
Walsall Council,http://opendatacommunities.org/id/metropolitan-district-council/walsall,WC73-567,31/10/2016,,Social Care & Inclusion,BUSH HOME LTD,04/10/2016,"1,620.00",73373-RESIDENTIAL & NURSING CARE PLACEMENTS,OP COMMISSIONING,Third Party Payments,Revenue
Walsall Council,http://opendatacommunities.org/id/metropolitan-district-council/walsall,WC73-568,31/10/2016,,Social Care & Inclusion,BUSH HOME LTD,04/10/2016,"1,620.00",73373-RESIDENTIAL & NURSING CARE PLACEMENTS,OP COMMISSIONING,Third Party Payments,Revenue
Walsall Council,http://opendatacommunities.org/id/metropolitan-district-council/walsall,WC73-569,31/10/2016,,Social Care & Inclusion,BUSH HOME LTD,04/10/2016,"1,620.00",73373-RESIDENTIAL & NURSING CARE PLACEMENTS,OP COMMISSIONING,Third Party Payments,Revenue
Walsall Council,http://opendatacommunities.org/id/metropolitan-district-council/walsall,WC73-570,31/10/2016,,Social Care & Inclusion,BUSH HOME LTD,04/10/2016,"1,620.00",73373-RESIDENTIAL & NURSING CARE PLACEMENTS,OP COMMISSIONING,Third Party Payments,Revenue
Walsall Council,http://opendatacommunities.org/id/metropolitan-district-council/walsall,WC73-571,31/10/2016,,Social Care & Inclusion,BUSH HOME LTD,04/10/2016,"1,620.00",73373-RESIDENTIAL & NURSING CARE PLACEMENTS,OP COMMISSIONING,Third Party Payments,Revenue
Walsall Council,http://opendatacommunities.org/id/metropolitan-district-council/walsall,WC73-572,31/10/2016,,Social Care & Inclusion,BUSH HOME LTD,25/10/2016,"1,620.00",73373-RESIDENTIAL & NURSING CARE PLACEMENTS,OP COMMISSIONING,Third Party Payments,Revenue
Walsall Council,http://opendatacommunities.org/id/metropolitan-district-council/walsall,WC73-573,31/10/2016,,Social Care & Inclusion,BUSH HOME LTD,25/10/2016,"1,620.00",73373-RESIDENTIAL & NURSING CARE PLACEMENTS,OP COMMISSIONING,Third Party Payments,Revenue
Walsall Council,http://opendatacommunities.org/id/metropolitan-district-council/walsall,WC73-574,31/10/2016,,Social Care & Inclusion,BUSH HOME LTD,25/10/2016,"1,620.00",73373-RESIDENTIAL & NURSING CARE PLACEMENTS,OP COMMISSIONING,Third Party Payments,Revenue
Walsall Council,http://opendatacommunities.org/id/metropolitan-district-council/walsall,WC73-575,31/10/2016,,Social Care & Inclusion,BUSH HOME LTD,25/10/2016,"1,620.00",73373-RESIDENTIAL & NURSING CARE PLACEMENTS,OP COMMISSIONING,Third Party Payments,Revenue
Walsall Council,http://opendatacommunities.org/id/metropolitan-district-council/walsall,WC73-576,31/10/2016,,Social Care & Inclusion,BUSH HOME LTD,25/10/2016,"1,620.00",73373-RESIDENTIAL & NURSING CARE PLACEMENTS,OP COMMISSIONING,Third Party Payments,Revenue
Walsall Council,http://opendatacommunities.org/id/metropolitan-district-council/walsall,WC73-577,31/10/2016,,Social Care & Inclusion,BUSH HOME LTD,25/10/2016,"1,620.00",73373-RESIDENTIAL & NURSING CARE PLACEMENTS,OP COMMISSIONING,Third Party Payments,Revenue
Walsall Council,http://opendatacommunities.org/id/metropolitan-district-council/walsall,WC73-578,31/10/2016,,Social Care & Inclusion,BUSH HOME LTD,04/10/2016,"1,800.00",73373-RESIDENTIAL & NURSING CARE PLACEMENTS,OP COMMISSIONING,Third Party Payments,Revenue
Walsall Council,http://opendatacommunities.org/id/metropolitan-district-council/walsall,WC73-579,31/10/2016,,Social Care & Inclusion,BUSH HOME LTD,04/10/2016,"1,800.00",73373-RESIDENTIAL & NURSING CARE PLACEMENTS,OP COMMISSIONING,Third Party Payments,Revenue
Walsall Council,http://opendatacommunities.org/id/metropolitan-district-council/walsall,WC73-580,31/10/2016,,Social Care & Inclusion,BUSH HOME LTD,04/10/2016,"1,800.00",73373-RESIDENTIAL & NURSING CARE PLACEMENTS,OP COMMISSIONING,Third Party Payments,Revenue
Walsall Council,http://opendatacommunities.org/id/metropolitan-district-council/walsall,WC73-581,31/10/2016,,Social Care & Inclusion,BUSH HOME LTD,04/10/2016,"1,800.00",73373-RESIDENTIAL & NURSING CARE PLACEMENTS,OP COMMISSIONING,Third Party Payments,Revenue
Walsall Council,http://opendatacommunities.org/id/metropolitan-district-council/walsall,WC73-582,31/10/2016,,Social Care & Inclusion,BUSH HOME LTD,04/10/2016,"1,800.00",73373-RESIDENTIAL & NURSING CARE PLACEMENTS,OP COMMISSIONING,Third Party Payments,Revenue
Walsall Council,http://opendatacommunities.org/id/metropolitan-district-council/walsall,WC73-583,31/10/2016,,Social Care & Inclusion,BUSH HOME LTD,04/10/2016,"1,800.00",73373-RESIDENTIAL & NURSING CARE PLACEMENTS,OP COMMISSIONING,Third Party Payments,Revenue
Walsall Council,http://opendatacommunities.org/id/metropolitan-district-council/walsall,WC73-584,31/10/2016,,Social Care & Inclusion,BUSH HOME LTD,04/10/2016,"1,800.00",73373-RESIDENTIAL & NURSING CARE PLACEMENTS,OP COMMISSIONING,Third Party Payments,Revenue
Walsall Council,http://opendatacommunities.org/id/metropolitan-district-council/walsall,WC73-585,31/10/2016,,Social Care & Inclusion,BUSH HOME LTD,04/10/2016,"1,800.00",73373-RESIDENTIAL & NURSING CARE PLACEMENTS,OP COMMISSIONING,Third Party Payments,Revenue
Walsall Council,http://opendatacommunities.org/id/metropolitan-district-council/walsall,WC73-586,31/10/2016,,Social Care & Inclusion,BUSH HOME LTD,04/10/2016,"1,800.00",73373-RESIDENTIAL & NURSING CARE PLACEMENTS,OP COMMISSIONING,Third Party Payments,Revenue
Walsall Council,http://opendatacommunities.org/id/metropolitan-district-council/walsall,WC73-587,31/10/2016,,Social Care & Inclusion,BUSH HOME LTD,04/10/2016,"1,800.00",73373-RESIDENTIAL & NURSING CARE PLACEMENTS,OP COMMISSIONING,Third Party Payments,Revenue
Walsall Council,http://opendatacommunities.org/id/metropolitan-district-council/walsall,WC73-588,31/10/2016,,Social Care & Inclusion,BUSH HOME LTD,04/10/2016,"1,800.00",73373-RESIDENTIAL & NURSING CARE PLACEMENTS,OP COMMISSIONING,Third Party Payments,Revenue
Walsall Council,http://opendatacommunities.org/id/metropolitan-district-council/walsall,WC73-589,31/10/2016,,Social Care & Inclusion,BUSH HOME LTD,04/10/2016,"1,800.00",73373-RESIDENTIAL & NURSING CARE PLACEMENTS,OP COMMISSIONING,Third Party Payments,Revenue
Walsall Council,http://opendatacommunities.org/id/metropolitan-district-council/walsall,WC73-590,31/10/2016,,Social Care & Inclusion,BUSH HOME LTD,04/10/2016,"1,800.00",73373-RESIDENTIAL & NURSING CARE PLACEMENTS,OP COMMISSIONING,Third Party Payments,Revenue
Walsall Council,http://opendatacommunities.org/id/metropolitan-district-council/walsall,WC73-591,31/10/2016,,Social Care & Inclusion,BUSH HOME LTD,25/10/2016,"1,800.00",73373-RESIDENTIAL & NURSING CARE PLACEMENTS,OP COMMISSIONING,Third Party Payments,Revenue
Walsall Council,http://opendatacommunities.org/id/metropolitan-district-council/walsall,WC73-592,31/10/2016,,Social Care & Inclusion,BUSH HOME LTD,25/10/2016,"1,800.00",73373-RESIDENTIAL & NURSING CARE PLACEMENTS,OP COMMISSIONING,Third Party Payments,Revenue
Walsall Council,http://opendatacommunities.org/id/metropolitan-district-council/walsall,WC73-593,31/10/2016,,Social Care & Inclusion,BUSH HOME LTD,25/10/2016,"1,800.00",73373-RESIDENTIAL & NURSING CARE PLACEMENTS,OP COMMISSIONING,Third Party Payments,Revenue
Walsall Council,http://opendatacommunities.org/id/metropolitan-district-council/walsall,WC73-594,31/10/2016,,Social Care & Inclusion,BUSH HOME LTD,25/10/2016,"1,800.00",73373-RESIDENTIAL & NURSING CARE PLACEMENTS,OP COMMISSIONING,Third Party Payments,Revenue
Walsall Council,http://opendatacommunities.org/id/metropolitan-district-council/walsall,WC73-595,31/10/2016,,Social Care & Inclusion,BUSH HOME LTD,25/10/2016,"1,800.00",73373-RESIDENTIAL & NURSING CARE PLACEMENTS,OP COMMISSIONING,Third Party Payments,Revenue
Walsall Council,http://opendatacommunities.org/id/metropolitan-district-council/walsall,WC73-596,31/10/2016,,Social Care & Inclusion,BUSH HOME LTD,25/10/2016,"1,800.00",73373-RESIDENTIAL & NURSING CARE PLACEMENTS,OP COMMISSIONING,Third Party Payments,Revenue
Walsall Council,http://opendatacommunities.org/id/metropolitan-district-council/walsall,WC73-597,31/10/2016,,Social Care & Inclusion,BUSH HOME LTD,25/10/2016,"1,800.00",73373-RESIDENTIAL & NURSING CARE PLACEMENTS,OP COMMISSIONING,Third Party Payments,Revenue
Walsall Council,http://opendatacommunities.org/id/metropolitan-district-council/walsall,WC73-598,31/10/2016,,Social Care & Inclusion,BUSH HOME LTD,25/10/2016,"1,800.00",73373-RESIDENTIAL & NURSING CARE PLACEMENTS,OP COMMISSIONING,Third Party Payments,Revenue
Walsall Council,http://opendatacommunities.org/id/metropolitan-district-council/walsall,WC73-599,31/10/2016,,Social Care & Inclusion,BUSH HOME LTD,25/10/2016,"1,800.00",73373-RESIDENTIAL & NURSING CARE PLACEMENTS,OP COMMISSIONING,Third Party Payments,Revenue
Walsall Council,http://opendatacommunities.org/id/metropolitan-district-council/walsall,WC73-600,31/10/2016,,Social Care & Inclusion,BUSH HOME LTD,25/10/2016,"1,800.00",73373-RESIDENTIAL & NURSING CARE PLACEMENTS,OP COMMISSIONING,Third Party Payments,Revenue
Walsall Council,http://opendatacommunities.org/id/metropolitan-district-council/walsall,WC73-601,31/10/2016,,Social Care & Inclusion,BUSH HOME LTD,25/10/2016,"1,800.00",73373-RESIDENTIAL & NURSING CARE PLACEMENTS,OP COMMISSIONING,Third Party Payments,Revenue
Walsall Council,http://opendatacommunities.org/id/metropolitan-district-council/walsall,WC73-602,31/10/2016,,Social Care & Inclusion,BUSH HOME LTD,25/10/2016,"1,800.00",73373-RESIDENTIAL & NURSING CARE PLACEMENTS,OP COMMISSIONING,Third Party Payments,Revenue
Walsall Council,http://opendatacommunities.org/id/metropolitan-district-council/walsall,WC73-603,31/10/2016,,Social Care & Inclusion,BUSH HOME LTD,25/10/2016,"1,800.00",73373-RESIDENTIAL & NURSING CARE PLACEMENTS,OP COMMISSIONING,Third Party Payments,Revenue
Walsall Council,http://opendatacommunities.org/id/metropolitan-district-council/walsall,WC73-604,31/10/2016,,Social Care & Inclusion,BUSH HOME LTD,19/10/2016,"1,992.85",73373-RESIDENTIAL & NURSING CARE PLACEMENTS,MH COMMISSIONING,Third Party Payments,Revenue
Walsall Council,http://opendatacommunities.org/id/metropolitan-district-council/walsall,WC73-605,31/10/2016,,Childrens,BY THE BRIDGE,26/10/2016,"-2,688.00",74037-INDEPENDENT FOSTER CARE-OTH AGENCY PROVISION,EXTERNAL FOSTER CARE PROVISION,Third Party Payments,Revenue
Walsall Council,http://opendatacommunities.org/id/metropolitan-district-council/walsall,WC73-606,31/10/2016,,Childrens,BY THE BRIDGE,05/10/2016,"3,151.15",74037-INDEPENDENT FOSTER CARE-OTH AGENCY PROVISION,EXTERNAL FOSTER CARE PROVISION,Third Party Payments,Revenue
Walsall Council,http://opendatacommunities.org/id/metropolitan-district-council/walsall,WC73-607,31/10/2016,,Childrens,BY THE BRIDGE,05/10/2016,"3,233.30",74037-INDEPENDENT FOSTER CARE-OTH AGENCY PROVISION,EXTERNAL FOSTER CARE PROVISION,Third Party Payments,Revenue
Walsall Council,http://opendatacommunities.org/id/metropolitan-district-council/walsall,WC73-608,31/10/2016,,Childrens,BY THE BRIDGE,05/10/2016,"3,361.64",74037-INDEPENDENT FOSTER CARE-OTH AGENCY PROVISION,EXTERNAL FOSTER CARE PROVISION,Third Party Payments,Revenue
Walsall Council,http://opendatacommunities.org/id/metropolitan-district-council/walsall,WC73-609,31/10/2016,,Childrens,BY THE BRIDGE,05/10/2016,"4,424.14",74037-INDEPENDENT FOSTER CARE-OTH AGENCY PROVISION,EXTERNAL FOSTER CARE PROVISION,Third Party Payments,Revenue
Walsall Council,http://opendatacommunities.org/id/metropolitan-district-council/walsall,WC73-610,31/10/2016,,Childrens,BY THE BRIDGE,05/10/2016,"4,948.93",74037-INDEPENDENT FOSTER CARE-OTH AGENCY PROVISION,EXTERNAL FOSTER CARE PROVISION,Third Party Payments,Revenue
Walsall Council,http://opendatacommunities.org/id/metropolitan-district-council/walsall,WC73-611,31/10/2016,,Childrens,BY THE BRIDGE,26/10/2016,"7,563.86",74037-INDEPENDENT FOSTER CARE-OTH AGENCY PROVISION,EXTERNAL FOSTER CARE PROVISION,Third Party Payments,Revenue
Walsall Council,http://opendatacommunities.org/id/metropolitan-district-council/walsall,WC73-612,31/10/2016,,Social Care & Inclusion,C & V ORCHARD MANOR LTD,25/10/2016,964.28,73373-RESIDENTIAL & NURSING CARE PLACEMENTS,OP COMMISSIONING,Third Party Payments,Revenue
Walsall Council,http://opendatacommunities.org/id/metropolitan-district-council/walsall,WC73-613,31/10/2016,,Social Care & Inclusion,C & V ORCHARD MANOR LTD,25/10/2016,"1,607.12",73373-RESIDENTIAL & NURSING CARE PLACEMENTS,OP COMMISSIONING,Third Party Payments,Revenue
Walsall Council,http://opendatacommunities.org/id/metropolitan-district-council/walsall,WC73-614,31/10/2016,,Social Care & Inclusion,C & V ORCHARD MANOR LTD,19/10/2016,"1,620.00",73373-RESIDENTIAL & NURSING CARE PLACEMENTS,OP COMMISSIONING,Third Party Payments,Revenue
Walsall Council,http://opendatacommunities.org/id/metropolitan-district-council/walsall,WC73-615,31/10/2016,,Social Care & Inclusion,C & V ORCHARD MANOR LTD,19/10/2016,"1,620.00",73373-RESIDENTIAL & NURSING CARE PLACEMENTS,LD COMMISSIONING,Third Party Payments,Revenue
Walsall Council,http://opendatacommunities.org/id/metropolitan-district-council/walsall,WC73-616,31/10/2016,,Social Care & Inclusion,C & V ORCHARD MANOR LTD,19/10/2016,"1,620.00",73373-RESIDENTIAL & NURSING CARE PLACEMENTS,OP COMMISSIONING,Third Party Payments,Revenue
Walsall Council,http://opendatacommunities.org/id/metropolitan-district-council/walsall,WC73-617,31/10/2016,,Social Care & Inclusion,C & V ORCHARD MANOR LTD,19/10/2016,"1,620.00",73373-RESIDENTIAL & NURSING CARE PLACEMENTS,OP COMMISSIONING,Third Party Payments,Revenue
Walsall Council,http://opendatacommunities.org/id/metropolitan-district-council/walsall,WC73-618,31/10/2016,,Social Care & Inclusion,C & V ORCHARD MANOR LTD,19/10/2016,"1,620.00",73373-RESIDENTIAL & NURSING CARE PLACEMENTS,MH COMMISSIONING,Third Party Payments,Revenue
Walsall Council,http://opendatacommunities.org/id/metropolitan-district-council/walsall,WC73-619,31/10/2016,,Social Care & Inclusion,C & V ORCHARD MANOR LTD,19/10/2016,"1,620.00",73373-RESIDENTIAL & NURSING CARE PLACEMENTS,MH COMMISSIONING,Third Party Payments,Revenue
Walsall Council,http://opendatacommunities.org/id/metropolitan-district-council/walsall,WC73-620,31/10/2016,,Social Care & Inclusion,C & V ORCHARD MANOR LTD,25/10/2016,"1,620.00",73373-RESIDENTIAL & NURSING CARE PLACEMENTS,LD COMMISSIONING,Third Party Payments,Revenue
Walsall Council,http://opendatacommunities.org/id/metropolitan-district-council/walsall,WC73-621,31/10/2016,,Social Care & Inclusion,C & V ORCHARD MANOR LTD,25/10/2016,"1,620.00",73373-RESIDENTIAL & NURSING CARE PLACEMENTS,OP COMMISSIONING,Third Party Payments,Revenue
Walsall Council,http://opendatacommunities.org/id/metropolitan-district-council/walsall,WC73-622,31/10/2016,,Social Care & Inclusion,C & V ORCHARD MANOR LTD,25/10/2016,"1,620.00",73373-RESIDENTIAL & NURSING CARE PLACEMENTS,OP COMMISSIONING,Third Party Payments,Revenue
Walsall Council,http://opendatacommunities.org/id/metropolitan-district-council/walsall,WC73-623,31/10/2016,,Social Care & Inclusion,C & V ORCHARD MANOR LTD,25/10/2016,"1,620.00",73373-RESIDENTIAL & NURSING CARE PLACEMENTS,MH COMMISSIONING,Third Party Payments,Revenue
Walsall Council,http://opendatacommunities.org/id/metropolitan-district-council/walsall,WC73-624,31/10/2016,,Social Care & Inclusion,C & V ORCHARD MANOR LTD,19/10/2016,"1,620.60",73373-RESIDENTIAL & NURSING CARE PLACEMENTS,OP COMMISSIONING,Third Party Payments,Revenue
Walsall Council,http://opendatacommunities.org/id/metropolitan-district-council/walsall,WC73-625,31/10/2016,,Social Care & Inclusion,C & V ORCHARD MANOR LTD,25/10/2016,"1,620.60",73373-RESIDENTIAL & NURSING CARE PLACEMENTS,OP COMMISSIONING,Third Party Payments,Revenue
Walsall Council,http://opendatacommunities.org/id/metropolitan-district-council/walsall,WC73-626,31/10/2016,,Social Care & Inclusion,C & V ORCHARD MANOR LTD,19/10/2016,"1,800.00",73373-RESIDENTIAL & NURSING CARE PLACEMENTS,OP COMMISSIONING,Third Party Payments,Revenue
Walsall Council,http://opendatacommunities.org/id/metropolitan-district-council/walsall,WC73-627,31/10/2016,,Social Care & Inclusion,C & V ORCHARD MANOR LTD,19/10/2016,"1,800.00",73373-RESIDENTIAL & NURSING CARE PLACEMENTS,MH COMMISSIONING,Third Party Payments,Revenue
Walsall Council,http://opendatacommunities.org/id/metropolitan-district-council/walsall,WC73-628,31/10/2016,,Social Care & Inclusion,C & V ORCHARD MANOR LTD,19/10/2016,"1,800.00",73373-RESIDENTIAL & NURSING CARE PLACEMENTS,OP COMMISSIONING,Third Party Payments,Revenue
Walsall Council,http://opendatacommunities.org/id/metropolitan-district-council/walsall,WC73-629,31/10/2016,,Social Care & Inclusion,C & V ORCHARD MANOR LTD,19/10/2016,"1,800.00",73373-RESIDENTIAL & NURSING CARE PLACEMENTS,MH COMMISSIONING,Third Party Payments,Revenue
Walsall Council,http://opendatacommunities.org/id/metropolitan-district-council/walsall,WC73-630,31/10/2016,,Social Care & Inclusion,C & V ORCHARD MANOR LTD,25/10/2016,"1,800.00",73373-RESIDENTIAL & NURSING CARE PLACEMENTS,OP COMMISSIONING,Third Party Payments,Revenue
Walsall Council,http://opendatacommunities.org/id/metropolitan-district-council/walsall,WC73-631,31/10/2016,,Social Care & Inclusion,C & V ORCHARD MANOR LTD,25/10/2016,"1,800.00",73373-RESIDENTIAL & NURSING CARE PLACEMENTS,OP COMMISSIONING,Third Party Payments,Revenue
Walsall Council,http://opendatacommunities.org/id/metropolitan-district-council/walsall,WC73-632,31/10/2016,,Social Care & Inclusion,C & V ORCHARD MANOR LTD,25/10/2016,"1,800.00",73373-RESIDENTIAL & NURSING CARE PLACEMENTS,MH COMMISSIONING,Third Party Payments,Revenue
Walsall Council,http://opendatacommunities.org/id/metropolitan-district-council/walsall,WC73-633,31/10/2016,,Social Care & Inclusion,C & V ORCHARD MANOR LTD,25/10/2016,"1,800.00",73373-RESIDENTIAL & NURSING CARE PLACEMENTS,MH COMMISSIONING,Third Party Payments,Revenue
Walsall Council,http://opendatacommunities.org/id/metropolitan-district-council/walsall,WC73-634,31/10/2016,,Social Care & Inclusion,C & V ORCHARD MANOR LTD,25/10/2016,"1,864.28",73373-RESIDENTIAL & NURSING CARE PLACEMENTS,OP COMMISSIONING,Third Party Payments,Revenue
Walsall Council,http://opendatacommunities.org/id/metropolitan-district-council/walsall,WC73-635,31/10/2016,,Social Care & Inclusion,C & V ORCHARD RESIDENTIAL LTD,19/10/2016,"1,620.00",73373-RESIDENTIAL & NURSING CARE PLACEMENTS,OP COMMISSIONING,Third Party Payments,Revenue
Walsall Council,http://opendatacommunities.org/id/metropolitan-district-council/walsall,WC73-636,31/10/2016,,Social Care & Inclusion,C & V ORCHARD RESIDENTIAL LTD,19/10/2016,"1,620.00",73373-RESIDENTIAL & NURSING CARE PLACEMENTS,OP COMMISSIONING,Third Party Payments,Revenue
Walsall Council,http://opendatacommunities.org/id/metropolitan-district-council/walsall,WC73-637,31/10/2016,,Social Care & Inclusion,C & V ORCHARD RESIDENTIAL LTD,19/10/2016,"1,620.00",73373-RESIDENTIAL & NURSING CARE PLACEMENTS,OP COMMISSIONING,Third Party Payments,Revenue
Walsall Council,http://opendatacommunities.org/id/metropolitan-district-council/walsall,WC73-638,31/10/2016,,Social Care & Inclusion,C & V ORCHARD RESIDENTIAL LTD,25/10/2016,"1,620.00",73373-RESIDENTIAL & NURSING CARE PLACEMENTS,OP COMMISSIONING,Third Party Payments,Revenue
Walsall Council,http://opendatacommunities.org/id/metropolitan-district-council/walsall,WC73-639,31/10/2016,,Social Care & Inclusion,C & V ORCHARD RESIDENTIAL LTD,25/10/2016,"1,620.00",73373-RESIDENTIAL & NURSING CARE PLACEMENTS,OP COMMISSIONING,Third Party Payments,Revenue
Walsall Council,http://opendatacommunities.org/id/metropolitan-district-council/walsall,WC73-640,31/10/2016,,Social Care & Inclusion,C & V ORCHARD RESIDENTIAL LTD,19/10/2016,"1,799.96",73373-RESIDENTIAL & NURSING CARE PLACEMENTS,OP COMMISSIONING,Third Party Payments,Revenue
Walsall Council,http://opendatacommunities.org/id/metropolitan-district-council/walsall,WC73-641,31/10/2016,,Social Care & Inclusion,C & V ORCHARD RESIDENTIAL LTD,25/10/2016,"1,799.96",73373-RESIDENTIAL & NURSING CARE PLACEMENTS,OP COMMISSIONING,Third Party Payments,Revenue
Walsall Council,http://opendatacommunities.org/id/metropolitan-district-council/walsall,WC73-642,31/10/2016,,Social Care & Inclusion,C & V ORCHARD RESIDENTIAL LTD,19/10/2016,"1,800.00",73373-RESIDENTIAL & NURSING CARE PLACEMENTS,OP COMMISSIONING,Third Party Payments,Revenue
Walsall Council,http://opendatacommunities.org/id/metropolitan-district-council/walsall,WC73-643,31/10/2016,,Social Care & Inclusion,C & V ORCHARD RESIDENTIAL LTD,19/10/2016,"1,800.00",73373-RESIDENTIAL & NURSING CARE PLACEMENTS,OP COMMISSIONING,Third Party Payments,Revenue
Walsall Council,http://opendatacommunities.org/id/metropolitan-district-council/walsall,WC73-644,31/10/2016,,Social Care & Inclusion,C & V ORCHARD RESIDENTIAL LTD,19/10/2016,"1,800.00",73373-RESIDENTIAL & NURSING CARE PLACEMENTS,OP COMMISSIONING,Third Party Payments,Revenue
Walsall Council,http://opendatacommunities.org/id/metropolitan-district-council/walsall,WC73-645,31/10/2016,,Social Care & Inclusion,C & V ORCHARD RESIDENTIAL LTD,19/10/2016,"1,800.00",73373-RESIDENTIAL & NURSING CARE PLACEMENTS,OP COMMISSIONING,Third Party Payments,Revenue
Walsall Council,http://opendatacommunities.org/id/metropolitan-district-council/walsall,WC73-646,31/10/2016,,Social Care & Inclusion,C & V ORCHARD RESIDENTIAL LTD,19/10/2016,"1,800.00",73373-RESIDENTIAL & NURSING CARE PLACEMENTS,OP COMMISSIONING,Third Party Payments,Revenue
Walsall Council,http://opendatacommunities.org/id/metropolitan-district-council/walsall,WC73-647,31/10/2016,,Social Care & Inclusion,C & V ORCHARD RESIDENTIAL LTD,19/10/2016,"1,800.00",73373-RESIDENTIAL & NURSING CARE PLACEMENTS,OP COMMISSIONING,Third Party Payments,Revenue
Walsall Council,http://opendatacommunities.org/id/metropolitan-district-council/walsall,WC73-648,31/10/2016,,Social Care & Inclusion,C & V ORCHARD RESIDENTIAL LTD,19/10/2016,"1,800.00",73373-RESIDENTIAL & NURSING CARE PLACEMENTS,OP COMMISSIONING,Third Party Payments,Revenue
Walsall Council,http://opendatacommunities.org/id/metropolitan-district-council/walsall,WC73-649,31/10/2016,,Social Care & Inclusion,C & V ORCHARD RESIDENTIAL LTD,19/10/2016,"1,800.00",73373-RESIDENTIAL & NURSING CARE PLACEMENTS,OP COMMISSIONING,Third Party Payments,Revenue
Walsall Council,http://opendatacommunities.org/id/metropolitan-district-council/walsall,WC73-650,31/10/2016,,Social Care & Inclusion,C & V ORCHARD RESIDENTIAL LTD,19/10/2016,"1,800.00",73373-RESIDENTIAL & NURSING CARE PLACEMENTS,OP COMMISSIONING,Third Party Payments,Revenue
Walsall Council,http://opendatacommunities.org/id/metropolitan-district-council/walsall,WC73-651,31/10/2016,,Social Care & Inclusion,C & V ORCHARD RESIDENTIAL LTD,19/10/2016,"1,800.00",73373-RESIDENTIAL & NURSING CARE PLACEMENTS,OP COMMISSIONING,Third Party Payments,Revenue
Walsall Council,http://opendatacommunities.org/id/metropolitan-district-council/walsall,WC73-652,31/10/2016,,Social Care & Inclusion,C & V ORCHARD RESIDENTIAL LTD,19/10/2016,"1,800.00",73373-RESIDENTIAL & NURSING CARE PLACEMENTS,OP COMMISSIONING,Third Party Payments,Revenue
Walsall Council,http://opendatacommunities.org/id/metropolitan-district-council/walsall,WC73-653,31/10/2016,,Social Care & Inclusion,C & V ORCHARD RESIDENTIAL LTD,25/10/2016,"1,800.00",73373-RESIDENTIAL & NURSING CARE PLACEMENTS,OP COMMISSIONING,Third Party Payments,Revenue
Walsall Council,http://opendatacommunities.org/id/metropolitan-district-council/walsall,WC73-654,31/10/2016,,Social Care & Inclusion,C & V ORCHARD RESIDENTIAL LTD,25/10/2016,"1,800.00",73373-RESIDENTIAL & NURSING CARE PLACEMENTS,OP COMMISSIONING,Third Party Payments,Revenue
Walsall Council,http://opendatacommunities.org/id/metropolitan-district-council/walsall,WC73-655,31/10/2016,,Social Care & Inclusion,C & V ORCHARD RESIDENTIAL LTD,25/10/2016,"1,800.00",73373-RESIDENTIAL & NURSING CARE PLACEMENTS,OP COMMISSIONING,Third Party Payments,Revenue
Walsall Council,http://opendatacommunities.org/id/metropolitan-district-council/walsall,WC73-656,31/10/2016,,Social Care & Inclusion,C & V ORCHARD RESIDENTIAL LTD,25/10/2016,"1,800.00",73373-RESIDENTIAL & NURSING CARE PLACEMENTS,OP COMMISSIONING,Third Party Payments,Revenue
Walsall Council,http://opendatacommunities.org/id/metropolitan-district-council/walsall,WC73-657,31/10/2016,,Social Care & Inclusion,C & V ORCHARD RESIDENTIAL LTD,25/10/2016,"1,800.00",73373-RESIDENTIAL & NURSING CARE PLACEMENTS,OP COMMISSIONING,Third Party Payments,Revenue
Walsall Council,http://opendatacommunities.org/id/metropolitan-district-council/walsall,WC73-658,31/10/2016,,Social Care & Inclusion,C & V ORCHARD RESIDENTIAL LTD,25/10/2016,"1,800.00",73373-RESIDENTIAL & NURSING CARE PLACEMENTS,OP COMMISSIONING,Third Party Payments,Revenue
Walsall Council,http://opendatacommunities.org/id/metropolitan-district-council/walsall,WC73-659,31/10/2016,,Social Care & Inclusion,C & V ORCHARD RESIDENTIAL LTD,25/10/2016,"1,800.00",73373-RESIDENTIAL & NURSING CARE PLACEMENTS,MH COMMISSIONING,Third Party Payments,Revenue
Walsall Council,http://opendatacommunities.org/id/metropolitan-district-council/walsall,WC73-660,31/10/2016,,Social Care & Inclusion,C & V ORCHARD RESIDENTIAL LTD,25/10/2016,"1,800.00",73373-RESIDENTIAL & NURSING CARE PLACEMENTS,MH COMMISSIONING,Third Party Payments,Revenue
Walsall Council,http://opendatacommunities.org/id/metropolitan-district-council/walsall,WC73-661,31/10/2016,,Social Care & Inclusion,C & V ORCHARD RESIDENTIAL LTD,25/10/2016,"1,928.56",73373-RESIDENTIAL & NURSING CARE PLACEMENTS,OP COMMISSIONING,Third Party Payments,Revenue
Walsall Council,http://opendatacommunities.org/id/metropolitan-district-council/walsall,WC73-662,31/10/2016,,Economy & Environment,C ART ART TRANSPORT LTD,10/10/2016,360,73032-TRANSPORTATION-PRIV CONTRACTOR FEES,NAG - TEMPORARY EXHIBITIONS,Third Party Payments,Revenue
Walsall Council,http://opendatacommunities.org/id/metropolitan-district-council/walsall,WC73-663,31/10/2016,,Childrens,REDACTED,10/10/2016,"4,567.64",62515-MISCELLANEOUS SUPPLIES,INTERNAL FOSTER CARE PROVISION,Supplies & Services,Revenue
Walsall Council,http://opendatacommunities.org/id/metropolitan-district-council/walsall,WC73-664,31/10/2016,,Childrens,REDACTED,10/10/2016,"5,138.65",74006-HOLIDAY/CHRISTMAS ALLOWANCE-FOSTER CARERS-OTH AGENCY PROVISION,INTERNAL FOSTER CARE PROVISION,Third Party Payments,Revenue
Walsall Council,http://opendatacommunities.org/id/metropolitan-district-council/walsall,WC73-665,31/10/2016,,Childrens,REDACTED,10/10/2016,"1,445.32",62515-MISCELLANEOUS SUPPLIES,INTERNAL FOSTER CARE PROVISION,Supplies & Services,Revenue
Walsall Council,http://opendatacommunities.org/id/metropolitan-district-council/walsall,WC73-666,31/10/2016,,Childrens,REDACTED,10/10/2016,"1,620.64",74006-HOLIDAY/CHRISTMAS ALLOWANCE-FOSTER CARERS-OTH AGENCY PROVISION,INTERNAL FOSTER CARE PROVISION,Third Party Payments,Revenue
Walsall Council,http://opendatacommunities.org/id/metropolitan-district-council/walsall,WC73-667,31/10/2016,,Economy & Environment,C P DAVIDSON & SONS LTD,25/10/2016,226.74,60500-GENERAL MATERIALS,FLEET,Supplies & Services,Revenue
Walsall Council,http://opendatacommunities.org/id/metropolitan-district-council/walsall,WC73-668,31/10/2016,,Economy & Environment,C P DAVIDSON & SONS LTD,26/10/2016,260,73025-PROFESSIONAL SERVICES-PRIV CONTRACTOR & OTHER AGENCIES,FLEET,Third Party Payments,Revenue
Walsall Council,http://opendatacommunities.org/id/metropolitan-district-council/walsall,WC73-669,31/10/2016,,Economy & Environment,C P DAVIDSON & SONS LTD,01/10/2016,592.54,60500-GENERAL MATERIALS,FLEET,Supplies & Services,Revenue
Walsall Council,http://opendatacommunities.org/id/metropolitan-district-council/walsall,WC73-670,31/10/2016,,Economy & Environment,C P DAVIDSON & SONS LTD,04/10/2016,851,60514-MATERIALS TO STORES,FLEET PARTS STOCK ACCOUNT,Supplies & Services,Revenue
Walsall Council,http://opendatacommunities.org/id/metropolitan-district-council/walsall,WC73-671,31/10/2016,,Economy & Environment,C P DAVIDSON & SONS LTD,01/10/2016,880.25,60500-GENERAL MATERIALS,FLEET,Supplies & Services,Revenue
Walsall Council,http://opendatacommunities.org/id/metropolitan-district-council/walsall,WC73-672,31/10/2016,,Economy & Environment,C P DAVIDSON & SONS LTD,01/10/2016,"2,760.91",73025-PROFESSIONAL SERVICES-PRIV CONTRACTOR & OTHER AGENCIES,FLEET,Third Party Payments,Revenue
Walsall Council,http://opendatacommunities.org/id/metropolitan-district-council/walsall,WC73-673,31/10/2016,,Childrens,REDACTED,24/10/2016,"1,222.36",74006-HOLIDAY/CHRISTMAS ALLOWANCE-FOSTER CARERS-OTH AGENCY PROVISION,INTERNAL FOSTER CARE PROVISION,Third Party Payments,Revenue
Walsall Council,http://opendatacommunities.org/id/metropolitan-district-council/walsall,WC73-674,31/10/2016,,Childrens,CACI  LIMITED,05/10/2016,"9,151.62",63800-COMPUTER EQUIPMENT AND SUPPLIES,YOUTH JUSTICE SERVICE,Supplies & Services,Revenue
Walsall Council,http://opendatacommunities.org/id/metropolitan-district-council/walsall,WC73-675,31/10/2016,,Social Care & Inclusion,CALDMORE AREA HOUSING ASS LTD,19/10/2016,361.86,73373-RESIDENTIAL & NURSING CARE PLACEMENTS,OP COMMISSIONING,Third Party Payments,Revenue
Walsall Council,http://opendatacommunities.org/id/metropolitan-district-council/walsall,WC73-676,31/10/2016,,Social Care & Inclusion,CALDMORE AREA HOUSING ASS LTD,19/10/2016,600.78,73372-DOMICILIARY CARE,LD COMMISSIONING,Third Party Payments,Revenue
Walsall Council,http://opendatacommunities.org/id/metropolitan-district-council/walsall,WC73-677,31/10/2016,,Social Care & Inclusion,CALDMORE AREA HOUSING ASS LTD,19/10/2016,612.56,73374-SUPPORTED & OTHER ACCOMMODATION,OP COMMISSIONING,Third Party Payments,Revenue
Walsall Council,http://opendatacommunities.org/id/metropolitan-district-council/walsall,WC73-678,31/10/2016,,Social Care & Inclusion,CALDMORE AREA HOUSING ASS LTD,04/10/2016,636.8,73374-SUPPORTED & OTHER ACCOMMODATION,MH COMMISSIONING,Third Party Payments,Revenue
Walsall Council,http://opendatacommunities.org/id/metropolitan-district-council/walsall,WC73-679,31/10/2016,,Social Care & Inclusion,CALDMORE AREA HOUSING ASS LTD,19/10/2016,657.97,73374-SUPPORTED & OTHER ACCOMMODATION,OP COMMISSIONING,Third Party Payments,Revenue
Walsall Council,http://opendatacommunities.org/id/metropolitan-district-council/walsall,WC73-680,31/10/2016,,Social Care & Inclusion,CALDMORE AREA HOUSING ASS LTD,03/10/2016,721,73374-SUPPORTED & OTHER ACCOMMODATION,MH COMMISSIONING,Third Party Payments,Revenue
Walsall Council,http://opendatacommunities.org/id/metropolitan-district-council/walsall,WC73-681,31/10/2016,,Social Care & Inclusion,CALDMORE AREA HOUSING ASS LTD,03/10/2016,721,73374-SUPPORTED & OTHER ACCOMMODATION,MH COMMISSIONING,Third Party Payments,Revenue
Walsall Council,http://opendatacommunities.org/id/metropolitan-district-council/walsall,WC73-682,31/10/2016,,Social Care & Inclusion,CALDMORE AREA HOUSING ASS LTD,03/10/2016,721,73374-SUPPORTED & OTHER ACCOMMODATION,MH COMMISSIONING,Third Party Payments,Revenue
Walsall Council,http://opendatacommunities.org/id/metropolitan-district-council/walsall,WC73-683,31/10/2016,,Social Care & Inclusion,CALDMORE AREA HOUSING ASS LTD,03/10/2016,747.75,73374-SUPPORTED & OTHER ACCOMMODATION,MH COMMISSIONING,Third Party Payments,Revenue
Walsall Council,http://opendatacommunities.org/id/metropolitan-district-council/walsall,WC73-684,31/10/2016,,Social Care & Inclusion,CALDMORE AREA HOUSING ASS LTD,19/10/2016,923.79,73374-SUPPORTED & OTHER ACCOMMODATION,MH COMMISSIONING,Third Party Payments,Revenue
Walsall Council,http://opendatacommunities.org/id/metropolitan-district-council/walsall,WC73-685,31/10/2016,,Social Care & Inclusion,CALDMORE AREA HOUSING ASS LTD,03/10/2016,"1,133.40",73374-SUPPORTED & OTHER ACCOMMODATION,MH COMMISSIONING,Third Party Payments,Revenue
Walsall Council,http://opendatacommunities.org/id/metropolitan-district-council/walsall,WC73-686,31/10/2016,,Social Care & Inclusion,CALDMORE AREA HOUSING ASS LTD,19/10/2016,"1,213.68",73374-SUPPORTED & OTHER ACCOMMODATION,MH COMMISSIONING,Third Party Payments,Revenue
Walsall Council,http://opendatacommunities.org/id/metropolitan-district-council/walsall,WC73-687,31/10/2016,,Social Care & Inclusion,CALDMORE AREA HOUSING ASS LTD,03/10/2016,"1,298.65",73374-SUPPORTED & OTHER ACCOMMODATION,MH COMMISSIONING,Third Party Payments,Revenue
Walsall Council,http://opendatacommunities.org/id/metropolitan-district-council/walsall,WC73-688,31/10/2016,,Social Care & Inclusion,CALDMORE AREA HOUSING ASS LTD,01/10/2016,"1,369.50",73374-SUPPORTED & OTHER ACCOMMODATION,MH COMMISSIONING,Third Party Payments,Revenue
Walsall Council,http://opendatacommunities.org/id/metropolitan-district-council/walsall,WC73-689,31/10/2016,,Social Care & Inclusion,CALDMORE AREA HOUSING ASS LTD,03/10/2016,"1,416.75",73374-SUPPORTED & OTHER ACCOMMODATION,MH COMMISSIONING,Third Party Payments,Revenue
Walsall Council,http://opendatacommunities.org/id/metropolitan-district-council/walsall,WC73-690,31/10/2016,,Social Care & Inclusion,CALDMORE AREA HOUSING ASS LTD,25/10/2016,"1,592.56",73373-RESIDENTIAL & NURSING CARE PLACEMENTS,MH COMMISSIONING,Third Party Payments,Revenue
Walsall Council,http://opendatacommunities.org/id/metropolitan-district-council/walsall,WC73-691,31/10/2016,,Social Care & Inclusion,CALDMORE AREA HOUSING ASS LTD,03/10/2016,"1,652.85",73374-SUPPORTED & OTHER ACCOMMODATION,MH COMMISSIONING,Third Party Payments,Revenue
Walsall Council,http://opendatacommunities.org/id/metropolitan-district-council/walsall,WC73-692,31/10/2016,,Social Care & Inclusion,CALDMORE AREA HOUSING ASS LTD,03/10/2016,"1,676.45",73374-SUPPORTED & OTHER ACCOMMODATION,MH COMMISSIONING,Third Party Payments,Revenue
Walsall Council,http://opendatacommunities.org/id/metropolitan-district-council/walsall,WC73-693,31/10/2016,,Social Care & Inclusion,CALDMORE AREA HOUSING ASS LTD,03/10/2016,"1,841.75",73374-SUPPORTED & OTHER ACCOMMODATION,MH COMMISSIONING,Third Party Payments,Revenue
Walsall Council,http://opendatacommunities.org/id/metropolitan-district-council/walsall,WC73-694,31/10/2016,,Social Care & Inclusion,CALDMORE AREA HOUSING ASS LTD,25/10/2016,"2,533.04",73373-RESIDENTIAL & NURSING CARE PLACEMENTS,MH COMMISSIONING,Third Party Payments,Revenue
Walsall Council,http://opendatacommunities.org/id/metropolitan-district-council/walsall,WC73-695,31/10/2016,,Social Care & Inclusion,CALDMORE AREA HOUSING ASS LTD,04/10/2016,"2,713.97",73373-RESIDENTIAL & NURSING CARE PLACEMENTS,MH COMMISSIONING,Third Party Payments,Revenue
Walsall Council,http://opendatacommunities.org/id/metropolitan-district-council/walsall,WC73-696,31/10/2016,,Social Care & Inclusion,CALDMORE AREA HOUSING ASS LTD,04/10/2016,"3,166.30",73373-RESIDENTIAL & NURSING CARE PLACEMENTS,MH COMMISSIONING,Third Party Payments,Revenue
Walsall Council,http://opendatacommunities.org/id/metropolitan-district-council/walsall,WC73-697,31/10/2016,,Social Care & Inclusion,CALDMORE AREA HOUSING ASS LTD,04/10/2016,"3,166.30",73373-RESIDENTIAL & NURSING CARE PLACEMENTS,MH COMMISSIONING,Third Party Payments,Revenue
Walsall Council,http://opendatacommunities.org/id/metropolitan-district-council/walsall,WC73-698,31/10/2016,,Social Care & Inclusion,CALDMORE AREA HOUSING ASS LTD,04/10/2016,"3,166.30",73373-RESIDENTIAL & NURSING CARE PLACEMENTS,MH COMMISSIONING,Third Party Payments,Revenue
Walsall Council,http://opendatacommunities.org/id/metropolitan-district-council/walsall,WC73-699,31/10/2016,,Social Care & Inclusion,CALDMORE AREA HOUSING ASS LTD,04/10/2016,"3,166.30",73373-RESIDENTIAL & NURSING CARE PLACEMENTS,MH COMMISSIONING,Third Party Payments,Revenue
Walsall Council,http://opendatacommunities.org/id/metropolitan-district-council/walsall,WC73-700,31/10/2016,,Social Care & Inclusion,CALDMORE AREA HOUSING ASS LTD,04/10/2016,"3,166.30",73373-RESIDENTIAL & NURSING CARE PLACEMENTS,MH COMMISSIONING,Third Party Payments,Revenue
Walsall Council,http://opendatacommunities.org/id/metropolitan-district-council/walsall,WC73-701,31/10/2016,,Social Care & Inclusion,CALDMORE AREA HOUSING ASS LTD,04/10/2016,"3,166.30",73373-RESIDENTIAL & NURSING CARE PLACEMENTS,MH COMMISSIONING,Third Party Payments,Revenue
Walsall Council,http://opendatacommunities.org/id/metropolitan-district-council/walsall,WC73-702,31/10/2016,,Social Care & Inclusion,CALDMORE AREA HOUSING ASS LTD,04/10/2016,"3,166.30",73373-RESIDENTIAL & NURSING CARE PLACEMENTS,MH COMMISSIONING,Third Party Payments,Revenue
Walsall Council,http://opendatacommunities.org/id/metropolitan-district-council/walsall,WC73-703,31/10/2016,,Social Care & Inclusion,CALDMORE AREA HOUSING ASS LTD,04/10/2016,"3,166.30",73373-RESIDENTIAL & NURSING CARE PLACEMENTS,MH COMMISSIONING,Third Party Payments,Revenue
Walsall Council,http://opendatacommunities.org/id/metropolitan-district-council/walsall,WC73-704,31/10/2016,,Social Care & Inclusion,CALDMORE AREA HOUSING ASS LTD,04/10/2016,"3,166.30",73373-RESIDENTIAL & NURSING CARE PLACEMENTS,MH COMMISSIONING,Third Party Payments,Revenue
Walsall Council,http://opendatacommunities.org/id/metropolitan-district-council/walsall,WC73-705,31/10/2016,,Social Care & Inclusion,CALDMORE AREA HOUSING ASS LTD,04/10/2016,"3,166.30",73373-RESIDENTIAL & NURSING CARE PLACEMENTS,MH COMMISSIONING,Third Party Payments,Revenue
Walsall Council,http://opendatacommunities.org/id/metropolitan-district-council/walsall,WC73-706,31/10/2016,,Childrens,REDACTED,24/10/2016,372.84,74006-HOLIDAY/CHRISTMAS ALLOWANCE-FOSTER CARERS-OTH AGENCY PROVISION,INTERNAL FOSTER CARE PROVISION,Third Party Payments,Revenue
Walsall Council,http://opendatacommunities.org/id/metropolitan-district-council/walsall,WC73-707,31/10/2016,,Childrens,REDACTED,10/10/2016,485.5,76422-DIRECT PAYMENTS TO SOCIAL SERVICES CLIENTS,FAMILY SUPPORT - DIRECT PAYMENTS,Transfer Payments,Revenue
Walsall Council,http://opendatacommunities.org/id/metropolitan-district-council/walsall,WC73-708,31/10/2016,,Social Care & Inclusion,CAMBIAN HEALTHCARE LTD,03/10/2016,"13,733.93",73375-IN PATIENT BEDS,LD COMMISSIONING,Third Party Payments,Revenue
Walsall Council,http://opendatacommunities.org/id/metropolitan-district-council/walsall,WC73-709,31/10/2016,,Social Care & Inclusion,CAMBIAN LEARNING DISABILITES MIDLANDS LIMITED,18/10/2016,"11,192.55",73375-IN PATIENT BEDS,BCPFT,Third Party Payments,Revenue
Walsall Council,http://opendatacommunities.org/id/metropolitan-district-council/walsall,WC73-710,31/10/2016,,Childrens,CAMBIAN WHINFELL SCHOOLS LTD,01/10/2016,"13,807.73",66502-TOP UP FUNDING -GRANTS TO SCHOOLS,INDEPENDENT PROVIDERS - SPECIAL & AP,Third Party Payments,Revenue
Walsall Council,http://opendatacommunities.org/id/metropolitan-district-council/walsall,WC73-711,31/10/2016,,Childrens,CAMBIAN WHINFELL SCHOOLS LTD,01/10/2016,"13,807.73",66502-TOP UP FUNDING -GRANTS TO SCHOOLS,INDEPENDENT PROVIDERS - SPECIAL & AP,Third Party Payments,Revenue
Walsall Council,http://opendatacommunities.org/id/metropolitan-district-council/walsall,WC73-712,31/10/2016,,Economy & Environment,CAMERA ONE LIMITED,06/10/2016,289,60006-NEW-FURNITURE & EQUIPMENT,HWRC,Supplies & Services,Revenue
Walsall Council,http://opendatacommunities.org/id/metropolitan-district-council/walsall,WC73-713,31/10/2016,,Economy & Environment,CAMERA ONE LIMITED,26/10/2016,289,60006-NEW-FURNITURE & EQUIPMENT,HWRC,Supplies & Services,Revenue
Walsall Council,http://opendatacommunities.org/id/metropolitan-district-council/walsall,WC73-714,31/10/2016,,Economy & Environment,CAMERA ONE LIMITED,19/10/2016,855,60500-GENERAL MATERIALS,DEPOT,Supplies & Services,Revenue
Walsall Council,http://opendatacommunities.org/id/metropolitan-district-council/walsall,WC73-715,31/10/2016,,Economy & Environment,REDACTED,10/10/2016,500,63239-EXTERNAL WORKS-PAYMENT TO CONTRACTOR,ARBORETUM,Third Party Payments,Revenue
Walsall Council,http://opendatacommunities.org/id/metropolitan-district-council/walsall,WC73-716,31/10/2016,,Social Care & Inclusion,REDACTED,10/10/2016,"3,600.00",76422-DIRECT PAYMENTS TO SOCIAL SERVICES CLIENTS,PD COMMISSIONING,Transfer Payments,Revenue
Walsall Council,http://opendatacommunities.org/id/metropolitan-district-council/walsall,WC73-717,31/10/2016,,Change and Governance,CAPITA BUSINESS SERVICES LTD 001,17/10/2016,450,63820-RECHARGE FOR MAINTENANCE/APPLICATION COSTS-COMPUTER,APPLICATIONS,Supplies & Services,Revenue
Walsall Council,http://opendatacommunities.org/id/metropolitan-district-council/walsall,WC73-718,31/10/2016,,Change and Governance,CAPITA BUSINESS SERVICES LTD 001,17/10/2016,"4,500.00",63800-COMPUTER EQUIPMENT AND SUPPLIES,RECHARGEABLE EQUIPMENT,Supplies & Services,Revenue
Walsall Council,http://opendatacommunities.org/id/metropolitan-district-council/walsall,WC73-719,31/10/2016,,Capital Financing,CAPITA TREASURY SOLUTIONS LIMITED,24/10/2016,"4,625.00",63000-PROFESSIONAL FEES AND SERVICES,TREASURY MANAGEMENT COSTS,Supplies & Services,Revenue
Walsall Council,http://opendatacommunities.org/id/metropolitan-district-council/walsall,WC73-720,31/10/2016,,Leasing,CAPITA TREASURY SOLUTIONS LIMITED,10/10/2016,"13,990.00",01018-VEHICLES LEASING,VEHICLE MAINTENANCE VEHICLES,Capital,Capital
Walsall Council,http://opendatacommunities.org/id/metropolitan-district-council/walsall,WC73-721,31/10/2016,,Social Care & Inclusion,CARE & MANAGEMENT SERVICES LTD,04/10/2016,"2,680.00",73374-SUPPORTED & OTHER ACCOMMODATION,MH COMMISSIONING,Third Party Payments,Revenue
Walsall Council,http://opendatacommunities.org/id/metropolitan-district-council/walsall,WC73-722,31/10/2016,,Social Care & Inclusion,CARE & MANAGEMENT SERVICES LTD,04/10/2016,"5,551.42",73374-SUPPORTED & OTHER ACCOMMODATION,MH COMMISSIONING,Third Party Payments,Revenue
Walsall Council,http://opendatacommunities.org/id/metropolitan-district-council/walsall,WC73-723,31/10/2016,,Social Care & Inclusion,CARE & MANAGEMENT SERVICES LTD,04/10/2016,"5,742.84",73374-SUPPORTED & OTHER ACCOMMODATION,MH COMMISSIONING,Third Party Payments,Revenue
Walsall Council,http://opendatacommunities.org/id/metropolitan-district-council/walsall,WC73-724,31/10/2016,,Social Care & Inclusion,CARE & MANAGEMENT SERVICES LTD,04/10/2016,"5,934.26",73374-SUPPORTED & OTHER ACCOMMODATION,MH COMMISSIONING,Third Party Payments,Revenue
Walsall Council,http://opendatacommunities.org/id/metropolitan-district-council/walsall,WC73-725,31/10/2016,,Social Care & Inclusion,CARE & MANAGEMENT SERVICES LTD,04/10/2016,"5,934.26",73374-SUPPORTED & OTHER ACCOMMODATION,MH COMMISSIONING,Third Party Payments,Revenue
Walsall Council,http://opendatacommunities.org/id/metropolitan-district-council/walsall,WC73-726,31/10/2016,,Social Care & Inclusion,CARE 2 U LIMITED,12/10/2016,"38,299.25",73372-DOMICILIARY CARE,OP COMMISSIONING,Third Party Payments,Revenue
Walsall Council,http://opendatacommunities.org/id/metropolitan-district-council/walsall,WC73-727,31/10/2016,,Childrens,CARE 4 CHILDREN RESIDENTIAL SERVICES LTD,17/10/2016,"17,050.00",74036-EXTERNAL RESIDENTIAL CARE-OTH AGENCY PROVISION,INDEPENDENT RESIDENTIAL HOMES,Third Party Payments,Revenue
Walsall Council,http://opendatacommunities.org/id/metropolitan-district-council/walsall,WC73-728,31/10/2016,,Social Care & Inclusion,CARE AVENUES LTD,11/10/2016,"9,646.00",73372-DOMICILIARY CARE,OP COMMISSIONING,Third Party Payments,Revenue
Walsall Council,http://opendatacommunities.org/id/metropolitan-district-council/walsall,WC73-729,31/10/2016,,Social Care & Inclusion,CARE FIRST MANAGEMENT SERVICES LTD,01/10/2016,780,73372-DOMICILIARY CARE,PD COMMISSIONING,Third Party Payments,Revenue
Walsall Council,http://opendatacommunities.org/id/metropolitan-district-council/walsall,WC73-730,31/10/2016,,Childrens,CARE LEAVERS,28/10/2016,"1,771.01",76010-ACCOMMODATION AND RELATED COSTS-ASSISTANCE TO S/S CLIENTS,TRANSITION AND LEAVING CARE,Transfer Payments,Revenue
Walsall Council,http://opendatacommunities.org/id/metropolitan-district-council/walsall,WC73-731,31/10/2016,,Childrens,CARE LEAVERS,28/10/2016,"2,564.22",64002-OTHER EXPENSES-EXPENSES,TRANSITION AND LEAVING CARE,Supplies & Services,Revenue
Walsall Council,http://opendatacommunities.org/id/metropolitan-district-council/walsall,WC73-732,31/10/2016,,Childrens,CARE LEAVERS,28/10/2016,"3,032.64",74500-CARE LEAVERS MTCE PAYMENTS,TRANSITION AND LEAVING CARE,Third Party Payments,Revenue
Walsall Council,http://opendatacommunities.org/id/metropolitan-district-council/walsall,WC73-733,31/10/2016,,Childrens,CARE LEAVERS,28/10/2016,"4,222.65",76400-RESIDENTS PERSONAL EXPENSES-ALLOWANCES TO S/S CLIENTS,TRANSITION AND LEAVING CARE,Transfer Payments,Revenue
Walsall Council,http://opendatacommunities.org/id/metropolitan-district-council/walsall,WC73-734,31/10/2016,,Social Care & Inclusion,CARE SHOP,03/10/2016,286.75,60000-FURNITURE & EQUIPMENT,REABLEMENT TEAM - HOLLY BANK,Supplies & Services,Revenue
Walsall Council,http://opendatacommunities.org/id/metropolitan-district-council/walsall,WC73-735,31/10/2016,,Social Care & Inclusion,CARE SHOP,14/10/2016,322.2,60539-CLEANING MATERIALS,COMMUNITY INTERMEDIATE CARE,Supplies & Services,Revenue
Walsall Council,http://opendatacommunities.org/id/metropolitan-district-council/walsall,WC73-736,31/10/2016,,Social Care & Inclusion,CARE SHOP,20/10/2016,666.32,60539-CLEANING MATERIALS,REABLEMENT TEAM - HOLLY BANK,Supplies & Services,Revenue
Walsall Council,http://opendatacommunities.org/id/metropolitan-district-council/walsall,WC73-737,31/10/2016,,Social Care & Inclusion,CARE SHOP,01/10/2016,955.2,60539-CLEANING MATERIALS,REABLEMENT TEAM - HOLLY BANK,Supplies & Services,Revenue
Walsall Council,http://opendatacommunities.org/id/metropolitan-district-council/walsall,WC73-738,31/10/2016,,Childrens,CARE TODAY CHILDRENS SERVICES,17/10/2016,"7,414.20",74036-EXTERNAL RESIDENTIAL CARE-OTH AGENCY PROVISION,INDEPENDENT RESIDENTIAL HOMES,Third Party Payments,Revenue
Walsall Council,http://opendatacommunities.org/id/metropolitan-district-council/walsall,WC73-739,31/10/2016,,Childrens,CARE TODAY CHILDRENS SERVICES,05/10/2016,"11,121.30",74036-EXTERNAL RESIDENTIAL CARE-OTH AGENCY PROVISION,INDEPENDENT RESIDENTIAL HOMES,Third Party Payments,Revenue
Walsall Council,http://opendatacommunities.org/id/metropolitan-district-council/walsall,WC73-740,31/10/2016,,Childrens,CARE TODAY CHILDRENS SERVICES,05/10/2016,"13,641.30",74036-EXTERNAL RESIDENTIAL CARE-OTH AGENCY PROVISION,INDEPENDENT RESIDENTIAL HOMES,Third Party Payments,Revenue
Walsall Council,http://opendatacommunities.org/id/metropolitan-district-council/walsall,WC73-741,31/10/2016,,Childrens,CAREFIRST SERVICES LIMITED,03/10/2016,231.6,76400-RESIDENTS PERSONAL EXPENSES-ALLOWANCES TO S/S CLIENTS,TRANSITION AND LEAVING CARE,Transfer Payments,Revenue
Walsall Council,http://opendatacommunities.org/id/metropolitan-district-council/walsall,WC73-742,31/10/2016,,Childrens,CAREFIRST SERVICES LIMITED,14/10/2016,857.1,76010-ACCOMMODATION AND RELATED COSTS-ASSISTANCE TO S/S CLIENTS,TRANSITION AND LEAVING CARE,Transfer Payments,Revenue
Walsall Council,http://opendatacommunities.org/id/metropolitan-district-council/walsall,WC73-743,31/10/2016,,Childrens,CAREFIRST SERVICES LIMITED,14/10/2016,"1,542.78",76010-ACCOMMODATION AND RELATED COSTS-ASSISTANCE TO S/S CLIENTS,TRANSITION AND LEAVING CARE,Transfer Payments,Revenue
Walsall Council,http://opendatacommunities.org/id/metropolitan-district-council/walsall,WC73-744,31/10/2016,,Childrens,CAREFIRST SERVICES LIMITED,03/10/2016,"1,573.66",76010-ACCOMMODATION AND RELATED COSTS-ASSISTANCE TO S/S CLIENTS,TRANSITION AND LEAVING CARE,Transfer Payments,Revenue
Walsall Council,http://opendatacommunities.org/id/metropolitan-district-council/walsall,WC73-745,31/10/2016,,Childrens,CAREFIRST SERVICES LIMITED,03/10/2016,"1,933.66",76010-ACCOMMODATION AND RELATED COSTS-ASSISTANCE TO S/S CLIENTS,TRANSITION AND LEAVING CARE,Transfer Payments,Revenue
Walsall Council,http://opendatacommunities.org/id/metropolitan-district-council/walsall,WC73-746,31/10/2016,,Social Care & Inclusion,CAREVIEW SERVICES LTD,13/10/2016,"6,802.80",73373-RESIDENTIAL & NURSING CARE PLACEMENTS,LD COMMISSIONING,Third Party Payments,Revenue
Walsall Council,http://opendatacommunities.org/id/metropolitan-district-council/walsall,WC73-747,31/10/2016,,Social Care & Inclusion,CARING CARE LIMITED,04/10/2016,250,73025-PROFESSIONAL SERVICES-PRIV CONTRACTOR & OTHER AGENCIES,CARERS SERVICES,Third Party Payments,Revenue
Walsall Council,http://opendatacommunities.org/id/metropolitan-district-council/walsall,WC73-748,31/10/2016,,Social Care & Inclusion,CARING CARE LIMITED,03/10/2016,709.25,73372-DOMICILIARY CARE,OP COMMISSIONING,Third Party Payments,Revenue
Walsall Council,http://opendatacommunities.org/id/metropolitan-district-council/walsall,WC73-749,31/10/2016,,Social Care & Inclusion,CARING CARE LIMITED,12/10/2016,"58,156.57",73372-DOMICILIARY CARE,OP COMMISSIONING,Third Party Payments,Revenue
Walsall Council,http://opendatacommunities.org/id/metropolitan-district-council/walsall,WC73-750,31/10/2016,,Social Care & Inclusion,CARING HANDS LIMITED,12/10/2016,"48,316.59",73372-DOMICILIARY CARE,OP COMMISSIONING,Third Party Payments,Revenue
Walsall Council,http://opendatacommunities.org/id/metropolitan-district-council/walsall,WC73-751,31/10/2016,,Social Care & Inclusion,REDACTED,14/10/2016,266.08,73374-SUPPORTED & OTHER ACCOMMODATION,LD COMMISSIONING,Third Party Payments,Revenue
Walsall Council,http://opendatacommunities.org/id/metropolitan-district-council/walsall,WC73-752,31/10/2016,,Social Care & Inclusion,REDACTED,14/10/2016,270.48,73374-SUPPORTED & OTHER ACCOMMODATION,LD COMMISSIONING,Third Party Payments,Revenue
Walsall Council,http://opendatacommunities.org/id/metropolitan-district-council/walsall,WC73-753,31/10/2016,,Social Care & Inclusion,REDACTED,18/10/2016,"1,637.40",73374-SUPPORTED & OTHER ACCOMMODATION,LD COMMISSIONING,Third Party Payments,Revenue
Walsall Council,http://opendatacommunities.org/id/metropolitan-district-council/walsall,WC73-754,31/10/2016,,Social Care & Inclusion,REDACTED,18/10/2016,"1,637.40",73374-SUPPORTED & OTHER ACCOMMODATION,LD COMMISSIONING,Third Party Payments,Revenue
Walsall Council,http://opendatacommunities.org/id/metropolitan-district-council/walsall,WC73-755,31/10/2016,,Social Care & Inclusion,REDACTED,10/10/2016,450,76422-DIRECT PAYMENTS TO SOCIAL SERVICES CLIENTS,PD COMMISSIONING,Transfer Payments,Revenue
Walsall Council,http://opendatacommunities.org/id/metropolitan-district-council/walsall,WC73-756,31/10/2016,,Childrens,REDACTED,10/10/2016,470.96,74006-HOLIDAY/CHRISTMAS ALLOWANCE-FOSTER CARERS-OTH AGENCY PROVISION,INTERNAL FOSTER CARE PROVISION,Third Party Payments,Revenue
Walsall Council,http://opendatacommunities.org/id/metropolitan-district-council/walsall,WC73-757,31/10/2016,,Childrens,REDACTED,10/10/2016,540.2,62515-MISCELLANEOUS SUPPLIES,INTERNAL FOSTER CARE PROVISION,Supplies & Services,Revenue
Walsall Council,http://opendatacommunities.org/id/metropolitan-district-council/walsall,WC73-758,31/10/2016,,Childrens,REDACTED,24/10/2016,361.12,74006-HOLIDAY/CHRISTMAS ALLOWANCE-FOSTER CARERS-OTH AGENCY PROVISION,INTERNAL FOSTER CARE PROVISION,Third Party Payments,Revenue
Walsall Council,http://opendatacommunities.org/id/metropolitan-district-council/walsall,WC73-759,31/10/2016,,Childrens,CARTER BROWN LTD T/A CARTER BROWN THE EXPERT SERVICE,20/10/2016,"4,803.40",73014-LEGAL FEES-PRIV CONTRACTOR FEES,GENERAL MANAGEMENT SUPPORT (INC LEGAL),Third Party Payments,Revenue
Walsall Council,http://opendatacommunities.org/id/metropolitan-district-council/walsall,WC73-760,31/10/2016,,Economy & Environment,CARTER SYNERGY LTD,05/10/2016,220,"40000-REPAIRS,ALTERATIONS & MAINTENANCE-PREM",NAG - MAINTENANCE,Premises,Revenue
Walsall Council,http://opendatacommunities.org/id/metropolitan-district-council/walsall,WC73-761,31/10/2016,,Economy & Environment,CARTER SYNERGY LTD,01/10/2016,293.25,40216-OTHER-PLAN MTCE,NAG - MAINTENANCE,Premises,Revenue
